Body Name,Body,Service Level,Expense Type,Expense Code,Narrative,Date,Transaction Number,Amount,Capital and Revenue,Supplier Name,Supplier ID
South Ribble Borough Council,http://statistics.data.gov.uk/id/local-authority/30UE,COMU-Communities,Capital Grant,C570,DFG WORK TO COMPLETE DISABLED ADAPTATION/EXTENSION AS PER SRBC PLANS AND SPEC AT ADDRESS ,29/07/2022,0000480473,"23,985.00",Revenue,A CONNOLLY LTD,0
South Ribble Borough Council,http://statistics.data.gov.uk/id/local-authority/30UE,COMU-Communities,Capital Grant,C570,"DFG WORKS AT ADDRESS REDACTED CUSTOMER CHOSEN PLANS SO GRANT TO COVER COST OF RAMP, THROUGHFLOOR LIFT ",01/07/2022,0000479692,"10,000.00",Revenue,A FULLER SERVICES,0
South Ribble Borough Council,http://statistics.data.gov.uk/id/local-authority/30UE,CDIG-Customer and Digital,Materials General,4040,Brake caliper  VU11 HSZ JFC18355,01/07/2022,0000479718,348.00,Revenue,AA UK CV t/a Hydrair Truck & Trailer,0
South Ribble Borough Council,http://statistics.data.gov.uk/id/local-authority/30UE,COMU-Communities,Contributions to Other Bodies,4730,Rent in advance payment for ADDRESS REDACTED -  Account No: 50025543,29/07/2022,0000480582,603.09,Revenue,ACCENT FOUNDATION,0
South Ribble Borough Council,http://statistics.data.gov.uk/id/local-authority/30UE,CDIG-Customer and Digital,Agency Staff,1121,NAME REDACTED- W/C 4th July 2022,22/07/2022,0000480293,536.25,Revenue,ACE PERSONNEL,0
South Ribble Borough Council,http://statistics.data.gov.uk/id/local-authority/30UE,CDIG-Customer and Digital,Agency Staff,1121,NAME REDACTED- W/C 4th July 2022,22/07/2022,0000480294,536.25,Revenue,ACE PERSONNEL,0
South Ribble Borough Council,http://statistics.data.gov.uk/id/local-authority/30UE,CDIG-Customer and Digital,Agency Staff,1121,NAME REDACTED - W/C 11th July 2022,29/07/2022,0000480471,419.38,Revenue,ACE PERSONNEL,0
South Ribble Borough Council,http://statistics.data.gov.uk/id/local-authority/30UE,CDIG-Customer and Digital,Agency Staff,1121,NAME REDACTED - W/C 11th July 2022,29/07/2022,0000480472,330.00,Revenue,ACE PERSONNEL,0
South Ribble Borough Council,http://statistics.data.gov.uk/id/local-authority/30UE,GOVE-Governance,Software Licensing,4243,Themis Public Sector License June 22 to June 23,01/07/2022,0000479572,735.00,Revenue,Achilles Information Ltd,0
South Ribble Borough Council,http://statistics.data.gov.uk/id/local-authority/30UE,COMP-Commercial and Property,Materials General,4040,Order of School Games T-shirts,15/07/2022,0000480078,706.60,Revenue,ACTIVE LANCASHIRE,0
South Ribble Borough Council,http://statistics.data.gov.uk/id/local-authority/30UE,COMP-Commercial and Property,Reactive Repair & Maintenance,2020,"To replace push button for dog shower, replace pipework to the push button for the dog wash install a new stop tap on the incoming water main",08/07/2022,0000479872,445.00,Revenue,Ainscoe Plumbing & Heating Ltd,0
South Ribble Borough Council,http://statistics.data.gov.uk/id/local-authority/30UE,COMP-Commercial and Property,Reactive Repair & Maintenance,2020,To provide cold water supply for new drinking water unit within the entrance foyer area. As per NAME REDACTED request ,22/07/2022,0000480295,310.00,Revenue,Ainscoe Plumbing & Heating Ltd,0
South Ribble Borough Council,http://statistics.data.gov.uk/id/local-authority/30UE,COMP-Commercial and Property,Reactive Repair & Maintenance,2020,This is to remove the pavilion from Holme road playing fields. To Moss side village hall. ,15/07/2022,0000480079,"5,714.00",Revenue,Ainscough Crane Hire Ltd,0
South Ribble Borough Council,http://statistics.data.gov.uk/id/local-authority/30UE,CDIG-Customer and Digital,External Contractors Charges,4570,Spec repair and module YA19 NGN JFC 18488,08/07/2022,0000479871,302.18,Revenue,Alan Edwards (Edwards Technical),0
South Ribble Borough Council,http://statistics.data.gov.uk/id/local-authority/30UE,COMU-Communities,Consultancy Fees,4541,"decarbonisation works to the Civic Centre, Moss Side Depot, South Ribble Tennis Centre, Leyland, Penwortham and Bamber Bridge Leisure ",08/07/2022,0000479807,"20,463.30",Revenue,Alliance Leisure Services Limited,0
South Ribble Borough Council,http://statistics.data.gov.uk/id/local-authority/30UE,COMU-Communities,Consultancy Fees,4541,"decarbonisation works to the Civic Centre, Moss Side Depot, South Ribble Tennis Centre, Leyland, Penwortham and Bamber Bridge Leisure ",08/07/2022,0000479914,"100,200.00",Revenue,Alliance Leisure Services Limited,0
South Ribble Borough Council,http://statistics.data.gov.uk/id/local-authority/30UE,CDIG-Customer and Digital,Bank Charges,4811,post off trans,15/07/2022,0000480017,532.68,Revenue,ALLPAY LTD,0
South Ribble Borough Council,http://statistics.data.gov.uk/id/local-authority/30UE,CDIG-Customer and Digital,Bank Charges,4811,paypoint,15/07/2022,0000480017,74.61,Revenue,ALLPAY LTD,0
South Ribble Borough Council,http://statistics.data.gov.uk/id/local-authority/30UE,CDIG-Customer and Digital,Bank Charges,4811,webconnect,15/07/2022,0000480017,46.00,Revenue,ALLPAY LTD,0
South Ribble Borough Council,http://statistics.data.gov.uk/id/local-authority/30UE,CDIG-Customer and Digital,Computer Equipment,4241,New ports at Moss Side Depot (waste room),15/07/2022,0000479990,490.00,Revenue,AMPEC Limited,0
South Ribble Borough Council,http://statistics.data.gov.uk/id/local-authority/30UE,COMP-Commercial and Property,Reactive Repair & Maintenance,2020,Temporary roof Repair at ADDRESS REDACTED,08/07/2022,0000479891,600.00,Revenue,AMS Cladding,0
South Ribble Borough Council,http://statistics.data.gov.uk/id/local-authority/30UE,COMP-Commercial and Property,Water Charges(Metered),2511,7/5 to 6/6/22,08/07/2022,0000479730,346.10,Revenue,Anglian Water Business (National) t/as Wave Utilit,0
South Ribble Borough Council,http://statistics.data.gov.uk/id/local-authority/30UE,COMP-Commercial and Property,Water Charges(Metered),2511,7/5 to 6/6/22,08/07/2022,0000479731,900.47,Revenue,Anglian Water Business (National) t/as Wave Utilit,0
South Ribble Borough Council,http://statistics.data.gov.uk/id/local-authority/30UE,COMP-Commercial and Property,Water Charges(Metered),2511,7/5 to 6/6/22,08/07/2022,0000479732,860.57,Revenue,Anglian Water Business (National) t/as Wave Utilit,0
South Ribble Borough Council,http://statistics.data.gov.uk/id/local-authority/30UE,COMP-Commercial and Property,Water Charges(Metered),2511,7/5 to 6/6/22,08/07/2022,0000479733,"1,318.99",Revenue,Anglian Water Business (National) t/as Wave Utilit,0
South Ribble Borough Council,http://statistics.data.gov.uk/id/local-authority/30UE,COMP-Commercial and Property,Water Charges(Metered),2511,7/5 to 6/6/22,08/07/2022,0000479734,942.58,Revenue,Anglian Water Business (National) t/as Wave Utilit,0
South Ribble Borough Council,http://statistics.data.gov.uk/id/local-authority/30UE,COMP-Commercial and Property,Water Charges(Metered),2511,7/6 to 6/7/22,29/07/2022,0000480558,"1,225.97",Revenue,Anglian Water Business (National) t/as Wave Utilit,0
South Ribble Borough Council,http://statistics.data.gov.uk/id/local-authority/30UE,COMP-Commercial and Property,Water Charges(Metered),2511,7/6 to 6/7/22,29/07/2022,0000480559,898.23,Revenue,Anglian Water Business (National) t/as Wave Utilit,0
South Ribble Borough Council,http://statistics.data.gov.uk/id/local-authority/30UE,COMP-Commercial and Property,Water Charges(Metered),2511,7/6 to 6/7/22,29/07/2022,0000480560,"4,110.02",Revenue,Anglian Water Business (National) t/as Wave Utilit,0
South Ribble Borough Council,http://statistics.data.gov.uk/id/local-authority/30UE,COMP-Commercial and Property,Water Charges(Metered),2511,7/6 to 6/7/22,29/07/2022,0000480561,859.02,Revenue,Anglian Water Business (National) t/as Wave Utilit,0
South Ribble Borough Council,http://statistics.data.gov.uk/id/local-authority/30UE,COMP-Commercial and Property,Water Charges(Metered),2511,7/6 to 6/7/22,29/07/2022,0000480562,319.18,Revenue,Anglian Water Business (National) t/as Wave Utilit,0
South Ribble Borough Council,http://statistics.data.gov.uk/id/local-authority/30UE,COMU-Communities,Capital Grant,C570,DFG WORK FOR ADAPTATION FOR  LEVEL ACCESS SHOWER AT  ADDRESS REDACTED  AS PER SRBC PLANS ,08/07/2022,0000479870,"5,507.00",Revenue,APG DOMESTIC SERVICES,0
South Ribble Borough Council,http://statistics.data.gov.uk/id/local-authority/30UE,COMU-Communities,External Contractors Charges,4570,For removals to and from ADDRESS REDACTED,01/07/2022,0000479497,"1,812.00",Revenue,Army Ants Removers Ltd,0
South Ribble Borough Council,http://statistics.data.gov.uk/id/local-authority/30UE,COMP-Commercial and Property,Operational Equip & Tools,4010,Vehicle [B1] Standard Van Hire  as per NAME REDACTED This order is to cover until end of March 2023,08/07/2022,0000479756,260.96,Revenue,ARNOLD CLARK CAR & VAN RENTAL,0
South Ribble Borough Council,http://statistics.data.gov.uk/id/local-authority/30UE,COMP-Commercial and Property,Reactive Repair & Maintenance,2020,"single skin solid galvanised steel roller shutter to exterior of front entrance doors, canopy, bullit locks, manual operation at Moss Side Village hall",15/07/2022,0000480152,895.00,Revenue,AVALON DOORS & AWNINGS LTD,0
South Ribble Borough Council,http://statistics.data.gov.uk/id/local-authority/30UE,COMP-Commercial and Property,Reactive Repair & Maintenance,2020,LABOUR,15/07/2022,0000480152,100.00,Revenue,AVALON DOORS & AWNINGS LTD,0
South Ribble Borough Council,http://statistics.data.gov.uk/id/local-authority/30UE,COMP-Commercial and Property,Reactive Repair & Maintenance,2020,"To supply & fit two SeceuroShield38, aluminium roller shutters. Solid lath to the door shutter. Ten perforated lath to the window shutter",15/07/2022,0000480224,"1,245.00",Revenue,AVALON DOORS & AWNINGS LTD,0
South Ribble Borough Council,http://statistics.data.gov.uk/id/local-authority/30UE,COMP-Commercial and Property,Reactive Repair & Maintenance,2020,LABOUR,15/07/2022,0000480224,200.00,Revenue,AVALON DOORS & AWNINGS LTD,0
South Ribble Borough Council,http://statistics.data.gov.uk/id/local-authority/30UE,COMP-Commercial and Property,Reactive Repair & Maintenance,2020,Set up pedestrian and traffic management to carry out the work in sections; saw cut line of trench either side; carefully break out concrete trench ,08/07/2022,0000479388,"10,450.00",Revenue,Bailey Contracts Ltd,0
South Ribble Borough Council,http://statistics.data.gov.uk/id/local-authority/30UE,CDIG-Customer and Digital,Materials General,4040,Hydraulic ram PJ69 NWG JFC 18191,22/07/2022,0000480360,701.90,Revenue,BALMERS GM LTD,0
South Ribble Borough Council,http://statistics.data.gov.uk/id/local-authority/30UE,CDIG-Customer and Digital,Plants Trees & Shrubs,4046,"Plants for Worden Park, Bellis Way and Hurst Grange Park as per list to be emailed with the order ",15/07/2022,0000479945,403.15,Revenue,BANNISTER HALL LANDSCAPE SUPPLIES,0
South Ribble Borough Council,http://statistics.data.gov.uk/id/local-authority/30UE,COMP-Commercial and Property,Misc Capital Payments,C234,"To undertake full EICR testing across Vernon cricket ground, with all remedial actions.",01/07/2022,0000479629,800.00,Revenue,BELEC ELECTRICAL LTD,0
South Ribble Borough Council,http://statistics.data.gov.uk/id/local-authority/30UE,COMP-Commercial and Property,Reactive Repair & Maintenance,2020,To remove old lighting for new ceiling. Re-fit new lighting with LED once the new ceiling has been fit. As per NAME REDACTED request ,01/07/2022,0000479631,334.00,Revenue,BELEC ELECTRICAL LTD,0
South Ribble Borough Council,http://statistics.data.gov.uk/id/local-authority/30UE,COMP-Commercial and Property,Reactive Repair & Maintenance,2020,"Call out on Saturday due to power cut at Moss Side Depot, (Emergency call out) As per NAME REDACTED Installing new main power connection",08/07/2022,0000479808,"1,252.62",Revenue,BELEC ELECTRICAL LTD,0
South Ribble Borough Council,http://statistics.data.gov.uk/id/local-authority/30UE,COMP-Commercial and Property,Reactive Repair & Maintenance,2020,2:00 Hours check and disconnect light gateway Civic Centre req NAME REDACTED,15/07/2022,0000480216,54.00,Revenue,BELEC ELECTRICAL LTD,0
South Ribble Borough Council,http://statistics.data.gov.uk/id/local-authority/30UE,COMP-Commercial and Property,Reactive Repair & Maintenance,2020,3:00 Hours install cable for bell system MSD ICT  81.00 req NAME REDACTED,15/07/2022,0000480216,81.00,Revenue,BELEC ELECTRICAL LTD,0
South Ribble Borough Council,http://statistics.data.gov.uk/id/local-authority/30UE,COMP-Commercial and Property,Reactive Repair & Maintenance,2020,7:00 Hours Moss side depot garage req NAME REDACTED,15/07/2022,0000480216,206.00,Revenue,BELEC ELECTRICAL LTD,0
South Ribble Borough Council,http://statistics.data.gov.uk/id/local-authority/30UE,COMP-Commercial and Property,Reactive Repair & Maintenance,2020,9:00 Hours Labour for two tvs and extra conduit work to power socket and tv in fcc  req NAME REDACTED,15/07/2022,0000480216,252.60,Revenue,BELEC ELECTRICAL LTD,0
South Ribble Borough Council,http://statistics.data.gov.uk/id/local-authority/30UE,COMP-Commercial and Property,Reactive Repair & Maintenance,2020,3:00 Hours remove steel conduit from fencing ready for ground work petrol pumps ,15/07/2022,0000480226,702.61,Revenue,BELEC ELECTRICAL LTD,0
South Ribble Borough Council,http://statistics.data.gov.uk/id/local-authority/30UE,COMP-Commercial and Property,Reactive Repair & Maintenance,2020,3:00 Hours disocnnection at holme park  81.00 as per NAME REDACTED Request ,15/07/2022,0000480226,81.00,Revenue,BELEC ELECTRICAL LTD,0
South Ribble Borough Council,http://statistics.data.gov.uk/id/local-authority/30UE,COMP-Commercial and Property,Reactive Repair & Maintenance,2020,Service Install lockable double socket cabin 1 same as cabin  90.00 as per NAME REDACTED request ,15/07/2022,0000480226,90.00,Revenue,BELEC ELECTRICAL LTD,0
South Ribble Borough Council,http://statistics.data.gov.uk/id/local-authority/30UE,COMP-Commercial and Property,Reactive Repair & Maintenance,2020,1:00 Hour door entry break glass and protective guard  67.17 req NAME REDACTED 1:00 Hour trunking junction box 1.50,15/07/2022,0000480227,178.37,Revenue,BELEC ELECTRICAL LTD,0
South Ribble Borough Council,http://statistics.data.gov.uk/id/local-authority/30UE,COMP-Commercial and Property,Reactive Repair & Maintenance,2020,5:00 Hours 2 visits CH boiler and air pressure boiler work 135.00 req NAME REDACTED Product contactor / cable  28.50,15/07/2022,0000480227,163.50,Revenue,BELEC ELECTRICAL LTD,0
South Ribble Borough Council,http://statistics.data.gov.uk/id/local-authority/30UE,COMP-Commercial and Property,Misc Capital Payments,C234,quote to raise a pur to date for works at Vernon Carus as per NAME REDACTED request  and quote dated 16th June ,22/07/2022,0000480400,"14,652.20",Revenue,BELEC ELECTRICAL LTD,0
South Ribble Borough Council,http://statistics.data.gov.uk/id/local-authority/30UE,COMP-Commercial and Property,Dev ftarget Sports-Coaching,4894,MASTERPLAY MIDI-CRICKET BAT Size:  SMALL MASTERPLAY MIDI-CRICKET BAT BAG OF 24 + 6 bought separately ,15/07/2022,0000479766,264.85,Revenue,Bishop Sports & Leisure Ltd,0
South Ribble Borough Council,http://statistics.data.gov.uk/id/local-authority/30UE,COMP-Commercial and Property,Cost of Food,4310,Bamber Bridge Leisure Centre Vending Supplies Original Order PUR0048394 on 17th May 2021. Order cancelled at financial year end,01/07/2022,0000479462,721.11,Revenue,Brakes Broz Ltd,0
South Ribble Borough Council,http://statistics.data.gov.uk/id/local-authority/30UE,COMP-Commercial and Property,Cost of Food,4310,Bamber Bridge Leisure Centre Vending Supplies Original Order PUR0048394 on 17th May 2021. Order cancelled at financial year end,01/07/2022,0000479462,12.75,Revenue,Brakes Broz Ltd,0
South Ribble Borough Council,http://statistics.data.gov.uk/id/local-authority/30UE,COMP-Commercial and Property,Cost of Food,4310,Leyland Leisure Centre Vending Order Original Order PUR0048412 18th May 2021 Order being re-raised as cancelled at year end,01/07/2022,0000479463,638.09,Revenue,Brakes Broz Ltd,0
South Ribble Borough Council,http://statistics.data.gov.uk/id/local-authority/30UE,COMP-Commercial and Property,Cost of Food,4310,Brakes order for South Ribble Tennis Centre Original Order PUR0048475 for 21st May 2021 Re-raising order as written off at year end,01/07/2022,0000479464,418.34,Revenue,Brakes Broz Ltd,0
South Ribble Borough Council,http://statistics.data.gov.uk/id/local-authority/30UE,COMP-Commercial and Property,Cost of Food,4310,Brakes order for South Ribble Tennis Centre Original Order PUR0048475 for 21st May 2021 Re-raising order as written off at year end,01/07/2022,0000479464,420.32,Revenue,Brakes Broz Ltd,0
South Ribble Borough Council,http://statistics.data.gov.uk/id/local-authority/30UE,COMP-Commercial and Property,Cap Contract Payment,C230,Work  Fencing at Bent Lane as per NAME REDACTED request,08/07/2022,0000479772,"3,350.00",Revenue,Brewers Contractors Limited,0
South Ribble Borough Council,http://statistics.data.gov.uk/id/local-authority/30UE,COMP-Commercial and Property,Reactive Repair & Maintenance,2020,Please supply paint as per Facilities Officer request to be collected or delivered as per telephone request by Officer,15/07/2022,0000480158,394.22,Revenue,BROMBOROUGH PAINTS,0
South Ribble Borough Council,http://statistics.data.gov.uk/id/local-authority/30UE,CDIG-Customer and Digital,Furniture,4017,5 x BX2060 Lakeside Cast Iron framed Seats 1800m length surface mounted planned and sanded slats frames coated black RAL 9005,15/07/2022,0000479903,"2,485.00",Revenue,BROXAP LTD,0
South Ribble Borough Council,http://statistics.data.gov.uk/id/local-authority/30UE,CDIG-Customer and Digital,Furniture,4017,5 x  BX14 S-2092 sets of fixing bolts to suit,15/07/2022,0000479903,85.00,Revenue,BROXAP LTD,0
South Ribble Borough Council,http://statistics.data.gov.uk/id/local-authority/30UE,CDIG-Customer and Digital,Furniture,4017,Delivery charge with no offloading,15/07/2022,0000479903,290.00,Revenue,BROXAP LTD,0
South Ribble Borough Council,http://statistics.data.gov.uk/id/local-authority/30UE,CDIG-Customer and Digital,Materials General,4040,Coolant hose 2 x Jockey wheels 1 x Hose connector RV14 DTZ JFC 18525,15/07/2022,0000480083,342.04,Revenue,Bucher Municipal Ltd,0
South Ribble Borough Council,http://statistics.data.gov.uk/id/local-authority/30UE,COMP-Commercial and Property,Cap Contract Payment,C230,"Provision of traffic and transport consultancy services - Extra Care Scheme, West Paddock, Leyland",08/07/2022,0000479915,"2,275.00",Revenue,Campbell Reith Hill LLP,0
South Ribble Borough Council,http://statistics.data.gov.uk/id/local-authority/30UE,COMP-Commercial and Property,Cap Contract Payment,C230,Transport/Highways BREEAM report - Jubilee Gardens,08/07/2022,0000479916,500.00,Revenue,Campbell Reith Hill LLP,0
South Ribble Borough Council,http://statistics.data.gov.uk/id/local-authority/30UE,COMP-Commercial and Property,Cap Contract Payment,C230,"Provision of traffic and transport consultancy services - Extra Care Scheme, West Paddock, Leyland",08/07/2022,0000479921,"1,825.00",Revenue,Campbell Reith Hill LLP,0
South Ribble Borough Council,http://statistics.data.gov.uk/id/local-authority/30UE,COMP-Commercial and Property,Cap Contract Payment,C230,"Provision of traffic and transport consultancy services - Extra Care Scheme, West Paddock, Leyland",08/07/2022,0000479922,"2,550.00",Revenue,Campbell Reith Hill LLP,0
South Ribble Borough Council,http://statistics.data.gov.uk/id/local-authority/30UE,COMP-Commercial and Property,Cap Contract Payment,C230,RIBA 2 Procurement Support,22/07/2022,0000480162,"2,000.00",Revenue,Campbell Reith Hill LLP,0
South Ribble Borough Council,http://statistics.data.gov.uk/id/local-authority/30UE,COMP-Commercial and Property,Cap Contract Payment,C230,"RIBA 3 - Civil and Structural Design Consultancy - Jubilee Gardens Extra Care, West Paddock",15/07/2022,0000480163,"14,100.00",Revenue,Campbell Reith Hill LLP,0
South Ribble Borough Council,http://statistics.data.gov.uk/id/local-authority/30UE,COMP-Commercial and Property,Cap Contract Payment,C230,GEOTECHNICAL ENGINEERING CONSULTANCY SERVICES - EXTRA CARE WEST PADDOCK,22/07/2022,0000480164,"1,150.00",Revenue,Campbell Reith Hill LLP,0
South Ribble Borough Council,http://statistics.data.gov.uk/id/local-authority/30UE,COMP-Commercial and Property,Cap Contract Payment,C230,CCTV Pond Survey - Extra Care (West Paddock),22/07/2022,0000480165,"1,422.50",Revenue,Campbell Reith Hill LLP,0
South Ribble Borough Council,http://statistics.data.gov.uk/id/local-authority/30UE,COMP-Commercial and Property,Cap Contract Payment,C230,CCTV Pond Survey - Extra Care (West Paddock),22/07/2022,0000480233,"1,365.00",Revenue,Campbell Reith Hill LLP,0
South Ribble Borough Council,http://statistics.data.gov.uk/id/local-authority/30UE,COMP-Commercial and Property,Cap Contract Payment,C230,RIBA 2 Procurement Support,22/07/2022,0000480234,"1,500.00",Revenue,Campbell Reith Hill LLP,0
South Ribble Borough Council,http://statistics.data.gov.uk/id/local-authority/30UE,COMP-Commercial and Property,Cap Contract Payment,C230,GEOTECHNICAL ENGINEERING CONSULTANCY SERVICES - EXTRA CARE WEST PADDOCK,22/07/2022,0000480235,"1,450.00",Revenue,Campbell Reith Hill LLP,0
South Ribble Borough Council,http://statistics.data.gov.uk/id/local-authority/30UE,COMP-Commercial and Property,Cap Contract Payment,C230,GEOTECHNICAL ENGINEERING CONSULTANCY SERVICES - EXTRA CARE WEST PADDOCK,22/07/2022,0000480236,"1,735.41",Revenue,Campbell Reith Hill LLP,0
South Ribble Borough Council,http://statistics.data.gov.uk/id/local-authority/30UE,COMP-Commercial and Property,Cap Contract Payment,C230,GEOTECHNICAL ENGINEERING CONSULTANCY SERVICES - EXTRA CARE WEST PADDOCK,22/07/2022,0000480237,"2,000.00",Revenue,Campbell Reith Hill LLP,0
South Ribble Borough Council,http://statistics.data.gov.uk/id/local-authority/30UE,CDIG-Customer and Digital,Software Licensing,4243,CAPITA RENX 2022-019: Software Changes relating to Public Lavatory Relief for business rates per correspondence dated 28/02/2022.,01/07/2022,0000479668,"1,549.85",Revenue,CAPITA BUSINESS SERVICES LTD,0
South Ribble Borough Council,http://statistics.data.gov.uk/id/local-authority/30UE,PDEV-Planning and Development,Agency Staff,1121,Planning consultant to deal with Cuerdale Garden Village application.,08/07/2022,0000479679,"4,440.00",Revenue,CAPITA PROPERTY AND INFRASTRUCTURE LTD,0
South Ribble Borough Council,http://statistics.data.gov.uk/id/local-authority/30UE,PDEV-Planning and Development,Agency Staff,1121,Planning consultant to deal with Cuerdale Garden Village application.,08/07/2022,0000479696,"2,160.00",Revenue,CAPITA PROPERTY AND INFRASTRUCTURE LTD,0
South Ribble Borough Council,http://statistics.data.gov.uk/id/local-authority/30UE,PDEV-Planning and Development,Agency Staff,1121,Planning consultant to deal with Cuerdale Garden Village application.,22/07/2022,0000479864,"3,036.00",Revenue,CAPITA PROPERTY AND INFRASTRUCTURE LTD,0
South Ribble Borough Council,http://statistics.data.gov.uk/id/local-authority/30UE,CDIG-Customer and Digital,Agency Staff,1121,EXTERNAL SUPPORT FOR COUNCIL TAX AND BENEFITS,22/07/2022,0000480347,"14,546.00",Revenue,CAPITA RESOURCING LTD,0
South Ribble Borough Council,http://statistics.data.gov.uk/id/local-authority/30UE,COMU-Communities,Materials General,4040,To Supply and fit Carpet to ADDRESS REDACTED as part of Refugee Resettlement programme,29/07/2022,0000480451,950.00,Revenue,Carpets Direct,0
South Ribble Borough Council,http://statistics.data.gov.uk/id/local-authority/30UE,COMP-Commercial and Property,Licences Fee General,488B,jul-sept22,08/07/2022,0000479997,"1,125.00",Revenue,Carr Street Community Centre,0
South Ribble Borough Council,http://statistics.data.gov.uk/id/local-authority/30UE,POLY-Policy,Consultancy Fees,4541,ICT Costs relating to Covid regarding consultancy and licensing paid for by Chorley Borough Council but relating to Chorley and South Ribble.,08/07/2022,0000474921,"25,500.00",Revenue,CHORLEY BOROUGH COUNCIL,0
South Ribble Borough Council,http://statistics.data.gov.uk/id/local-authority/30UE,POLY-Policy,Software Licensing,4243,ICT Costs relating to Covid regarding consultancy and licensing paid for by Chorley Borough Council but relating to Chorley and South Ribble.,08/07/2022,0000474921,"32,737.72",Revenue,CHORLEY BOROUGH COUNCIL,0
South Ribble Borough Council,http://statistics.data.gov.uk/id/local-authority/30UE,COMU-Communities,Temporary Accommodation,5311,TH final invoice Void loss  Room clearance Flooring ,08/07/2022,0000479841,"1,319.86",Revenue,CHORLEY BOROUGH COUNCIL,0
South Ribble Borough Council,http://statistics.data.gov.uk/id/local-authority/30UE,COMU-Communities,Temporary Accommodation,5311,,08/07/2022,0000479841,"1,622.30",Revenue,CHORLEY BOROUGH COUNCIL,0
South Ribble Borough Council,http://statistics.data.gov.uk/id/local-authority/30UE,COMU-Communities,Contributions to Other Bodies,4730,SRBC Rough Sleeper Referrals ,22/07/2022,0000480275,864.00,Revenue,CHORLEY BOROUGH COUNCIL,0
South Ribble Borough Council,http://statistics.data.gov.uk/id/local-authority/30UE,COMU-Communities,Temporary Accommodation,5311,Flat 5 reserved for NAME REDACTED,29/07/2022,0000480394,300.30,Revenue,CHORLEY BOROUGH COUNCIL,0
South Ribble Borough Council,http://statistics.data.gov.uk/id/local-authority/30UE,COMP-Commercial and Property,Intruder Alarm,2035,,15/07/2022,0000479519,"2,924.03",Revenue,CHUBB LTD,0
South Ribble Borough Council,http://statistics.data.gov.uk/id/local-authority/30UE,COMP-Commercial and Property,Intruder Alarm,2035,cancelled by credit,15/07/2022,0000479750,"1,001.43",Revenue,CHUBB LTD,0
South Ribble Borough Council,http://statistics.data.gov.uk/id/local-authority/30UE,COMP-Commercial and Property,Intruder Alarm,2035,cancelled out by credit,15/07/2022,0000479814,556.20,Revenue,CHUBB LTD,0
South Ribble Borough Council,http://statistics.data.gov.uk/id/local-authority/30UE,COMP-Commercial and Property,Intruder Alarm,2035,to be cancelled by credit,15/07/2022,0000479815,"2,222.64",Revenue,CHUBB LTD,0
South Ribble Borough Council,http://statistics.data.gov.uk/id/local-authority/30UE,COMP-Commercial and Property,Intruder Alarm,2035,cancelled out by credit,15/07/2022,0000479816,265.74,Revenue,CHUBB LTD,0
South Ribble Borough Council,http://statistics.data.gov.uk/id/local-authority/30UE,COMP-Commercial and Property,Intruder Alarm,2035,cancelled by credit,15/07/2022,0000479817,431.57,Revenue,CHUBB LTD,0
South Ribble Borough Council,http://statistics.data.gov.uk/id/local-authority/30UE,COMP-Commercial and Property,Intruder Alarm,2035,Replace the 3 x faulty bullet cameras as per engineer NAME REDACTED.3 TruVision HD-TVI Bullet Camera2MPX 2.7-13.5 mm ,15/07/2022,0000480088,777.75,Revenue,CHUBB LTD,0
South Ribble Borough Council,http://statistics.data.gov.uk/id/local-authority/30UE,CDIG-Customer and Digital,Materials General,4040,"1x drag link
3x air tank
1x pedal rubber
1x seatbelt buckle
2x grill hinges
1x circlip

MX04 YNL
JFC18611",22/07/2022,0000480244,667.05,Revenue,CICELEY COMMERCIALS LTD,0
South Ribble Borough Council,http://statistics.data.gov.uk/id/local-authority/30UE,CDIG-Customer and Digital,Materials General,4040,"1x pedal rubber, 1x air filter, 1x fuel filter kit, 1x pollen filter, 1x ad blu filter, 1x gear box filter kit & 1x air dryer, MJ21 AVX, JFC18686",29/07/2022,0000480444,454.85,Revenue,CICELEY COMMERCIALS LTD,0
South Ribble Borough Council,http://statistics.data.gov.uk/id/local-authority/30UE,COMU-Communities,Operational Equip & Tools,4010,Calibration as per quote 42430 - per N Martin.,15/07/2022,0000479521,446.00,Revenue,CIRRUS RESEARCH PLC,0
South Ribble Borough Council,http://statistics.data.gov.uk/id/local-authority/30UE,POLY-Policy,Contributions to Other Bodies,4730,Provision of Grant to delivery advice services South Ribble 2022-2023,29/07/2022,0000480357,"25,000.00",Revenue,Citizens Advice Lancashire,0
South Ribble Borough Council,http://statistics.data.gov.uk/id/local-authority/30UE,CDIG-Customer and Digital,Software Licensing,4243, LSM6819ABRAbritas annual renewal - recharge to Accent Housing,08/07/2022,0000479657,"6,135.28",Revenue,CIVICA UK LTD,0
South Ribble Borough Council,http://statistics.data.gov.uk/id/local-authority/30UE,CDIG-Customer and Digital,Software Licensing,4243, LSM6819ABRAbritas annual renewal 01/07/2022,08/07/2022,0000479658,"12,872.14",Revenue,CIVICA UK LTD,0
South Ribble Borough Council,http://statistics.data.gov.uk/id/local-authority/30UE,CDIG-Customer and Digital,Software Licensing,4243, LSM6819ABRAbritas annual renewal - recharge to New progress,08/07/2022,0000479659,"6,135.28",Revenue,CIVICA UK LTD,0
South Ribble Borough Council,http://statistics.data.gov.uk/id/local-authority/30UE,COMU-Communities,Temporary Accommodation,5311,NAME REDACTED x 7 nights  24-30/6/2022,01/07/2022,0000479671,696.50,Revenue,CLAREMONT HOTEL,0
South Ribble Borough Council,http://statistics.data.gov.uk/id/local-authority/30UE,COMU-Communities,Temporary Accommodation,5311,NAME REDACTED 7 nights  24-30/5/2022 agreed with NAME REDACTED,01/07/2022,0000479671,525.00,Revenue,CLAREMONT HOTEL,0
South Ribble Borough Council,http://statistics.data.gov.uk/id/local-authority/30UE,COMU-Communities,Temporary Accommodation,5311,NAME REDACTED 7 nights  24-30/5/2022,01/07/2022,0000479671,315.00,Revenue,CLAREMONT HOTEL,0
South Ribble Borough Council,http://statistics.data.gov.uk/id/local-authority/30UE,COMU-Communities,Contributions to Other Bodies,4730,NAME REDACTED 7 nights ,01/07/2022,0000479671,315.00,Revenue,CLAREMONT HOTEL,0
South Ribble Borough Council,http://statistics.data.gov.uk/id/local-authority/30UE,COMU-Communities,Temporary Accommodation,5311,NAME REDACTED 7 nights t agreed with NAME REDACTED,01/07/2022,0000479671,315.00,Revenue,CLAREMONT HOTEL,0
South Ribble Borough Council,http://statistics.data.gov.uk/id/local-authority/30UE,COMU-Communities,Temporary Accommodation,5311,NAME REDACTED 7 nights agreed with NAME REDACTED,01/07/2022,0000479671,315.00,Revenue,CLAREMONT HOTEL,0
South Ribble Borough Council,http://statistics.data.gov.uk/id/local-authority/30UE,COMU-Communities,Temporary Accommodation,5311,NAME REDACTED and family 7 nights  13/06/2022-20/06/2022,01/07/2022,0000479672,696.50,Revenue,CLAREMONT HOTEL,0
South Ribble Borough Council,http://statistics.data.gov.uk/id/local-authority/30UE,COMU-Communities,Contributions to Other Bodies,4730,NAME REDACTED 7 nights  13/06/2022-20/06/2022,01/07/2022,0000479672,315.00,Revenue,CLAREMONT HOTEL,0
South Ribble Borough Council,http://statistics.data.gov.uk/id/local-authority/30UE,COMU-Communities,Temporary Accommodation,5311,NAME REDACTED 7 nights  13/06/2022-20/06/2022,01/07/2022,0000479672,315.00,Revenue,CLAREMONT HOTEL,0
South Ribble Borough Council,http://statistics.data.gov.uk/id/local-authority/30UE,COMU-Communities,Temporary Accommodation,5311,NAMES REDACTED and child - family room 7 nights 13/06/2022-20/06/2022,01/07/2022,0000479672,525.00,Revenue,CLAREMONT HOTEL,0
South Ribble Borough Council,http://statistics.data.gov.uk/id/local-authority/30UE,COMU-Communities,Temporary Accommodation,5311,NAME REDACTED Room Damage Costs,08/07/2022,0000479697,"2,166.00",Revenue,CLAREMONT HOTEL,0
South Ribble Borough Council,http://statistics.data.gov.uk/id/local-authority/30UE,COMU-Communities,Temporary Accommodation,5311,NAME REDACTED x 7 nights  20-27/06/2022,08/07/2022,0000479818,696.50,Revenue,CLAREMONT HOTEL,0
South Ribble Borough Council,http://statistics.data.gov.uk/id/local-authority/30UE,COMU-Communities,Contributions to Other Bodies,4730,NAME REDACTED x 7 nights  20-27/06/2022,08/07/2022,0000479818,315.00,Revenue,CLAREMONT HOTEL,0
South Ribble Borough Council,http://statistics.data.gov.uk/id/local-authority/30UE,COMU-Communities,Temporary Accommodation,5311,NAME REDACTED x nights  20-27/06/2022,08/07/2022,0000479818,315.00,Revenue,CLAREMONT HOTEL,0
South Ribble Borough Council,http://statistics.data.gov.uk/id/local-authority/30UE,COMU-Communities,Temporary Accommodation,5311,NAMES REDACTED 3 nights  20/06/2022-23/06/2022,08/07/2022,0000479819,225.00,Revenue,CLAREMONT HOTEL,0
South Ribble Borough Council,http://statistics.data.gov.uk/id/local-authority/30UE,COMU-Communities,Contributions to Other Bodies,4730,NAME REDACTED  7 nights 12/06/2022-20/06/2022,08/07/2022,0000479819,695.00,Revenue,CLAREMONT HOTEL,0
South Ribble Borough Council,http://statistics.data.gov.uk/id/local-authority/30UE,COMU-Communities,Temporary Accommodation,5311,NAME REDACTED + 2 children 4 nights 23/06/2022-27/06/2022,08/07/2022,0000479819,300.00,Revenue,CLAREMONT HOTEL,0
South Ribble Borough Council,http://statistics.data.gov.uk/id/local-authority/30UE,COMU-Communities,Temporary Accommodation,5311,NAME REDACTED 7 nights  27/06/2022-04/07/2022,08/07/2022,0000479923,696.50,Revenue,CLAREMONT HOTEL,0
South Ribble Borough Council,http://statistics.data.gov.uk/id/local-authority/30UE,COMU-Communities,Contributions to Other Bodies,4730,NAME REDACTED 4 nights  27/06/2022-01/07/2022,08/07/2022,0000479923,180.00,Revenue,CLAREMONT HOTEL,0
South Ribble Borough Council,http://statistics.data.gov.uk/id/local-authority/30UE,COMU-Communities,Temporary Accommodation,5311,NAME REDACTED 7 nights  27/06/2022-04/07/2022,08/07/2022,0000479923,315.00,Revenue,CLAREMONT HOTEL,0
South Ribble Borough Council,http://statistics.data.gov.uk/id/local-authority/30UE,COMU-Communities,Contributions to Other Bodies,4730,NAME REDACTED 7 nights  27/06/2022-04/07/2022,08/07/2022,0000479923,315.00,Revenue,CLAREMONT HOTEL,0
South Ribble Borough Council,http://statistics.data.gov.uk/id/local-authority/30UE,COMU-Communities,Temporary Accommodation,5311,NAME REDACTED and child 7 nights  27/06/2022-04/07/2022,08/07/2022,0000479923,525.00,Revenue,CLAREMONT HOTEL,0
South Ribble Borough Council,http://statistics.data.gov.uk/id/local-authority/30UE,COMU-Communities,Temporary Accommodation,5311,NAME REDACTED 7 nights  11/07/2022-18/07/2022,29/07/2022,0000480358,696.50,Revenue,CLAREMONT HOTEL,0
South Ribble Borough Council,http://statistics.data.gov.uk/id/local-authority/30UE,COMU-Communities,Contributions to Other Bodies,4730,NAME REDACTED 7 nights  11/07/2022-18/07/2022,29/07/2022,0000480358,315.00,Revenue,CLAREMONT HOTEL,0
South Ribble Borough Council,http://statistics.data.gov.uk/id/local-authority/30UE,COMU-Communities,Temporary Accommodation,5311,NAME REDACTED 7 nights  11/07/2022-18/07/2022,29/07/2022,0000480358,525.00,Revenue,CLAREMONT HOTEL,0
South Ribble Borough Council,http://statistics.data.gov.uk/id/local-authority/30UE,COMU-Communities,Temporary Accommodation,5311,NAME REDACTED 7 nights  11/07/2022-18/07/2022,29/07/2022,0000480358,315.00,Revenue,CLAREMONT HOTEL,0
South Ribble Borough Council,http://statistics.data.gov.uk/id/local-authority/30UE,COMU-Communities,Temporary Accommodation,5311,NAME REDACTED 7 nights  11/07/2022-18/07/2022,29/07/2022,0000480358,315.00,Revenue,CLAREMONT HOTEL,0
South Ribble Borough Council,http://statistics.data.gov.uk/id/local-authority/30UE,COMU-Communities,Temporary Accommodation,5311,NAME REDACTED 7 nights  11/07/2022-18/07/2022,29/07/2022,0000480358,525.00,Revenue,CLAREMONT HOTEL,0
South Ribble Borough Council,http://statistics.data.gov.uk/id/local-authority/30UE,COMP-Commercial and Property,Cap Contract Payment,C230,"For the provision of works to the pavilion, car park extension and associated works at Bamber Bridge sports hub",08/07/2022,0000479998,"140,575.20",Revenue,Code Building Solutions Limited,0
South Ribble Borough Council,http://statistics.data.gov.uk/id/local-authority/30UE,COMP-Commercial and Property,Cap Contract Payment,C230,"For the provision of works to the pavilion, car park extension and associated works at Bamber Bridge sports hub",15/07/2022,0000480160,"139,270.45",Revenue,Code Building Solutions Limited,0
South Ribble Borough Council,http://statistics.data.gov.uk/id/local-authority/30UE,COMP-Commercial and Property,Cap Contract Payment,C230,Produce 3D visuals for upcoming Leisure Centre Refurbishment Schemes. As per NAME REDACTED request ,22/07/2022,0000479626,"1,580.00",Revenue,Collinson Construction,0
South Ribble Borough Council,http://statistics.data.gov.uk/id/local-authority/30UE,COMU-Communities,Core Fund,4861,CNOS Littles,15/07/2022,0000480228,845.00,Revenue,Community Network and Outreach,0
South Ribble Borough Council,http://statistics.data.gov.uk/id/local-authority/30UE,COMU-Communities,Core Fund,4861,CNOS Seniors,15/07/2022,0000480229,"1,200.00",Revenue,Community Network and Outreach,0
South Ribble Borough Council,http://statistics.data.gov.uk/id/local-authority/30UE,COMU-Communities,Core Fund,4861,CNOS Sunshine Project,15/07/2022,0000480230,"2,000.00",Revenue,Community Network and Outreach,0
South Ribble Borough Council,http://statistics.data.gov.uk/id/local-authority/30UE,COMU-Communities,Core Fund,4861,To supply One used* 40ft shipping container,29/07/2022,0000480565,"11,115.00",Revenue,Containers Direct LTD,0
South Ribble Borough Council,http://statistics.data.gov.uk/id/local-authority/30UE,COMU-Communities,Capital Grant,C570,EMPTY HOMES GRANT  AT ADDRESS REDACTED AS PER SRBC PLANS AND QUOTE SUPPLIED,01/07/2022,0000479605,"7,500.00",Revenue,Cornerstone Building & Maintenance Ltd,0
South Ribble Borough Council,http://statistics.data.gov.uk/id/local-authority/30UE,CDIG-Customer and Digital,IT Consumables,413A,40 x Jabra Evolve 30 II Mono UC headsets ,08/07/2022,0000479771,"1,400.00",Revenue,Corptel Direct( Europe) Ltd,0
South Ribble Borough Council,http://statistics.data.gov.uk/id/local-authority/30UE,CDIG-Customer and Digital,Miscellaneous Expenses,4851,"Serve notice under Common Law to Travellers at Todd Lane South, Lostock Hall",22/07/2022,0000480277,"1,250.00",Revenue,Court Enforcement Specialists Ltd,0
South Ribble Borough Council,http://statistics.data.gov.uk/id/local-authority/30UE,CDIG-Customer and Digital,Miscellaneous Expenses,4851,Serve and Evict Travellers from Penwortham Holme Recreation Ground Leyland Road Penwortham on 14.07.22,29/07/2022,0000480439,"1,100.00",Revenue,Court Enforcement Specialists Ltd,0
South Ribble Borough Council,http://statistics.data.gov.uk/id/local-authority/30UE,CDIG-Customer and Digital,Miscellaneous Expenses,4851,"Serve notice and evict under Common Law to Travellers at land lying to the Southeast of Coote Lane, Preston PR1 111",29/07/2022,0000480453,"1,550.00",Revenue,Court Enforcement Specialists Ltd,0
South Ribble Borough Council,http://statistics.data.gov.uk/id/local-authority/30UE,CDIG-Customer and Digital,Postage General,4291,POSTAGE FOR APRIL TO SEPT 2022,01/07/2022,0000479615,"1,088.92",Revenue,CRITIQOM,0
South Ribble Borough Council,http://statistics.data.gov.uk/id/local-authority/30UE,CDIG-Customer and Digital,Franked Post,4292,Large Mailout Cllr P Foster,08/07/2022,0000479669,"2,072.20",Revenue,CRITIQOM,0
South Ribble Borough Council,http://statistics.data.gov.uk/id/local-authority/30UE,CDIG-Customer and Digital,Postage General,4291,POSTAGE FOR APRIL TO SEPT 2022,01/07/2022,0000479698,529.17,Revenue,CRITIQOM,0
South Ribble Borough Council,http://statistics.data.gov.uk/id/local-authority/30UE,CDIG-Customer and Digital,Postage General,4291,POSTAGE FOR APRIL TO SEPT 2022,15/07/2022,0000480033,980.89,Revenue,CRITIQOM,0
South Ribble Borough Council,http://statistics.data.gov.uk/id/local-authority/30UE,CDIG-Customer and Digital,Postage General,4291,POSTAGE FOR APRIL TO SEPT 2022,15/07/2022,0000480085,811.88,Revenue,CRITIQOM,0
South Ribble Borough Council,http://statistics.data.gov.uk/id/local-authority/30UE,PDEV-Planning and Development,Professional Fees,4510,Printing and posting out of large neighbour consultations for planning applications - including Pickerings farm appeal and Farington Business Park.,22/07/2022,0000480168,321.44,Revenue,CRITIQOM,0
South Ribble Borough Council,http://statistics.data.gov.uk/id/local-authority/30UE,CDIG-Customer and Digital,Postage General,4291,POSTAGE FOR APRIL TO SEPT 2022,22/07/2022,0000480282,833.77,Revenue,CRITIQOM,0
South Ribble Borough Council,http://statistics.data.gov.uk/id/local-authority/30UE,CDIG-Customer and Digital,Postage General,4291,POSTAGE FOR APRIL TO SEPT 2022,29/07/2022,0000480448,402.85,Revenue,CRITIQOM,0
South Ribble Borough Council,http://statistics.data.gov.uk/id/local-authority/30UE,COMP-Commercial and Property,Cap Contract Payment,C230,Provision of Traffic and Transport Engineering Services to support the Leyland Town Deal Development,08/07/2022,0000478845,"6,650.00",Revenue,Curtins Consulting Ltd,0
South Ribble Borough Council,http://statistics.data.gov.uk/id/local-authority/30UE,GOVE-Governance,Legal,4821,PROFESSIONAL SERVICES IN RELATION TO A CLAIM UNDER THE EQUALITY ACT 2010 - NAME REDACTED V SRBC,01/07/2022,0000479719,"1,200.00",Revenue,DAC BEACHCROFT LLP,0
South Ribble Borough Council,http://statistics.data.gov.uk/id/local-authority/30UE,COMU-Communities,Temporary Accommodation,5311,NAME REDACTED Anvil Guest House July 2022.,08/07/2022,0000479700,420.00,Revenue,David Iddon & Corrina Kellett,0
South Ribble Borough Council,http://statistics.data.gov.uk/id/local-authority/30UE,CDIG-Customer and Digital,GM Refurbishment,4657,Wet pour perimeter repairs on various areas at New Longton Playground ,22/07/2022,0000479954,"5,695.00",Revenue,DCM Projects Ltd,0
South Ribble Borough Council,http://statistics.data.gov.uk/id/local-authority/30UE,CDIG-Customer and Digital,GM Refurbishment,4657,Wet pour perimeter repairs on various areas at New Longton Playground ,15/07/2022,0000479955,264.00,Revenue,DCM Projects Ltd,0
South Ribble Borough Council,http://statistics.data.gov.uk/id/local-authority/30UE,CDIG-Customer and Digital,GM Refurbishment,4657,Urgent wet pour repairs under the swings at Withy Grove Park,22/07/2022,0000480297,850.00,Revenue,DCM Projects Ltd,0
South Ribble Borough Council,http://statistics.data.gov.uk/id/local-authority/30UE,COMU-Communities,Capital Grant,C570,DFG WORK FOR ADAPTATION FOR  LEVEL ACCESS BATHROOM AT  ADDRESS REDACTED,01/07/2022,0000479701,"4,134.00",Revenue,Deakins Plumbing & Heating Ltd,0
South Ribble Borough Council,http://statistics.data.gov.uk/id/local-authority/30UE,CDIG-Customer and Digital,Materials General,4040,1 door handle VO65 KPZ JFC18484,15/07/2022,0000479200,255.87,Revenue,DENNIS EAGLE LTD,0
South Ribble Borough Council,http://statistics.data.gov.uk/id/local-authority/30UE,CDIG-Customer and Digital,Materials General,4040,1 DOOR HANDLE VU60 HLE JFC18490,15/07/2022,0000479200,255.88,Revenue,DENNIS EAGLE LTD,0
South Ribble Borough Council,http://statistics.data.gov.uk/id/local-authority/30UE,CDIG-Customer and Digital,Materials General,4040,"2 tank straps, 2 tank strap pins VO65 KPZ JFC18322",15/07/2022,0000479201,289.47,Revenue,DENNIS EAGLE LTD,0
South Ribble Borough Council,http://statistics.data.gov.uk/id/local-authority/30UE,CDIG-Customer and Digital,Materials General,4040,1 filter kit & 1 hyd filter kit VO21 LZJ JFC18450,15/07/2022,0000479202,256.80,Revenue,DENNIS EAGLE LTD,0
South Ribble Borough Council,http://statistics.data.gov.uk/id/local-authority/30UE,CDIG-Customer and Digital,Materials General,4040,3X Valves VO65 KPX JFC 18487,15/07/2022,0000479313,467.43,Revenue,DENNIS EAGLE LTD,0
South Ribble Borough Council,http://statistics.data.gov.uk/id/local-authority/30UE,CDIG-Customer and Digital,Materials General,4040,Exhaust brake housing VO65 KPX JFC 18487,15/07/2022,0000479634,719.38,Revenue,DENNIS EAGLE LTD,0
South Ribble Borough Council,http://statistics.data.gov.uk/id/local-authority/30UE,CDIG-Customer and Digital,Materials General,4040,Exhaust Gasket  VO65 KPX JFC 18487,15/07/2022,0000479634,9.06,Revenue,DENNIS EAGLE LTD,0
South Ribble Borough Council,http://statistics.data.gov.uk/id/local-authority/30UE,CDIG-Customer and Digital,Materials General,4040,"1x ball joint, 1x seatbelt guide, 1x filter kit, 1x hydraulic filter, VU60 HLE, JFC18576",15/07/2022,0000479821,672.84,Revenue,DENNIS EAGLE LTD,0
South Ribble Borough Council,http://statistics.data.gov.uk/id/local-authority/30UE,CDIG-Customer and Digital,Materials General,4040,"1x drag link, VU60 HLE, JFC18576",15/07/2022,0000479822,625.66,Revenue,DENNIS EAGLE LTD,0
South Ribble Borough Council,http://statistics.data.gov.uk/id/local-authority/30UE,CDIG-Customer and Digital,Materials General,4040,1 turbo pipe upper 1 turbo pipe lower 4 clamps exhaust sock V065KPX JFC18487,15/07/2022,0000479956,956.08,Revenue,DENNIS EAGLE LTD,0
South Ribble Borough Council,http://statistics.data.gov.uk/id/local-authority/30UE,COMP-Commercial and Property,Intruder Alarm,2035,match against credit FM2219,08/07/2022,0000479265,300.00,Revenue,DES Electrical Services Ltd,0
South Ribble Borough Council,http://statistics.data.gov.uk/id/local-authority/30UE,COMP-Commercial and Property,Planned Annual Repair & Maintenance,2021,To carry out Fixed Wire Test at the following properties as per NAME REDACTED: Carr Street Community Centre,15/07/2022,0000480169,260.00,Revenue,DES Electrical Services Ltd,0
South Ribble Borough Council,http://statistics.data.gov.uk/id/local-authority/30UE,COMP-Commercial and Property,Planned Annual Repair & Maintenance,2021,"12th May 2022  Fire Alarm - Visit at Pearson House, Station Road, Bamber Bridge, Preston, PR5 6TJ.",15/07/2022,0000480231,250.00,Revenue,DES Electrical Services Ltd,0
South Ribble Borough Council,http://statistics.data.gov.uk/id/local-authority/30UE,COMP-Commercial and Property,Misc Capital Payments,C234,"Fire Alarm Systems Installation, Vernon Carus, Factory Lane, Preston, PR1 9SN ",15/07/2022,0000480232,"10,945.00",Revenue,DES Electrical Services Ltd,0
South Ribble Borough Council,http://statistics.data.gov.uk/id/local-authority/30UE,COMP-Commercial and Property,Planned Annual Repair & Maintenance,2021,Higher Walton Community Centre,22/07/2022,0000480291,260.00,Revenue,DES Electrical Services Ltd,0
South Ribble Borough Council,http://statistics.data.gov.uk/id/local-authority/30UE,COMP-Commercial and Property,Planned Annual Repair & Maintenance,2021,"Leyland Market, Northcote Street Leyland",22/07/2022,0000480298,520.00,Revenue,DES Electrical Services Ltd,0
South Ribble Borough Council,http://statistics.data.gov.uk/id/local-authority/30UE,COMP-Commercial and Property,Changing Accommodation -R&M,2024,"Moss Side Pavilion, Leyland",22/07/2022,0000480317,260.00,Revenue,DES Electrical Services Ltd,0
South Ribble Borough Council,http://statistics.data.gov.uk/id/local-authority/30UE,COMP-Commercial and Property,Planned Annual Repair & Maintenance,2021,"Moss Side Community Centre, Off Dunkirk Lane, Leyland",22/07/2022,0000480318,260.00,Revenue,DES Electrical Services Ltd,0
South Ribble Borough Council,http://statistics.data.gov.uk/id/local-authority/30UE,COMP-Commercial and Property,Planned Annual Repair & Maintenance,2021,"Moss Side Depot, Bison Place, Leyland",22/07/2022,0000480323,900.00,Revenue,DES Electrical Services Ltd,0
South Ribble Borough Council,http://statistics.data.gov.uk/id/local-authority/30UE,COMP-Commercial and Property,Public Relations Strategy,4848,2 Packs of 100 South Ribble Lanyards 5 Packs of 100  BioBadge Clear Open Faced Holders Landscape,22/07/2022,0000479957,409.90,Revenue,DIGITAL ID LTD,0
South Ribble Borough Council,http://statistics.data.gov.uk/id/local-authority/30UE,CDIG-Customer and Digital,Computer Equipment,4241,1x Smart-51D Dual-Sided Colour Printer with Ethernet - 651406 2x Smart 51 & 31 YMCKO Colour Ribbon inc Cleaning Roller - 250,29/07/2022,0000480401,"1,157.85",Revenue,DIGITAL ID LTD,0
South Ribble Borough Council,http://statistics.data.gov.uk/id/local-authority/30UE,COMP-Commercial and Property,Cap Contract Payment,C230,Rental of Temp caf� pod for Worden refurb  as per NAME REDACTED request - ,08/07/2022,0000479910,"2,060.00",Revenue,DP STRUCTURES LTD,0
South Ribble Borough Council,http://statistics.data.gov.uk/id/local-authority/30UE,COMP-Commercial and Property,Cap Contract Payment,C230,"Supply, delivery and installation of FFE to Worden Hall",29/07/2022,0000480198,"22,778.43",Revenue,Dragonfly Contracts Ltd,0
South Ribble Borough Council,http://statistics.data.gov.uk/id/local-authority/30UE,COMP-Commercial and Property,Misc Capital Payments,C234,Vernon Carus Site - Option 2 as per email and Jason request 24th May 2022,29/07/2022,0000480485,"5,688.77",Revenue,ELECTRICITY NORTH WEST LTD,0
South Ribble Borough Council,http://statistics.data.gov.uk/id/local-authority/30UE,COMP-Commercial and Property,Cap Contract Payment,C230,"BREEAM AP consultancy services RIBA Stage 3-6 - Jubilee Gardens Extra Care Project, West Paddock in Leyland",29/07/2022,0000480437,"1,850.00",Revenue,Energy Council Ltd is a Trading Name of EC Energy,0
South Ribble Borough Council,http://statistics.data.gov.uk/id/local-authority/30UE,CDIG-Customer and Digital,Materials General,4040,Adblue dosing/pump unit VO65 KPX JFC 18487,22/07/2022,0000480287,700.00,Revenue,Euro Municipals Ltd,0
South Ribble Borough Council,http://statistics.data.gov.uk/id/local-authority/30UE,COMU-Communities,Core Fund,4861,Distribution of 6500 newsletters to every household in the Western Parishes as discussed and agreed,15/07/2022,0000480156,780.00,Revenue,EUROMEDIA ASSOCIATES LTD,0
South Ribble Borough Council,http://statistics.data.gov.uk/id/local-authority/30UE,CDIG-Customer and Digital,Manual Control,0001,,08/07/2022,0000479395,365.00,Revenue,Evans Halshaw (Northern) Ltd,0
South Ribble Borough Council,http://statistics.data.gov.uk/id/local-authority/30UE,CDIG-Customer and Digital,Materials General,4040,DPF PN65 HWJ JFC 18559,08/07/2022,0000479907,793.29,Revenue,EVANSHALSHAW (PRESTON) LTD,0
South Ribble Borough Council,http://statistics.data.gov.uk/id/local-authority/30UE,COMU-Communities,Contributions to Other Bodies,4730,Remainder of Floating Support contract 01.04.22  31.07.22,01/07/2022,0000479636,"9,898.34",Revenue,Excel Housing Solutions,0
South Ribble Borough Council,http://statistics.data.gov.uk/id/local-authority/30UE,CDIG-Customer and Digital,Software Licensing,4243,Annual subscription,15/07/2022,0000479656,"1,600.00",Revenue,EXPERIAN LTD,0
South Ribble Borough Council,http://statistics.data.gov.uk/id/local-authority/30UE,CDIG-Customer and Digital,Software Licensing,4243,Annual subscription,15/07/2022,0000479827,"4,215.23",Revenue,EXPERIAN LTD,0
South Ribble Borough Council,http://statistics.data.gov.uk/id/local-authority/30UE,CDIG-Customer and Digital,Materials General,4040,Pump Seal Kit BIN 1040- Bush x12 BIN 1041- Dec pin x6 BIN 1265 - Bottom blades x12 BIN 1114- Bottom Blade Screws x84 BIN 1042 ,01/07/2022,0000479196,911.84,Revenue,F R SHARROCK LTD,0
South Ribble Borough Council,http://statistics.data.gov.uk/id/local-authority/30UE,CDIG-Customer and Digital,Materials General,4040,10 x Pivot Bars BIN 1252,15/07/2022,0000480025,475.80,Revenue,F R SHARROCK LTD,0
South Ribble Borough Council,http://statistics.data.gov.uk/id/local-authority/30UE,CDIG-Customer and Digital,Materials General,4040,12x Bottom blades BIN 1265,15/07/2022,0000480025,453.96,Revenue,F R SHARROCK LTD,0
South Ribble Borough Council,http://statistics.data.gov.uk/id/local-authority/30UE,CDIG-Customer and Digital,Materials General,4040,90x Bottom blade screws BIN 1114,15/07/2022,0000480025,31.50,Revenue,F R SHARROCK LTD,0
South Ribble Borough Council,http://statistics.data.gov.uk/id/local-authority/30UE,CDIG-Customer and Digital,Materials General,4040,9 X Deck pin bush BIN 1040,15/07/2022,0000480025,29.07,Revenue,F R SHARROCK LTD,0
South Ribble Borough Council,http://statistics.data.gov.uk/id/local-authority/30UE,CDIG-Customer and Digital,Materials General,4040,6 x Baring housing seal spacer BIN 1046,15/07/2022,0000480025,89.46,Revenue,F R SHARROCK LTD,0
South Ribble Borough Council,http://statistics.data.gov.uk/id/local-authority/30UE,CDIG-Customer and Digital,Materials General,4040,2x spindle assemblys PMR 36A1 JFC 18540,15/07/2022,0000480108,380.00,Revenue,F R SHARROCK LTD,0
South Ribble Borough Council,http://statistics.data.gov.uk/id/local-authority/30UE,CDIG-Customer and Digital,Materials General,4040,Bell housing,15/07/2022,0000480109,380.23,Revenue,F R SHARROCK LTD,0
South Ribble Borough Council,http://statistics.data.gov.uk/id/local-authority/30UE,CDIG-Customer and Digital,External Contractors Charges,4570,Backdated Pay Award 20/21 - Waste Contract,01/07/2022,0000479670,"6,346.31",Revenue,FCC Environment Services (UK) Ltd,0
South Ribble Borough Council,http://statistics.data.gov.uk/id/local-authority/30UE,CDIG-Customer and Digital,External Contractors Charges,4570,Additional Clinical Waste Collections May 2022,08/07/2022,0000479770,477.04,Revenue,FCC Environment Services (UK) Ltd,0
South Ribble Borough Council,http://statistics.data.gov.uk/id/local-authority/30UE,CDIG-Customer and Digital,External Contractors Charges,4570,Residual Waste April 2022- Catch up,08/07/2022,0000479974,"1,502.20",Revenue,FCC Environment Services (UK) Ltd,0
South Ribble Borough Council,http://statistics.data.gov.uk/id/local-authority/30UE,CDIG-Customer and Digital,External Contractors Charges,4570,Dry Recycable non terraced April 2022 - Catch up,08/07/2022,0000479974,"1,537.82",Revenue,FCC Environment Services (UK) Ltd,0
South Ribble Borough Council,http://statistics.data.gov.uk/id/local-authority/30UE,CDIG-Customer and Digital,External Contractors Charges,4570,Dry recycable terraced April 2022 -Catch up,08/07/2022,0000479974,73.20,Revenue,FCC Environment Services (UK) Ltd,0
South Ribble Borough Council,http://statistics.data.gov.uk/id/local-authority/30UE,CDIG-Customer and Digital,External Contractors Charges,4570,Organic waste non terraced April 2022 - Catch up,08/07/2022,0000479974,"1,064.73",Revenue,FCC Environment Services (UK) Ltd,0
South Ribble Borough Council,http://statistics.data.gov.uk/id/local-authority/30UE,CDIG-Customer and Digital,External Contractors Charges,4570,Schedule 2 properties April 2022 - Catch up,08/07/2022,0000479974,61.24,Revenue,FCC Environment Services (UK) Ltd,0
South Ribble Borough Council,http://statistics.data.gov.uk/id/local-authority/30UE,CDIG-Customer and Digital,External Contractors Charges,4570,Commercial Waste April 2022 - Catch up,08/07/2022,0000479974,238.40,Revenue,FCC Environment Services (UK) Ltd,0
South Ribble Borough Council,http://statistics.data.gov.uk/id/local-authority/30UE,CDIG-Customer and Digital,External Contractors Charges,4570,Bulky waste April 2022 - Catch up,08/07/2022,0000479974,33.09,Revenue,FCC Environment Services (UK) Ltd,0
South Ribble Borough Council,http://statistics.data.gov.uk/id/local-authority/30UE,CDIG-Customer and Digital,External Contractors Charges,4570,WEEE collections April 2022 - Catch up,08/07/2022,0000479974,12.43,Revenue,FCC Environment Services (UK) Ltd,0
South Ribble Borough Council,http://statistics.data.gov.uk/id/local-authority/30UE,CDIG-Customer and Digital,External Contractors Charges,4570,Clinical waste collections April 2022 - Catch up,08/07/2022,0000479974,21.18,Revenue,FCC Environment Services (UK) Ltd,0
South Ribble Borough Council,http://statistics.data.gov.uk/id/local-authority/30UE,CDIG-Customer and Digital,External Contractors Charges,4570,Replacement bins April 2022 - Catch up,08/07/2022,0000479974,163.85,Revenue,FCC Environment Services (UK) Ltd,0
South Ribble Borough Council,http://statistics.data.gov.uk/id/local-authority/30UE,CDIG-Customer and Digital,External Contractors Charges,4570,Additional properties April 2022- Catch up,08/07/2022,0000479974,171.52,Revenue,FCC Environment Services (UK) Ltd,0
South Ribble Borough Council,http://statistics.data.gov.uk/id/local-authority/30UE,CDIG-Customer and Digital,External Contractors Charges,4570,Residual Waste Collection May 2022- Catch up,08/07/2022,0000479975,"1,553.96",Revenue,FCC Environment Services (UK) Ltd,0
South Ribble Borough Council,http://statistics.data.gov.uk/id/local-authority/30UE,CDIG-Customer and Digital,External Contractors Charges,4570,Dry recycable non terrace May 2022- Catch up,08/07/2022,0000479975,"1,590.79",Revenue,FCC Environment Services (UK) Ltd,0
South Ribble Borough Council,http://statistics.data.gov.uk/id/local-authority/30UE,CDIG-Customer and Digital,External Contractors Charges,4570,Dry Recycable terrace May 2022 - Catch up,08/07/2022,0000479975,75.72,Revenue,FCC Environment Services (UK) Ltd,0
South Ribble Borough Council,http://statistics.data.gov.uk/id/local-authority/30UE,CDIG-Customer and Digital,External Contractors Charges,4570,Organic waste non terrace May 2022 - Catch up,08/07/2022,0000479975,"1,101.41",Revenue,FCC Environment Services (UK) Ltd,0
South Ribble Borough Council,http://statistics.data.gov.uk/id/local-authority/30UE,CDIG-Customer and Digital,External Contractors Charges,4570,Schedule 2 properties May 2022- Catch up,08/07/2022,0000479975,63.35,Revenue,FCC Environment Services (UK) Ltd,0
South Ribble Borough Council,http://statistics.data.gov.uk/id/local-authority/30UE,CDIG-Customer and Digital,External Contractors Charges,4570,Commercial waste collections May 2022- Catch up,08/07/2022,0000479975,246.61,Revenue,FCC Environment Services (UK) Ltd,0
South Ribble Borough Council,http://statistics.data.gov.uk/id/local-authority/30UE,CDIG-Customer and Digital,External Contractors Charges,4570,Bulky waste collections May 2022 - Catch up,08/07/2022,0000479975,34.23,Revenue,FCC Environment Services (UK) Ltd,0
South Ribble Borough Council,http://statistics.data.gov.uk/id/local-authority/30UE,CDIG-Customer and Digital,External Contractors Charges,4570,WEEE collections May 2022 - Catch up,08/07/2022,0000479975,12.86,Revenue,FCC Environment Services (UK) Ltd,0
South Ribble Borough Council,http://statistics.data.gov.uk/id/local-authority/30UE,CDIG-Customer and Digital,External Contractors Charges,4570,Clinical waste collections May 2022 - Catch up,08/07/2022,0000479975,21.92,Revenue,FCC Environment Services (UK) Ltd,0
South Ribble Borough Council,http://statistics.data.gov.uk/id/local-authority/30UE,CDIG-Customer and Digital,External Contractors Charges,4570,Replacement bins May 2022 - Catch up,08/07/2022,0000479975,164.03,Revenue,FCC Environment Services (UK) Ltd,0
South Ribble Borough Council,http://statistics.data.gov.uk/id/local-authority/30UE,CDIG-Customer and Digital,External Contractors Charges,4570,Additional properties May 2022- Catch up,08/07/2022,0000479975,177.42,Revenue,FCC Environment Services (UK) Ltd,0
South Ribble Borough Council,http://statistics.data.gov.uk/id/local-authority/30UE,CDIG-Customer and Digital,Software Licensing,4243,Single Sign-On (SSO) for Revenue & Benefits - Charge,01/07/2022,0000479471,"7,500.00",Revenue,FIRMSTEP,0
South Ribble Borough Council,http://statistics.data.gov.uk/id/local-authority/30UE,CDIG-Customer and Digital,Computer Maintenance,4211,Monthly FleetCheck Maintenance Contract 1.6.22 - 1.6.23,22/07/2022,0000480202,"3,561.60",Revenue,FLEETCHECK LTD,0
South Ribble Borough Council,http://statistics.data.gov.uk/id/local-authority/30UE,CDIG-Customer and Digital,Computer Maintenance,4211,Monthly FleetCheck Maintenance Contract,22/07/2022,0000480337,"3,434.40",Revenue,FLEETCHECK LTD,0
South Ribble Borough Council,http://statistics.data.gov.uk/id/local-authority/30UE,POLY-Policy,External Catering Charges,4575,Catering for MITP acts on Worden Park,08/07/2022,0000479705,961.67,Revenue,Folly Coffee House,0
South Ribble Borough Council,http://statistics.data.gov.uk/id/local-authority/30UE,CDIG-Customer and Digital,GM Refurbishment,4657,"Tea & Coffee and buffet for May 6,7 and 8 for archaeology event, Hurst Grange Park",08/07/2022,0000479969,"1,350.00",Revenue,Folly Coffee House,0
South Ribble Borough Council,http://statistics.data.gov.uk/id/local-authority/30UE,CDIG-Customer and Digital,External Contractors Charges,4570,T1080-P-0 - CPC Refresher for Freight Operators (2 day) for NAME REDACTED (Leeds 25th July 2022),08/07/2022,0000479190,505.00,Revenue,FREIGHT TRANSPORT ASSOCIATION,0
South Ribble Borough Council,http://statistics.data.gov.uk/id/local-authority/30UE,CDIG-Customer and Digital,External Contractors Charges,4570,TA0191 -1 Digital Management Fee 11-15 Drivers,08/07/2022,0000479528,"1,126.00",Revenue,FREIGHT TRANSPORT ASSOCIATION,0
South Ribble Borough Council,http://statistics.data.gov.uk/id/local-authority/30UE,CDIG-Customer and Digital,External Contractors Charges,4570,S4478 - Digipostpro LAN,08/07/2022,0000479754,628.30,Revenue,FREIGHT TRANSPORT ASSOCIATION,0
South Ribble Borough Council,http://statistics.data.gov.uk/id/local-authority/30UE,CDIG-Customer and Digital,Subscriptions General,4721,Public Service Membership 2022-23,08/07/2022,0000479993,"1,150.00",Revenue,FREIGHT TRANSPORT ASSOCIATION,0
South Ribble Borough Council,http://statistics.data.gov.uk/id/local-authority/30UE,COMU-Communities,Core Fund,4861,Support the purchase of a bench for the school,08/07/2022,0000479529,500.00,Revenue,Friends of Coupe Green,0
South Ribble Borough Council,http://statistics.data.gov.uk/id/local-authority/30UE,COMU-Communities,Core Fund,4861,Moss Lane station entrance planters,15/07/2022,0000480213,"1,500.00",Revenue,Friends of Leyland Station,0
South Ribble Borough Council,http://statistics.data.gov.uk/id/local-authority/30UE,CDIG-Customer and Digital,Petrol,3131,Fuel W/C 13.06.2022,08/07/2022,0000479991,347.01,Revenue,Fuel Card Services,0
South Ribble Borough Council,http://statistics.data.gov.uk/id/local-authority/30UE,CDIG-Customer and Digital,Petrol,3131,Fuel W/C 04.07.22,22/07/2022,0000480284,253.95,Revenue,Fuel Card Services,0
South Ribble Borough Council,http://statistics.data.gov.uk/id/local-authority/30UE,CDIG-Customer and Digital,Petrol,3131,Fuel W/C 11.07.22,29/07/2022,0000480440,351.01,Revenue,Fuel Card Services,0
South Ribble Borough Council,http://statistics.data.gov.uk/id/local-authority/30UE,COMU-Communities,Reactive Repair & Maintenance,2020,Repairs to cabin door at Broadfield Drive Community Garden as per quote discussed and agreed,29/07/2022,0000480461,300.00,Revenue,G S F (Lancs) Ltd,0
South Ribble Borough Council,http://statistics.data.gov.uk/id/local-authority/30UE,COMP-Commercial and Property,Reactive Repair & Maintenance,2020,To inspect and repair leaking roof at Bamber Bridge Leisure Centre. price to TBC a per NAME REDACTED request,15/07/2022,0000480114,277.50,Revenue,Gables Uk Ltd,0
South Ribble Borough Council,http://statistics.data.gov.uk/id/local-authority/30UE,COMU-Communities,Contributions to Other Bodies,4730,VRF to cover deposit and RIA for VJ 37b Linden Drive Lostock Hall,15/07/2022,0000480200,930.00,Revenue,GAPP DEVELOPMENTS,0
South Ribble Borough Council,http://statistics.data.gov.uk/id/local-authority/30UE,COMP-Commercial and Property,Reactive Repair & Maintenance,2020,Annual Contract for the maintenance of flagpoles 2022/2023 at various sites ,08/07/2022,0000479638,"1,198.00",Revenue,GLASSFIBRE FLAGPOLES LTD,0
South Ribble Borough Council,http://statistics.data.gov.uk/id/local-authority/30UE,COMP-Commercial and Property,Reactive Repair & Maintenance,2020,Annual Contract for the maintenance of flagpoles 2022/2023 at various sites ,08/07/2022,0000479639,250.00,Revenue,GLASSFIBRE FLAGPOLES LTD,0
South Ribble Borough Council,http://statistics.data.gov.uk/id/local-authority/30UE,COMP-Commercial and Property,Reactive Repair & Maintenance,2020,Annual Contract for the maintenance of flagpoles 2022/2023 at various sites ,08/07/2022,0000479640,250.00,Revenue,GLASSFIBRE FLAGPOLES LTD,0
South Ribble Borough Council,http://statistics.data.gov.uk/id/local-authority/30UE,COMP-Commercial and Property,Reactive Repair & Maintenance,2020,Annual Contract for the maintenance of flagpoles 2022/2023 at various sites ,08/07/2022,0000479641,250.00,Revenue,GLASSFIBRE FLAGPOLES LTD,0
South Ribble Borough Council,http://statistics.data.gov.uk/id/local-authority/30UE,COMU-Communities,Capital Grant,C570,DFG WORK FOR ADAPTATION FOR BATHROOM  AT ADDRESS REDACTED AS PER SRBC PLANS AND QUOTE SUPPLIED,08/07/2022,0000479960,"3,648.12",Revenue,GOS Heating Ltd,0
South Ribble Borough Council,http://statistics.data.gov.uk/id/local-authority/30UE,COMU-Communities,Capital Grant,C570,DISREPAIR WORK FOR HEATING AT 84 LEADALE ROAD LEYLAND PR25 1QR AS PER QUOTE SUPPLIED OF ,15/07/2022,0000480046,"1,509.22",Revenue,GOS Heating Ltd,0
South Ribble Borough Council,http://statistics.data.gov.uk/id/local-authority/30UE,COMP-Commercial and Property,Planned Annual Repair & Maintenance,2021,"Annual Service 2022/2023 as per Quote date 17th March 2022 for the following Properties as per NAME REDACTED, North Lodge, Worden Park",15/07/2022,0000480093,270.00,Revenue,GOS Heating Ltd,0
South Ribble Borough Council,http://statistics.data.gov.uk/id/local-authority/30UE,COMP-Commercial and Property,Planned Annual Repair & Maintenance,2021,"Leyland Market, Northcote Street",15/07/2022,0000480093,739.00,Revenue,GOS Heating Ltd,0
South Ribble Borough Council,http://statistics.data.gov.uk/id/local-authority/30UE,COMP-Commercial and Property,Planned Annual Repair & Maintenance,2021,"The Museum , Church Road",15/07/2022,0000480093,270.00,Revenue,GOS Heating Ltd,0
South Ribble Borough Council,http://statistics.data.gov.uk/id/local-authority/30UE,COMP-Commercial and Property,Planned Annual Repair & Maintenance,2021,Holland House Park Changing Facilities,15/07/2022,0000480093,892.50,Revenue,GOS Heating Ltd,0
South Ribble Borough Council,http://statistics.data.gov.uk/id/local-authority/30UE,COMP-Commercial and Property,Planned Annual Repair & Maintenance,2021,"Civic Centre, West Paddock",15/07/2022,0000480093,"3,600.00",Revenue,GOS Heating Ltd,0
South Ribble Borough Council,http://statistics.data.gov.uk/id/local-authority/30UE,COMP-Commercial and Property,Maintenance & Repair,4013,"Civic Centre Catering, West Paddock",15/07/2022,0000480093,366.00,Revenue,GOS Heating Ltd,0
South Ribble Borough Council,http://statistics.data.gov.uk/id/local-authority/30UE,COMP-Commercial and Property,Planned Annual Repair & Maintenance,2021,"Moss Side Community Centre, Dunkirk Lane",15/07/2022,0000480093,365.00,Revenue,GOS Heating Ltd,0
South Ribble Borough Council,http://statistics.data.gov.uk/id/local-authority/30UE,COMP-Commercial and Property,Planned Annual Repair & Maintenance,2021,"Moss Side Depot, ADDRESS REDACTED",15/07/2022,0000480093,"1,407.00",Revenue,GOS Heating Ltd,0
South Ribble Borough Council,http://statistics.data.gov.uk/id/local-authority/30UE,COMP-Commercial and Property,Planned Annual Repair & Maintenance,2021,"Welcome Hall , Carr Street",15/07/2022,0000480093,465.00,Revenue,GOS Heating Ltd,0
South Ribble Borough Council,http://statistics.data.gov.uk/id/local-authority/30UE,COMP-Commercial and Property,Planned Annual Repair & Maintenance,2021,ADDRESS REDACTED,15/07/2022,0000480093,270.00,Revenue,GOS Heating Ltd,0
South Ribble Borough Council,http://statistics.data.gov.uk/id/local-authority/30UE,COMP-Commercial and Property,Planned Annual Repair & Maintenance,2021,"Kingsfold Community Centre, Kingsfold Drive",15/07/2022,0000480093,487.50,Revenue,GOS Heating Ltd,0
South Ribble Borough Council,http://statistics.data.gov.uk/id/local-authority/30UE,COMP-Commercial and Property,Reactive Repair & Maintenance,2020,"This is to fit a new gas flue, requiring re-routeing, following the removal of the defective chimney stacks, 4 farmyard cottage",15/07/2022,0000480117,"1,595.00",Revenue,GOS Heating Ltd,0
South Ribble Borough Council,http://statistics.data.gov.uk/id/local-authority/30UE,COMU-Communities,Capital Grant,C570,DISREPAIR WORK FOR HEATING AT 21 BUTLERS FARM COURT LEYLAND PR25 1LF AS PER QUOTE SUPPLIED,29/07/2022,0000480195,"1,886.05",Revenue,GOS Heating Ltd,0
South Ribble Borough Council,http://statistics.data.gov.uk/id/local-authority/30UE,COMP-Commercial and Property,Cap Contract Payment,C230,Leyland Town Deal Project - Procurement Strategy - Stage 2,08/07/2022,0000479752,"2,153.00",Revenue,Gosling Consulting Limited,0
South Ribble Borough Council,http://statistics.data.gov.uk/id/local-authority/30UE,COMP-Commercial and Property,Cap Contract Payment,C230,Consultancy Services - McKenzie Arms,08/07/2022,0000479840,"2,887.50",Revenue,Gosling Consulting Limited,0
South Ribble Borough Council,http://statistics.data.gov.uk/id/local-authority/30UE,COMP-Commercial and Property,Cap Contract Payment,C230,Leyland Town Deal Project - Procurement Strategy - Stage 2,08/07/2022,0000479846,"2,153.16",Revenue,Gosling Consulting Limited,0
South Ribble Borough Council,http://statistics.data.gov.uk/id/local-authority/30UE,COMP-Commercial and Property,Cap Contract Payment,C230,Consultancy Services - McKenzie Arms,08/07/2022,0000479847,"2,887.50",Revenue,Gosling Consulting Limited,0
South Ribble Borough Council,http://statistics.data.gov.uk/id/local-authority/30UE,COMP-Commercial and Property,Cap Contract Payment,C230,"QS & PM Services, Worden Hall  assigned to McKenzie Arms code due to error of previously assigning invoice for McKenzie Arms to Worden Hall ",29/07/2022,0000480463,"3,449.99",Revenue,Gosling Consulting Limited,0
South Ribble Borough Council,http://statistics.data.gov.uk/id/local-authority/30UE,COMP-Commercial and Property,Cap Contract Payment,C230,Extension of Time - PM & QS Services - Worden Hall Refurbishment Project ,29/07/2022,0000480552,"9,528.75",Revenue,Gosling Consulting Limited,0
South Ribble Borough Council,http://statistics.data.gov.uk/id/local-authority/30UE,POLY-Policy,External Audit Fees,4512,2021-22 Audit,08/07/2022,0000479354,"8,455.25",Revenue,Grant Thornton UK LLP,0
South Ribble Borough Council,http://statistics.data.gov.uk/id/local-authority/30UE,POLY-Policy,Professional Fees,4510,NAME REDACTED Awards Table,01/07/2022,0000479610,"2,795.00",Revenue,HEMMING GROUP LTD,0
South Ribble Borough Council,http://statistics.data.gov.uk/id/local-authority/30UE,COMP-Commercial and Property,Licences Fee General,488B,mgmt fee jul-sept 22,08/07/2022,0000479996,"1,000.00",Revenue,HIGHER WALTON COMMUNITY CENTRE,0
South Ribble Borough Council,http://statistics.data.gov.uk/id/local-authority/30UE,CDIG-Customer and Digital,External Contractors Charges,4570,1 X TANK REPAIR VO65 KPZ JFC18322,08/07/2022,0000479186,187.25,Revenue,Holdens CVE Limited,0
South Ribble Borough Council,http://statistics.data.gov.uk/id/local-authority/30UE,CDIG-Customer and Digital,External Contractors Charges,4570,1 INTAKE PIPE REPAIR,08/07/2022,0000479186,95.27,Revenue,Holdens CVE Limited,0
South Ribble Borough Council,http://statistics.data.gov.uk/id/local-authority/30UE,COMU-Communities,Core Fund,4861,To Supply the following items  1x Bespoke Zinc Etched Lectern Design Carriage,15/07/2022,0000479825,"3,880.00",Revenue,Hornbeck Ltd T/A Landmark,0
South Ribble Borough Council,http://statistics.data.gov.uk/id/local-authority/30UE,CDIG-Customer and Digital,Cap Contract Payment,C230,30No. Interiror plants for Worden Hall,22/07/2022,0000480159,"1,659.75",Revenue,House of Plants,0
South Ribble Borough Council,http://statistics.data.gov.uk/id/local-authority/30UE,CDIG-Customer and Digital,Consultancy Fees,4541,Intranet Consultancy for Development as per Template x5,15/07/2022,0000480039,"3,900.00",Revenue,Hybrit Services Limited,0
South Ribble Borough Council,http://statistics.data.gov.uk/id/local-authority/30UE,CDIG-Customer and Digital,GM Refurbishment,4657,x4 Prosafe gate major repair kits(with self- closing mechanism) in yellow,15/07/2022,0000479961,900.00,Revenue,IAE,0
South Ribble Borough Council,http://statistics.data.gov.uk/id/local-authority/30UE,COMU-Communities,Professional Fees,4510,HAF photography for the day in the Easter holidays,08/07/2022,0000479587,450.00,Revenue,REDACTED,0
South Ribble Borough Council,http://statistics.data.gov.uk/id/local-authority/30UE,GOVE-Governance,Electoral Administration Act,4970,60 Standard Canvasser bags B/W inc. 1 colour print,22/07/2022,0000480349,607.20,Revenue,ICF Grimsby Ltd,0
South Ribble Borough Council,http://statistics.data.gov.uk/id/local-authority/30UE,CDIG-Customer and Digital,Software Licensing,4243,"Annual Charge for Uniform	System Upgrade (1 per year)	Project charge for system merge 	",01/07/2022,0000479619,"32,500.00",Revenue,IDOX PLC,0
South Ribble Borough Council,http://statistics.data.gov.uk/id/local-authority/30UE,POLY-Policy,Professional Fees,4510,6 engagement sessions for the economy,08/07/2022,0000479642,"3,250.00",Revenue,iMeg Partnership,0
South Ribble Borough Council,http://statistics.data.gov.uk/id/local-authority/30UE,CDIG-Customer and Digital,Materials General,4040,QC10 - QUICK SET CONCRETE,15/07/2022,0000479963,"1,367.52",Revenue,INSTARMAC GROUP PLC,0
South Ribble Borough Council,http://statistics.data.gov.uk/id/local-authority/30UE,CDIG-Customer and Digital,Materials General,4040, SCJ BITUMEN COLD JOINT SEALER BOX OF 12,15/07/2022,0000479963,123.43,Revenue,INSTARMAC GROUP PLC,0
South Ribble Borough Council,http://statistics.data.gov.uk/id/local-authority/30UE,PDEV-Planning and Development,Individual Subs Prof. Bodies,1741,IoL Memberships 2022/2023 (Expires 31st March 2023),08/07/2022,0000479964,310.00,Revenue,INSTITUTE OF LICENSING,0
South Ribble Borough Council,http://statistics.data.gov.uk/id/local-authority/30UE,COMU-Communities,Departmental Course Fees,1420,2 places on the Local Climate Engagement Training course per NAME REDACTED,22/07/2022,0000480119,"1,248.00",Revenue,Involve Foundation,0
South Ribble Borough Council,http://statistics.data.gov.uk/id/local-authority/30UE,COMP-Commercial and Property,Reactive Repair & Maintenance,2020,"To undertake 2020/2021 EPC inspections for the following premises:- Ground Floor Brewhouse (exemption), Worden park,",01/07/2022,0000479689,500.00,Revenue,REDACTED,0
South Ribble Borough Council,http://statistics.data.gov.uk/id/local-authority/30UE,COMP-Commercial and Property,Planned Annual Repair & Maintenance,2021,"Annual Contract for 2022 - 2023 for the maintenance of the Trend BMS HVAC 4 x day visits (TBA) June, Sept, Dec, March - at the Civic Centre ",08/07/2022,0000479826,445.00,Revenue,JBC CONTROL SYSTEM,0
South Ribble Borough Council,http://statistics.data.gov.uk/id/local-authority/30UE,COMP-Commercial and Property,Reactive Repair & Maintenance,2020,South Ribble Borough Council � Ground Floor BMS remedial works Ground floor sensor upgrade at the Civic Centre as per Quote,08/07/2022,0000479977,"4,377.00",Revenue,JBC CONTROL SYSTEM,0
South Ribble Borough Council,http://statistics.data.gov.uk/id/local-authority/30UE,COMP-Commercial and Property,Reactive Repair & Maintenance,2020,Attend site to add the pressurisation unit interlock to the roof panel as per ref SB49945.01 and NAME REDACTED request ,22/07/2022,0000480311,486.00,Revenue,JBC CONTROL SYSTEM,0
South Ribble Borough Council,http://statistics.data.gov.uk/id/local-authority/30UE,COMP-Commercial and Property,Cap Contract Payment,C230,Costs for work on the refurbishment of Worden Hall Central Buildings,08/07/2022,0000479588,"433,341.40",Revenue,John Turner Construction Group Ltd,0
South Ribble Borough Council,http://statistics.data.gov.uk/id/local-authority/30UE,COMP-Commercial and Property,Cap Contract Payment,C230,1309/BLPA Bent Lane Play Area - As per NAME REDACTED request Description: bent lane remediation,01/07/2022,0000479589,"7,842.62",Revenue,John Wade Groundworks Ltd t/a Wade Group,0
South Ribble Borough Council,http://statistics.data.gov.uk/id/local-authority/30UE,COMP-Commercial and Property,Cap Contract Payment,C230,Description: Exterior refurbishments of Farmyard cottages as per NAME REDACTED request,15/07/2022,0000479643,"23,427.99",Revenue,John Wade Groundworks Ltd t/a Wade Group,0
South Ribble Borough Council,http://statistics.data.gov.uk/id/local-authority/30UE,COMP-Commercial and Property,Cap Contract Payment,C230,03/11/2021 as per NAME REDACTED original request and to cover invoice 4553 dated 24th April 2022,22/07/2022,0000480103,"2,787.00",Revenue,John Wade Groundworks Ltd t/a Wade Group,0
South Ribble Borough Council,http://statistics.data.gov.uk/id/local-authority/30UE,CDIG-Customer and Digital,Hiring Expenses,3212,1.5T Excavator & Trailer  On hire 6.6.22 for 1 week,08/07/2022,0000479532,318.10,Revenue,K H HIRE SERVICES,0
South Ribble Borough Council,http://statistics.data.gov.uk/id/local-authority/30UE,CDIG-Customer and Digital,Hiring Expenses,3212,3T excavator & Pecker from 15/06/2022 - 17/06/2022,22/07/2022,0000479804,315.00,Revenue,K H HIRE SERVICES,0
South Ribble Borough Council,http://statistics.data.gov.uk/id/local-authority/30UE,CDIG-Customer and Digital,Clothing and Uniforms,4410,GLOVES -  PU PALM SAFETY GLOVE A622 SIZE 8,08/07/2022,0000479260,216.00,Revenue,KEY ENGINEERING & HYGIENE SUPPLIES LTD,0
South Ribble Borough Council,http://statistics.data.gov.uk/id/local-authority/30UE,CDIG-Customer and Digital,Clothing and Uniforms,4410,GLOVES -  PU PALM SAFETY GLOVE A622 SIZE 9,08/07/2022,0000479260,216.00,Revenue,KEY ENGINEERING & HYGIENE SUPPLIES LTD,0
South Ribble Borough Council,http://statistics.data.gov.uk/id/local-authority/30UE,CDIG-Customer and Digital,Clothing and Uniforms,4410,GLOVES -  PU PALM SAFETY GLOVE A622 SIZE 10,08/07/2022,0000479260,216.00,Revenue,KEY ENGINEERING & HYGIENE SUPPLIES LTD,0
South Ribble Borough Council,http://statistics.data.gov.uk/id/local-authority/30UE,CDIG-Customer and Digital,Clothing and Uniforms,4410,GLOVES - WINTER A185 SIZE 8,08/07/2022,0000479260,55.20,Revenue,KEY ENGINEERING & HYGIENE SUPPLIES LTD,0
South Ribble Borough Council,http://statistics.data.gov.uk/id/local-authority/30UE,CDIG-Customer and Digital,Clothing and Uniforms,4410,GLOVES - WINTER A185 SIZE 9,08/07/2022,0000479260,55.20,Revenue,KEY ENGINEERING & HYGIENE SUPPLIES LTD,0
South Ribble Borough Council,http://statistics.data.gov.uk/id/local-authority/30UE,CDIG-Customer and Digital,Clothing and Uniforms,4410,GLOVES - WINTER A185 SIZE 10,08/07/2022,0000479260,55.20,Revenue,KEY ENGINEERING & HYGIENE SUPPLIES LTD,0
South Ribble Borough Council,http://statistics.data.gov.uk/id/local-authority/30UE,CDIG-Customer and Digital,Clothing and Uniforms,4410,Hi Vis Yellow Traffic Sweatshirt B303 SMALL c/w COLOURED SRBC LOGO FRONT LEFT BREAST & REAR HS,08/07/2022,0000479280,96.00,Revenue,KEY ENGINEERING & HYGIENE SUPPLIES LTD,0
South Ribble Borough Council,http://statistics.data.gov.uk/id/local-authority/30UE,CDIG-Customer and Digital,Clothing and Uniforms,4410,Hi Vis Yellow Traffic Sweatshirt B303 MEDIUM c/w COLOURED SRBC LOGO FRONT LEFT BREAST & REAR HS,08/07/2022,0000479280,384.00,Revenue,KEY ENGINEERING & HYGIENE SUPPLIES LTD,0
South Ribble Borough Council,http://statistics.data.gov.uk/id/local-authority/30UE,CDIG-Customer and Digital,Clothing and Uniforms,4410,Hi Vis Yellow Traffic Sweatshirt B303 LARGE c/w COLOURED SRBC LOGO FRONT LEFT BREAST & REAR HS,08/07/2022,0000479280,320.00,Revenue,KEY ENGINEERING & HYGIENE SUPPLIES LTD,0
South Ribble Borough Council,http://statistics.data.gov.uk/id/local-authority/30UE,CDIG-Customer and Digital,Clothing and Uniforms,4410,Hi Vis Yellow Traffic Sweatshirt B303 EXRA LARGE c/w COLOURED SRBC LOGO FRONT LEFT BREAST & REAR HS,08/07/2022,0000479280,192.00,Revenue,KEY ENGINEERING & HYGIENE SUPPLIES LTD,0
South Ribble Borough Council,http://statistics.data.gov.uk/id/local-authority/30UE,CDIG-Customer and Digital,Clothing and Uniforms,4410,Hi Vis Yellow Traffic Sweatshirt B303 XXL c/w COLOURED SRBC LOGO FRONT LEFT BREAST & REAR HS,08/07/2022,0000479280,96.00,Revenue,KEY ENGINEERING & HYGIENE SUPPLIES LTD,0
South Ribble Borough Council,http://statistics.data.gov.uk/id/local-authority/30UE,CDIG-Customer and Digital,Clothing and Uniforms,4410,HI VIS POLO (SHORT SLEEVED) -  SMALL  c/w SRBC LOGO FRONT LEFT BREAST & REAR HS COLOUR S477,08/07/2022,0000479281,127.04,Revenue,KEY ENGINEERING & HYGIENE SUPPLIES LTD,0
South Ribble Borough Council,http://statistics.data.gov.uk/id/local-authority/30UE,CDIG-Customer and Digital,Clothing and Uniforms,4410,HI VIS POLO (SHORT SLEEVED) -  MEDIUM  c/w SRBC LOGO FRONT LEFT BREAST & REAR HS COLOUR S477,08/07/2022,0000479281,476.40,Revenue,KEY ENGINEERING & HYGIENE SUPPLIES LTD,0
South Ribble Borough Council,http://statistics.data.gov.uk/id/local-authority/30UE,CDIG-Customer and Digital,Clothing and Uniforms,4410,HI VIS POLO (SHORT SLEEVED) -  LARGE  c/w SRBC LOGO FRONT LEFT BREAST & REAR HS COLOUR S477,08/07/2022,0000479281,476.40,Revenue,KEY ENGINEERING & HYGIENE SUPPLIES LTD,0
South Ribble Borough Council,http://statistics.data.gov.uk/id/local-authority/30UE,CDIG-Customer and Digital,Clothing and Uniforms,4410,HI VIS POLO (SHORT SLEEVED) -  EXTRA LARGE  c/w SRBC LOGO FRONT LEFT BREAST & REAR HS COLOUR S477,08/07/2022,0000479281,238.20,Revenue,KEY ENGINEERING & HYGIENE SUPPLIES LTD,0
South Ribble Borough Council,http://statistics.data.gov.uk/id/local-authority/30UE,CDIG-Customer and Digital,Clothing and Uniforms,4410,HI VIS POLO (SHORT SLEEVED) -  XXL  c/w SRBC LOGO FRONT LEFT BREAST & REAR HS COLOUR S477,08/07/2022,0000479281,95.28,Revenue,KEY ENGINEERING & HYGIENE SUPPLIES LTD,0
South Ribble Borough Council,http://statistics.data.gov.uk/id/local-authority/30UE,CDIG-Customer and Digital,Clothing and Uniforms,4410,Hi Vis Yellow AQUA Ballistic trousers (28S),08/07/2022,0000479282,180.48,Revenue,KEY ENGINEERING & HYGIENE SUPPLIES LTD,0
South Ribble Borough Council,http://statistics.data.gov.uk/id/local-authority/30UE,CDIG-Customer and Digital,Clothing and Uniforms,4410,Hi Vis Yellow AQUA Ballistic trousers (28R),08/07/2022,0000479282,135.36,Revenue,KEY ENGINEERING & HYGIENE SUPPLIES LTD,0
South Ribble Borough Council,http://statistics.data.gov.uk/id/local-authority/30UE,CDIG-Customer and Digital,Clothing and Uniforms,4410,Hi Vis Yellow AQUA Ballistic trousers (30S),08/07/2022,0000479282,270.72,Revenue,KEY ENGINEERING & HYGIENE SUPPLIES LTD,0
South Ribble Borough Council,http://statistics.data.gov.uk/id/local-authority/30UE,CDIG-Customer and Digital,Clothing and Uniforms,4410,Hi Vis Yellow AQUA Ballistic trousers (30R),08/07/2022,0000479282,225.60,Revenue,KEY ENGINEERING & HYGIENE SUPPLIES LTD,0
South Ribble Borough Council,http://statistics.data.gov.uk/id/local-authority/30UE,CDIG-Customer and Digital,Clothing and Uniforms,4410,Hi Vis Yellow AQUA Ballistic trousers (30T),08/07/2022,0000479282,112.80,Revenue,KEY ENGINEERING & HYGIENE SUPPLIES LTD,0
South Ribble Borough Council,http://statistics.data.gov.uk/id/local-authority/30UE,CDIG-Customer and Digital,Clothing and Uniforms,4410,Hi Vis Yellow AQUA Ballistic trousers (32S),08/07/2022,0000479282,270.72,Revenue,KEY ENGINEERING & HYGIENE SUPPLIES LTD,0
South Ribble Borough Council,http://statistics.data.gov.uk/id/local-authority/30UE,CDIG-Customer and Digital,Clothing and Uniforms,4410,Hi Vis Yellow AQUA Ballistic trousers (32R),08/07/2022,0000479282,676.80,Revenue,KEY ENGINEERING & HYGIENE SUPPLIES LTD,0
South Ribble Borough Council,http://statistics.data.gov.uk/id/local-authority/30UE,CDIG-Customer and Digital,Clothing and Uniforms,4410,Hi Vis Yellow AQUA Ballistic trousers (34S),08/07/2022,0000479282,676.80,Revenue,KEY ENGINEERING & HYGIENE SUPPLIES LTD,0
South Ribble Borough Council,http://statistics.data.gov.uk/id/local-authority/30UE,CDIG-Customer and Digital,Clothing and Uniforms,4410,Hi Vis Yellow AQUA Ballistic trousers (34R),08/07/2022,0000479282,676.80,Revenue,KEY ENGINEERING & HYGIENE SUPPLIES LTD,0
South Ribble Borough Council,http://statistics.data.gov.uk/id/local-authority/30UE,CDIG-Customer and Digital,Clothing and Uniforms,4410,Hi Vis Yellow AQUA Ballistic trousers (34T),08/07/2022,0000479282,180.48,Revenue,KEY ENGINEERING & HYGIENE SUPPLIES LTD,0
South Ribble Borough Council,http://statistics.data.gov.uk/id/local-authority/30UE,CDIG-Customer and Digital,Clothing and Uniforms,4410,Hi Vis Yellow AQUA Ballistic trousers (36R),08/07/2022,0000479282,360.96,Revenue,KEY ENGINEERING & HYGIENE SUPPLIES LTD,0
South Ribble Borough Council,http://statistics.data.gov.uk/id/local-authority/30UE,CDIG-Customer and Digital,Clothing and Uniforms,4410,Hi Vis Yellow AQUA Ballistic trousers (38R),08/07/2022,0000479282,180.48,Revenue,KEY ENGINEERING & HYGIENE SUPPLIES LTD,0
South Ribble Borough Council,http://statistics.data.gov.uk/id/local-authority/30UE,CDIG-Customer and Digital,Clothing and Uniforms,4410,Hi Vis Yellow AQUA Ballistic trousers (40R),08/07/2022,0000479282,180.48,Revenue,KEY ENGINEERING & HYGIENE SUPPLIES LTD,0
South Ribble Borough Council,http://statistics.data.gov.uk/id/local-authority/30UE,CDIG-Customer and Digital,Clothing and Uniforms,4410,Hi Vis Yellow AQUA Ballistic trousers (42S),08/07/2022,0000479282,135.36,Revenue,KEY ENGINEERING & HYGIENE SUPPLIES LTD,0
South Ribble Borough Council,http://statistics.data.gov.uk/id/local-authority/30UE,CDIG-Customer and Digital,Clothing and Uniforms,4410,Hi Vis Yellow Traffic Fleece with Coloured SRBC logo embroidered on LH Breast F300 - SMALL,08/07/2022,0000479283,44.34,Revenue,KEY ENGINEERING & HYGIENE SUPPLIES LTD,0
South Ribble Borough Council,http://statistics.data.gov.uk/id/local-authority/30UE,CDIG-Customer and Digital,Clothing and Uniforms,4410,Hi Vis Yellow Traffic Fleece with Coloured SRBC logo embroidered on LH Breast F300 - MEDIUM,08/07/2022,0000479283,532.08,Revenue,KEY ENGINEERING & HYGIENE SUPPLIES LTD,0
South Ribble Borough Council,http://statistics.data.gov.uk/id/local-authority/30UE,CDIG-Customer and Digital,Clothing and Uniforms,4410,Hi Vis Yellow Traffic Fleece with Coloured SRBC logo embroidered on LH Breast F300 - LARGE,08/07/2022,0000479283,399.06,Revenue,KEY ENGINEERING & HYGIENE SUPPLIES LTD,0
South Ribble Borough Council,http://statistics.data.gov.uk/id/local-authority/30UE,CDIG-Customer and Digital,Clothing and Uniforms,4410,Hi Vis Yellow Traffic Fleece with Coloured SRBC logo embroidered on LH Breast F300 - EXTRA LARGE,08/07/2022,0000479283,266.04,Revenue,KEY ENGINEERING & HYGIENE SUPPLIES LTD,0
South Ribble Borough Council,http://statistics.data.gov.uk/id/local-authority/30UE,CDIG-Customer and Digital,Clothing and Uniforms,4410,Hi Vis Yellow Traffic Fleece with Coloured SRBC logo embroidered on LH Breast F300 - XXL,08/07/2022,0000479283,133.02,Revenue,KEY ENGINEERING & HYGIENE SUPPLIES LTD,0
South Ribble Borough Council,http://statistics.data.gov.uk/id/local-authority/30UE,CDIG-Customer and Digital,Clothing and Uniforms,4410,Hi Vis Yellow Baseball Cap HB10 with logo,08/07/2022,0000479449,473.40,Revenue,KEY ENGINEERING & HYGIENE SUPPLIES LTD,0
South Ribble Borough Council,http://statistics.data.gov.uk/id/local-authority/30UE,CDIG-Customer and Digital,Clothing and Uniforms,4410,HI-VIS WATERPROOF JACKETS  - PU WATERPROOF UNLINED - SMALL  ,08/07/2022,0000479451,165.48,Revenue,KEY ENGINEERING & HYGIENE SUPPLIES LTD,0
South Ribble Borough Council,http://statistics.data.gov.uk/id/local-authority/30UE,CDIG-Customer and Digital,Clothing and Uniforms,4410,HI-VIS WATERPROOF JACKETS  - PU WATERPROOF UNLINED - MEDIUM  ,08/07/2022,0000479451,496.44,Revenue,KEY ENGINEERING & HYGIENE SUPPLIES LTD,0
South Ribble Borough Council,http://statistics.data.gov.uk/id/local-authority/30UE,CDIG-Customer and Digital,Clothing and Uniforms,4410,HI-VIS WATERPROOF JACKETS  - PU WATERPROOF UNLINED - LARGE  ,08/07/2022,0000479451,496.44,Revenue,KEY ENGINEERING & HYGIENE SUPPLIES LTD,0
South Ribble Borough Council,http://statistics.data.gov.uk/id/local-authority/30UE,CDIG-Customer and Digital,Clothing and Uniforms,4410,HI-VIS WATERPROOF JACKETS  - PU WATERPROOF UNLINED - EXTRA LARGE ,08/07/2022,0000479451,330.96,Revenue,KEY ENGINEERING & HYGIENE SUPPLIES LTD,0
South Ribble Borough Council,http://statistics.data.gov.uk/id/local-authority/30UE,CDIG-Customer and Digital,Clothing and Uniforms,4410,HI-VIS WATERPROOF JACKETS  - PU WATERPROOF UNLINED - XXL  ,08/07/2022,0000479451,165.48,Revenue,KEY ENGINEERING & HYGIENE SUPPLIES LTD,0
South Ribble Borough Council,http://statistics.data.gov.uk/id/local-authority/30UE,CDIG-Customer and Digital,Clothing and Uniforms,4410,WAISTCOAT � HVW03 FLUORESCENT - MEDIUM c/w SRBC LOGO FRONT LEFT BREAST & REAR HS COLOUR BWCSY,08/07/2022,0000479702,67.40,Revenue,KEY ENGINEERING & HYGIENE SUPPLIES LTD,0
South Ribble Borough Council,http://statistics.data.gov.uk/id/local-authority/30UE,CDIG-Customer and Digital,Clothing and Uniforms,4410,POLO SHIRT - SHORT SLEEVED NAVY  -  MEDIUM c/w SRBC LOGO FRONT LEFT BREAST HS WHITE UC122,08/07/2022,0000479702,24.50,Revenue,KEY ENGINEERING & HYGIENE SUPPLIES LTD,0
South Ribble Borough Council,http://statistics.data.gov.uk/id/local-authority/30UE,CDIG-Customer and Digital,Clothing and Uniforms,4410, WAISTCOAT � HVW03 FLUORESCENT  LARGE c/w  SRBC LOGO FRONT LEFT BREAST & REAR HS COLOUR BWCSY,08/07/2022,0000479702,67.40,Revenue,KEY ENGINEERING & HYGIENE SUPPLIES LTD,0
South Ribble Borough Council,http://statistics.data.gov.uk/id/local-authority/30UE,CDIG-Customer and Digital,Clothing and Uniforms,4410, WAISTCOAT � HVW03 FLUORESCENT  EXTRA LARGE c/w  SRBC LOGO FRONT LEFT BREAST & REAR HS COLOUR BWCSY,08/07/2022,0000479702,67.40,Revenue,KEY ENGINEERING & HYGIENE SUPPLIES LTD,0
South Ribble Borough Council,http://statistics.data.gov.uk/id/local-authority/30UE,CDIG-Customer and Digital,Clothing and Uniforms,4410,WAISTCOAT � FLUORESCENT -XXL c/w SRBC LOGO FRONT LEFT BREAST & REAR HS COLOUR BWCSY,08/07/2022,0000479702,33.70,Revenue,KEY ENGINEERING & HYGIENE SUPPLIES LTD,0
South Ribble Borough Council,http://statistics.data.gov.uk/id/local-authority/30UE,CDIG-Customer and Digital,Clothing and Uniforms,4410, FLAME RETARDANT COVERALL - PORTWEST BIZ 7  - LARGE c/w SRBC LOGO FRONT LEFT BREAST & REAR HS COLOUR BIZ7,22/07/2022,0000480199,116.20,Revenue,KEY ENGINEERING & HYGIENE SUPPLIES LTD,0
South Ribble Borough Council,http://statistics.data.gov.uk/id/local-authority/30UE,CDIG-Customer and Digital,Clothing and Uniforms,4410,SAFETY TRAINER - SIZE 10 FS312,22/07/2022,0000480199,88.20,Revenue,KEY ENGINEERING & HYGIENE SUPPLIES LTD,0
South Ribble Borough Council,http://statistics.data.gov.uk/id/local-authority/30UE,CDIG-Customer and Digital,Clothing and Uniforms,4410,SAFETY TRAINER - SIZE 9  FS312,22/07/2022,0000480199,88.20,Revenue,KEY ENGINEERING & HYGIENE SUPPLIES LTD,0
South Ribble Borough Council,http://statistics.data.gov.uk/id/local-authority/30UE,CDIG-Customer and Digital,Clothing and Uniforms,4410,HI VIZ POLO (LONG SLEEVED) -  EXTRA LARGE c/w SRBC LOGO FRONT LEFT BREAST & REAR HS COLOUR S277,22/07/2022,0000480199,55.60,Revenue,KEY ENGINEERING & HYGIENE SUPPLIES LTD,0
South Ribble Borough Council,http://statistics.data.gov.uk/id/local-authority/30UE,CDIG-Customer and Digital,Clothing and Uniforms,4410,BASEBALL CAPS BB58,22/07/2022,0000480199,56.00,Revenue,KEY ENGINEERING & HYGIENE SUPPLIES LTD,0
South Ribble Borough Council,http://statistics.data.gov.uk/id/local-authority/30UE,CDIG-Customer and Digital,Materials General,4040,DEB Stokoderm Sun Protect 50 SPF 1 litre SPC1L\SPLIT,22/07/2022,0000480199,127.96,Revenue,KEY ENGINEERING & HYGIENE SUPPLIES LTD,0
South Ribble Borough Council,http://statistics.data.gov.uk/id/local-authority/30UE,CDIG-Customer and Digital,Clothing and Uniforms,4410,HI VIS TRAFFIC  JACKET YELLOW EN471:2003 MEDIUM WITH  SRBC Logo Front Left Breast & Rear HS in COLOUR  S460,22/07/2022,0000480364,51.00,Revenue,KEY ENGINEERING & HYGIENE SUPPLIES LTD,0
South Ribble Borough Council,http://statistics.data.gov.uk/id/local-authority/30UE,CDIG-Customer and Digital,Clothing and Uniforms,4410, HI-VIS WATERPROOF JACKETS  - PU WATERPROOF UNLINED - EXTRA LARGE  ,22/07/2022,0000480364,165.48,Revenue,KEY ENGINEERING & HYGIENE SUPPLIES LTD,0
South Ribble Borough Council,http://statistics.data.gov.uk/id/local-authority/30UE,CDIG-Customer and Digital,Clothing and Uniforms,4410, HI VIS POLO (SHORT SLEEVED)  -  MEDIUM  c/w SRBC LOGO FRONT LEFT BREAST & REAR HS COLOUR S477,22/07/2022,0000480364,63.52,Revenue,KEY ENGINEERING & HYGIENE SUPPLIES LTD,0
South Ribble Borough Council,http://statistics.data.gov.uk/id/local-authority/30UE,CDIG-Customer and Digital,Clothing and Uniforms,4410,WAISTCOAT -  SLEEVED - FLUORESCENT  MEDIUM c/w SRBC LOGO FRONT LEFT BREAST & REAR HS COLOUR PKJENG,22/07/2022,0000480364,42.49,Revenue,KEY ENGINEERING & HYGIENE SUPPLIES LTD,0
South Ribble Borough Council,http://statistics.data.gov.uk/id/local-authority/30UE,CDIG-Customer and Digital,Clothing and Uniforms,4410,SWEATSHIRT NAVY -  MEDIUM c/w SRBC LOGO FRONT LEFT BREAST HS WHITE UC203,22/07/2022,0000480364,19.56,Revenue,KEY ENGINEERING & HYGIENE SUPPLIES LTD,0
South Ribble Borough Council,http://statistics.data.gov.uk/id/local-authority/30UE,CDIG-Customer and Digital,Clothing and Uniforms,4410, FLEECE NAVY -  SMALL c/w SRBC LOGO Front Left Breast in White EMB UC601,22/07/2022,0000480364,42.48,Revenue,KEY ENGINEERING & HYGIENE SUPPLIES LTD,0
South Ribble Borough Council,http://statistics.data.gov.uk/id/local-authority/30UE,CDIG-Customer and Digital,GM Refurbishment,4657,Basket seat spares as per quotation ref. SQ270244-2,15/07/2022,0000479862,559.36,Revenue,KOMPAN LTD,0
South Ribble Borough Council,http://statistics.data.gov.uk/id/local-authority/30UE,CDIG-Customer and Digital,GM Refurbishment,4657,"Fencing of Dynamic Area, Holme Playing Field, Bamber Bridge",29/07/2022,0000480459,"1,944.50",Revenue,KOMPAN LTD,0
South Ribble Borough Council,http://statistics.data.gov.uk/id/local-authority/30UE,PDEV-Planning and Development,Professional Fees,4510,L3 CERT IN TECH SUPPORT FOR PUBLIC SERVICE BUILDING STANDARDS 1 PLACE FOR NAME REDACTED,08/07/2022,0000479905,600.00,Revenue,LABC,0
South Ribble Borough Council,http://statistics.data.gov.uk/id/local-authority/30UE,CDIG-Customer and Digital,Materials General,4040,Adblue IBC - 1000 litres @ 0.89ppl,22/07/2022,0000479378,890.00,Revenue,LANCASHIRE OILS LTD,0
South Ribble Borough Council,http://statistics.data.gov.uk/id/local-authority/30UE,CDIG-Customer and Digital,Materials General,4040,1200 litres Bulk Hydraulic Oil @ 0.85p per litre,15/07/2022,0000479801,"2,220.00",Revenue,LANCASHIRE OILS LTD,0
South Ribble Borough Council,http://statistics.data.gov.uk/id/local-authority/30UE,CDIG-Customer and Digital,Materials General,4040,4000 Litres Adblue @ 0.78ppl,15/07/2022,0000479802,"2,964.00",Revenue,LANCASHIRE OILS LTD,0
South Ribble Borough Council,http://statistics.data.gov.uk/id/local-authority/30UE,CDIG-Customer and Digital,Materials General,4040,1000 litres Type 46 Hydraulic oil @ 1.54 ppl,22/07/2022,0000479861,"1,282.82",Revenue,LANCASHIRE OILS LTD,0
South Ribble Borough Council,http://statistics.data.gov.uk/id/local-authority/30UE,CDIG-Customer and Digital,Materials General,4040,205Ltr barrell of ATF @ 2.55 per litre,22/07/2022,0000480367,522.75,Revenue,LANCASHIRE OILS LTD,0
South Ribble Borough Council,http://statistics.data.gov.uk/id/local-authority/30UE,COMU-Communities,Professional Fees,4510,"Twelve-week youth programme for building self-belief, confidence and emotional resilience.",08/07/2022,0000479703,"7,208.00",Revenue,Lancashire Youth Challenge,0
South Ribble Borough Council,http://statistics.data.gov.uk/id/local-authority/30UE,GOVE-Governance,L C C General,4530,LAND CHARGES - MAY 2022,08/07/2022,0000479749,"1,056.00",Revenue,LANCS COUNTY COUNCIL,0
South Ribble Borough Council,http://statistics.data.gov.uk/id/local-authority/30UE,CDIG-Customer and Digital,Software Licensing,4243,GIS Services Contract for the period of 01/04/21 to 31/03/22 Yr 2 of 2,29/07/2022,0000480173,"7,816.03",Revenue,LANCS COUNTY COUNCIL,0
South Ribble Borough Council,http://statistics.data.gov.uk/id/local-authority/30UE,COMU-Communities,Capital Grant,C570,SUPPLY AND INSTALL 2ND HOIST AT 24 LOWERFIELD FARINGTON MOSS PR26 6QQ AS PER QUOTE SUPPLIED,22/07/2022,0000480310,"2,432.06",Revenue,LANCS COUNTY COUNCIL,0
South Ribble Borough Council,http://statistics.data.gov.uk/id/local-authority/30UE,GOVE-Governance,L C C General,4530,LAND CHARGES - JUNE 2022,29/07/2022,0000480447,972.00,Revenue,LANCS COUNTY COUNCIL,0
South Ribble Borough Council,http://statistics.data.gov.uk/id/local-authority/30UE,COMU-Communities,Capital Grant,C570,"DFG WORK FOR HOIST EQUIPMENT AT 12 BROWNEDGE CLOSE, WALTON LE DALE AS PER QUOTE SUPPLIED ",29/07/2022,0000480491,"1,025.99",Revenue,LANCS COUNTY COUNCIL,0
South Ribble Borough Council,http://statistics.data.gov.uk/id/local-authority/30UE,COMU-Communities,Capital Grant,C570,"DFG WORK FOR ADAPTATION FOR HOISTING EQUIPMENT AT 3 CROFTERS WALK, PENWORTHAM AS PER QUOTE SUPPLIED ",29/07/2022,0000480492,"3,786.78",Revenue,LANCS COUNTY COUNCIL,0
South Ribble Borough Council,http://statistics.data.gov.uk/id/local-authority/30UE,CDIG-Customer and Digital,Materials General,4040,Bottom bumper Near side front fog light Fog light trim,08/07/2022,0000479534,618.83,Revenue,LANCS DAF,0
South Ribble Borough Council,http://statistics.data.gov.uk/id/local-authority/30UE,CDIG-Customer and Digital,Materials General,4040,"1x passenger seat belt, 2 rear air bags,1x set of pads, 1x service kit, PF18 JOV, JFC18548",08/07/2022,0000479535,"1,154.17",Revenue,LANCS DAF,0
South Ribble Borough Council,http://statistics.data.gov.uk/id/local-authority/30UE,CDIG-Customer and Digital,Materials General,4040,"1x spring break chamber, YD19 ATY, JFC18551",01/07/2022,0000479578,483.45,Revenue,LANCS DAF,0
South Ribble Borough Council,http://statistics.data.gov.uk/id/local-authority/30UE,CDIG-Customer and Digital,Materials General,4040,"1x brake pads, 1x washer bottle cap, 1x ad blue cap, 1x anti roll bar bushes, YE19 JPW, JFC18618",15/07/2022,0000480041,287.87,Revenue,LANCS DAF,0
South Ribble Borough Council,http://statistics.data.gov.uk/id/local-authority/30UE,CDIG-Customer and Digital,Materials General,4040,"Front bumper
Front light cover
DX19 XBJ
JFC 18663",15/07/2022,0000480043,838.53,Revenue,LANCS DAF,0
South Ribble Borough Council,http://statistics.data.gov.uk/id/local-authority/30UE,CDIG-Customer and Digital,Materials General,4040,Filter kit Fuel filter Rocker cover filteR Gear box filter kit,22/07/2022,0000480094,443.01,Revenue,LANCS DAF,0
South Ribble Borough Council,http://statistics.data.gov.uk/id/local-authority/30UE,CDIG-Customer and Digital,Operational Equip & Tools,4010,Tyre Chalk,22/07/2022,0000480094,8.92,Revenue,LANCS DAF,0
South Ribble Borough Council,http://statistics.data.gov.uk/id/local-authority/30UE,CDIG-Customer and Digital,Materials General,4040,Turbo actuator JFC 18712 (PL),22/07/2022,0000480345,"1,125.00",Revenue,LANCS DAF,0
South Ribble Borough Council,http://statistics.data.gov.uk/id/local-authority/30UE,CDIG-Customer and Digital,Materials General,4040,Exhaust Downpipe Gasket 2 x Clamps YD19 ATZ JFC 18715,29/07/2022,0000480436,507.49,Revenue,LANCS DAF,0
South Ribble Borough Council,http://statistics.data.gov.uk/id/local-authority/30UE,COMP-Commercial and Property,Cap Contract Payment,C230,Description: tarmac work to front of changing container at Gregson Lane new changing facility as per NAME REDACTED,29/07/2022,0000480496,675.00,Revenue,LANDSCAPE ENGINEERING LIMITED,0
South Ribble Borough Council,http://statistics.data.gov.uk/id/local-authority/30UE,COMP-Commercial and Property,Cap Contract Payment,C230,"Leyland Town Deal, Consultancy Services - Ecclesiastical Exemption Support",22/07/2022,0000478705,825.00,Revenue,Lanpro Services Ltd,0
South Ribble Borough Council,http://statistics.data.gov.uk/id/local-authority/30UE,COMU-Communities,Miscellaneous Expenses,4851,Homes for Ukraine Sponsor Payment,29/07/2022,0000480588,"1,050.00",Revenue,Laura Trotter,0
South Ribble Borough Council,http://statistics.data.gov.uk/id/local-authority/30UE,CDIG-Customer and Digital,Materials General,4040,1x th07550 tricoflex hose 19mm x 50m 122.61,22/07/2022,0000480368,122.61,Revenue,LBS WORLDWIDE LTD,0
South Ribble Borough Council,http://statistics.data.gov.uk/id/local-authority/30UE,CDIG-Customer and Digital,Materials General,4040,1x 8895 hose trolley 110.23,22/07/2022,0000480368,110.23,Revenue,LBS WORLDWIDE LTD,0
South Ribble Borough Council,http://statistics.data.gov.uk/id/local-authority/30UE,CDIG-Customer and Digital,Materials General,4040,1x glO3a lance with rose 40.81,22/07/2022,0000480368,40.81,Revenue,LBS WORLDWIDE LTD,0
South Ribble Borough Council,http://statistics.data.gov.uk/id/local-authority/30UE,CDIG-Customer and Digital,Materials General,4040,1x hf02 hose coupling 3.97,22/07/2022,0000480368,3.97,Revenue,LBS WORLDWIDE LTD,0
South Ribble Borough Council,http://statistics.data.gov.uk/id/local-authority/30UE,CDIG-Customer and Digital,Materials General,4040,1x jhc0x jubilee clip 0.80,22/07/2022,0000480368,0.80,Revenue,LBS WORLDWIDE LTD,0
South Ribble Borough Council,http://statistics.data.gov.uk/id/local-authority/30UE,COMP-Commercial and Property,Cap Contract Payment,C230,Jubilee Gardens Extra Care Valuation,22/07/2022,0000478704,"1,500.00",Revenue,LEA HOUGH & CO,0
South Ribble Borough Council,http://statistics.data.gov.uk/id/local-authority/30UE,COMU-Communities,Core Fund,4861,"New shelving, trollies and painting/flooring for the Foodbank",15/07/2022,0000479859,"4,000.00",Revenue,Leyland Food Bank,0
South Ribble Borough Council,http://statistics.data.gov.uk/id/local-authority/30UE,CDIG-Customer and Digital,GM Refurbishment,4657,Repairs to overhead ladder and rotator at Longton and gate repair at Birch Avenue. ,01/07/2022,0000479257,220.50,Revenue,Leyland Lane Wrought Iron Gates & Railings,0
South Ribble Borough Council,http://statistics.data.gov.uk/id/local-authority/30UE,CDIG-Customer and Digital,GM Refurbishment,4657,Repairs to overhead ladder and rotator at Longton and gate repair at Birch Avenue.,01/07/2022,0000479257,94.50,Revenue,Leyland Lane Wrought Iron Gates & Railings,0
South Ribble Borough Council,http://statistics.data.gov.uk/id/local-authority/30UE,CDIG-Customer and Digital,GM Refurbishment,4657,Repairs to the fence at Bellis Way Open Space,08/07/2022,0000479537,490.00,Revenue,Leyland Lane Wrought Iron Gates & Railings,0
South Ribble Borough Council,http://statistics.data.gov.uk/id/local-authority/30UE,CDIG-Customer and Digital,Materials General,4040,To fabricate a motorbike stand at Unit 81 Bison Place as per your quotation dated  28.4.22,08/07/2022,0000479721,425.00,Revenue,Leyland Lane Wrought Iron Gates & Railings,0
South Ribble Borough Council,http://statistics.data.gov.uk/id/local-authority/30UE,COMP-Commercial and Property,Reactive Repair & Maintenance,2020,To make the cover for the dog tap on Worden Park and sort out the back door ,08/07/2022,0000479798,280.00,Revenue,Leyland Lane Wrought Iron Gates & Railings,0
South Ribble Borough Council,http://statistics.data.gov.uk/id/local-authority/30UE,CDIG-Customer and Digital,GM Refurbishment,4657,"To reconstruct/repair existing fence around the open space at Bellis Way, Walton Park, PR5 4NS.",15/07/2022,0000479799,"4,015.00",Revenue,Leyland Lane Wrought Iron Gates & Railings,0
South Ribble Borough Council,http://statistics.data.gov.uk/id/local-authority/30UE,COMP-Commercial and Property,Reactive Repair & Maintenance,2020,Attend Penwortham Holme as per NAME REDACTED request and  to take the old posts out fit x1 new post ,15/07/2022,0000479967,"1,750.00",Revenue,Leyland Lane Wrought Iron Gates & Railings,0
South Ribble Borough Council,http://statistics.data.gov.uk/id/local-authority/30UE,COMU-Communities,Core Fund,4861,"10 free places @85 each, for Summer 2022 Leyland Playscheme",29/07/2022,0000480498,850.00,Revenue,LEYLAND PLAYSCHEME,0
South Ribble Borough Council,http://statistics.data.gov.uk/id/local-authority/30UE,COMU-Communities,Core Fund,4861,Sporting Memories - Days Out,22/07/2022,0000480309,"1,000.00",Revenue,Leyland Sporting Memories Group,0
South Ribble Borough Council,http://statistics.data.gov.uk/id/local-authority/30UE,POLY-Policy,Miscellaneous Expenses,4851,DRIVER MANAGEMENT AND DVLA CHECKS - FROM APRIL ONWARDS,22/07/2022,0000480288,589.60,Revenue,LICENCE BUREAU LIMITED,0
South Ribble Borough Council,http://statistics.data.gov.uk/id/local-authority/30UE,POLY-Policy,Short Course,1402,NAME REDACTED TO ATTEND ` LOCAL AUTHORITY ENVIRONMENTAL PROSECUTIONS` COURSE ON 19 MAY 2022,22/07/2022,0000478379,205.00,Revenue,LLG Legal Training,0
South Ribble Borough Council,http://statistics.data.gov.uk/id/local-authority/30UE,POLY-Policy,Short Course,1402,NAME REDACTED TO ATTEND ` LOCAL AUTHORITY ENVIRONMENTAL PROSECUTIONS` COURSE ON 19 MAY 2022,22/07/2022,0000478379,205.00,Revenue,LLG Legal Training,0
South Ribble Borough Council,http://statistics.data.gov.uk/id/local-authority/30UE,POLY-Policy,Short Course,1402,NAME REDACTED TO ATTEND THE ROLE OF THE IN HOUSE LOCAL AUTHORITY LAWYER ON 21 APRIL 2022,22/07/2022,0000478381,130.00,Revenue,LLG Legal Training,0
South Ribble Borough Council,http://statistics.data.gov.uk/id/local-authority/30UE,POLY-Policy,Short Course,1402,NAME REDACTED TO ATTEND THE ROLE OF THE IN HOUSE LOCAL AUTHORITY LAWYER ON 21 APRIL 2022,22/07/2022,0000478381,130.00,Revenue,LLG Legal Training,0
South Ribble Borough Council,http://statistics.data.gov.uk/id/local-authority/30UE,CDIG-Customer and Digital,Office Requisites,4136,Stationary For 2021 - 31.3.2022,15/07/2022,0000479968,405.25,Revenue,Lyreco UK Ltd,0
South Ribble Borough Council,http://statistics.data.gov.uk/id/local-authority/30UE,CDIG-Customer and Digital,Operational Equip & Tools,4010,PADLOCKS  - SQUIRE 660 TO PASS KEY 10,08/07/2022,0000479645,303.60,Revenue,M A C BUILDING PRODUCTS LTD,0
South Ribble Borough Council,http://statistics.data.gov.uk/id/local-authority/30UE,COMU-Communities,Capital Grant,C570,DFG WORKS FOR LEVEL ACCESS BATHROOM AT ADDRESS REDACTED. NEW PROGRESS PROPERTY ,01/07/2022,0000479646,"3,068.35",Revenue,MAHONEY CONTRACTORS LTD,0
South Ribble Borough Council,http://statistics.data.gov.uk/id/local-authority/30UE,COMU-Communities,Capital Grant,C570,DFG WORKS FOR LEVEL ACCESS BATHROOM AT ADDRESS REDACTED. NEW PROGRESS PROPERTY ,15/07/2022,0000480024,"4,557.95",Revenue,MAHONEY CONTRACTORS LTD,0
South Ribble Borough Council,http://statistics.data.gov.uk/id/local-authority/30UE,COMU-Communities,Capital Grant,C570,DFG WORKS FOR LEVEL ACCESS BATHROOM AT ADDRESS REDACTED. NEW PROGRESS PROPERTY ,15/07/2022,0000480123,"2,948.94",Revenue,MAHONEY CONTRACTORS LTD,0
South Ribble Borough Council,http://statistics.data.gov.uk/id/local-authority/30UE,COMU-Communities,Capital Grant,C570,DFG WORKS FOR LEVEL ACCESS BATHROOM AT ADDRESS REDACTED. NEW PROGRESS PROPERTY ,15/07/2022,0000480211,"17,237.29",Revenue,MAHONEY CONTRACTORS LTD,0
South Ribble Borough Council,http://statistics.data.gov.uk/id/local-authority/30UE,COMP-Commercial and Property,Planned Annual Repair & Maintenance,2021,1 FRA multiple across previously provided 2020 Operational Properties list. 38 x FRAs in total. ,01/07/2022,0000479647,"8,650.00",Revenue,Manchester Fire Compliance Ltd,0
South Ribble Borough Council,http://statistics.data.gov.uk/id/local-authority/30UE,COMP-Commercial and Property,Misc Capital Payments,C234, FRA for Practical completion of works post caf� PP as per NAME REDACTED,29/07/2022,0000480555,450.00,Revenue,Manchester Fire Compliance Ltd,0
South Ribble Borough Council,http://statistics.data.gov.uk/id/local-authority/30UE,CDIG-Customer and Digital,GM Refurbishment,4657,"Collect 1 load waste, Hurst Grange Park, Hill Road, Penwortham",08/07/2022,0000479538,250.00,Revenue,Michael Alty,0
South Ribble Borough Council,http://statistics.data.gov.uk/id/local-authority/30UE,CDIG-Customer and Digital,GM Refurbishment,4657,1x Mixed load collected from Holme Playing Field,22/07/2022,0000480191,250.00,Revenue,Michael Alty,0
South Ribble Borough Council,http://statistics.data.gov.uk/id/local-authority/30UE,COMU-Communities,Miscellaneous Expenses,4851,Homes for Ukraine Sponsor Payment,29/07/2022,0000480591,"1,050.00",Revenue,Michelle Morris,0
South Ribble Borough Council,http://statistics.data.gov.uk/id/local-authority/30UE,COMP-Commercial and Property,Planned Annual Repair & Maintenance,2021,ADDRESS REDACTED Scaffolding Fix 75mm z bars to roof Fix safty nets to roof Apply 150mm insulation  Fix plastic coated tin sheets ,29/07/2022,0000480412,"17,500.00",Revenue,Mick Bamber,0
South Ribble Borough Council,http://statistics.data.gov.uk/id/local-authority/30UE,COMU-Communities,Core Fund,4861,Funds for Midge Hall Church Peace Garden,22/07/2022,0000480308,"1,500.00",Revenue,Midge Hall Methodist Church,0
South Ribble Borough Council,http://statistics.data.gov.uk/id/local-authority/30UE,GOVE-Governance,Legal,4821,PROFESSIONAL SERVICES IN RESPECT OF THE PICKERING FARM INQUIRY,15/07/2022,0000479748,"2,175.00",Revenue,MR IAN PONTER,0
South Ribble Borough Council,http://statistics.data.gov.uk/id/local-authority/30UE,GOVE-Governance,Legal,4821,PROFESSIONAL SERVICES IN RESPECT OF THE PICKERING FARM INQUIRY,15/07/2022,0000480203,900.00,Revenue,MR IAN PONTER,0
South Ribble Borough Council,http://statistics.data.gov.uk/id/local-authority/30UE,COMP-Commercial and Property,Reactive Repair & Maintenance,2020,Annual Contract for 2022 - 2023 for sweeping the various properties in Worden and Hurst Grange Parks Gardeners Cottage,29/07/2022,0000480501,65.00,Revenue,Mr Stuart Hardacre T/A Penwortham chimney Sweep,0
South Ribble Borough Council,http://statistics.data.gov.uk/id/local-authority/30UE,COMP-Commercial and Property,Reactive Repair & Maintenance,2020,"Annual Contract for 2022- 2023 for sweeping the various properties in Worden and Hurst Grange Parks 4 Farmyard Cottage, Worden Park",29/07/2022,0000480501,120.00,Revenue,Mr Stuart Hardacre T/A Penwortham chimney Sweep,0
South Ribble Borough Council,http://statistics.data.gov.uk/id/local-authority/30UE,COMP-Commercial and Property,Reactive Repair & Maintenance,2020,Annual Contract for 2022 -  2023 for sweeping the various properties in Worden and Hurst Grange Parks 3 Farmyard Cottage,29/07/2022,0000480501,65.00,Revenue,Mr Stuart Hardacre T/A Penwortham chimney Sweep,0
South Ribble Borough Council,http://statistics.data.gov.uk/id/local-authority/30UE,COMP-Commercial and Property,Reactive Repair & Maintenance,2020,"Annual Contract for 2022 - 2023 for sweeping the various properties in Worden and Hurst Grange Parks The Bothy, Worden Park",29/07/2022,0000480501,65.00,Revenue,Mr Stuart Hardacre T/A Penwortham chimney Sweep,0
South Ribble Borough Council,http://statistics.data.gov.uk/id/local-authority/30UE,COMP-Commercial and Property,Reactive Repair & Maintenance,2020,"Annual Contract for 2022 - 2023 for sweeping the various properties in Worden and Hurst Grange Parks North Lodge, Worden Park ",29/07/2022,0000480501,65.00,Revenue,Mr Stuart Hardacre T/A Penwortham chimney Sweep,0
South Ribble Borough Council,http://statistics.data.gov.uk/id/local-authority/30UE,COMP-Commercial and Property,Reactive Repair & Maintenance,2020,"Annual Contract for 2022 - 2023  for sweeping the various properties in Worden and Hurst Grange Parks Coach House, Hurst Grange Park.",29/07/2022,0000480501,65.00,Revenue,Mr Stuart Hardacre T/A Penwortham chimney Sweep,0
South Ribble Borough Council,http://statistics.data.gov.uk/id/local-authority/30UE,CDIG-Customer and Digital,External Contractors Charges,4570,Labour only to overhaul back end YA19NKC JFC18542,15/07/2022,0000479376,"2,640.00",Revenue,Municipal Vehicle Services,0
South Ribble Borough Council,http://statistics.data.gov.uk/id/local-authority/30UE,CDIG-Customer and Digital,External Contractors Charges,4570,Overhaul back end - Labour only YA19 NJZ JFC 18458,08/07/2022,0000479377,"3,315.00",Revenue,Municipal Vehicle Services,0
South Ribble Borough Council,http://statistics.data.gov.uk/id/local-authority/30UE,CDIG-Customer and Digital,External Contractors Charges,4570,Labour only to overhaul back end YA19NKD JFC18506,08/07/2022,0000479844,"4,124.00",Revenue,Municipal Vehicle Services,0
South Ribble Borough Council,http://statistics.data.gov.uk/id/local-authority/30UE,CDIG-Customer and Digital,IT Consumables,413A,manhattan charging cabinet via USB-cx32 Trolly,15/07/2022,0000479398,820.93,Revenue,MYPREMIER LTD,0
South Ribble Borough Council,http://statistics.data.gov.uk/id/local-authority/30UE,POLY-Policy,Short Course,1402,NAME REDACTED TO ATTEND - SAFETY INSPECTION AND ASSESSMENT OF MEMORIALS IN BURIAL GROUNNDS COURSE,29/07/2022,0000480124,325.00,Revenue,NATIONAL ASSOCIATION OF MEMORIAL MASONS,0
South Ribble Borough Council,http://statistics.data.gov.uk/id/local-authority/30UE,PDEV-Planning and Development,Advertising,4841,Publication of planning publicity press notices in the LEP - April 2022 to March 2023,08/07/2022,0000479319,810.00,Revenue,National World Publishing Limited,0
South Ribble Borough Council,http://statistics.data.gov.uk/id/local-authority/30UE,PDEV-Planning and Development,Advertising,4841,Publication of planning publicity press notices in the LEP - April 2022 to March 2023,08/07/2022,0000479443,891.00,Revenue,National World Publishing Limited,0
South Ribble Borough Council,http://statistics.data.gov.uk/id/local-authority/30UE,PDEV-Planning and Development,Advertising,4841,Publication of planning publicity press notices in the LEP - April 2022 to March 2023,08/07/2022,0000479444,972.00,Revenue,National World Publishing Limited,0
South Ribble Borough Council,http://statistics.data.gov.uk/id/local-authority/30UE,PDEV-Planning and Development,Advertising,4841,Publication of planning publicity press notices in the LEP - April 2022 to March 2023,22/07/2022,0000479764,"1,377.00",Revenue,National World Publishing Limited,0
South Ribble Borough Council,http://statistics.data.gov.uk/id/local-authority/30UE,POLY-Policy,Operational Equip & Tools,4010,Changing Room Marquees,08/07/2022,0000479768,"3,780.00",Revenue,NATIONWIDE MARQUEE HIRE LTD,0
South Ribble Borough Council,http://statistics.data.gov.uk/id/local-authority/30UE,PDEV-Planning and Development,Partnership,485I,6 month extension to CMS and hosting for the Visit Leyland Website. April to end of September 2022,15/07/2022,0000478400,"1,007.50",Revenue,NEW MIND INTERNET CONSULTANCY LTD,0
South Ribble Borough Council,http://statistics.data.gov.uk/id/local-authority/30UE,COMU-Communities,Miscellaneous Expenses,4851,Support for Penwortham Live 2022,22/07/2022,0000480102,"1,500.00",Revenue,Nigel Stewart,0
South Ribble Borough Council,http://statistics.data.gov.uk/id/local-authority/30UE,COMP-Commercial and Property,Cap Contract Payment,C230,"To undertake phase 1 works to disconnect & remove main diesel tank ,clean and remove residue at Moss Side depot ",01/07/2022,0000479648,"4,490.00",Revenue,NIXON PUMPS,0
South Ribble Borough Council,http://statistics.data.gov.uk/id/local-authority/30UE,COMP-Commercial and Property,Cap Contract Payment,C230,"To undertake phase 2 works to re-site tanks, remove old pumps and commission new once delivered to Moss Side Depot",01/07/2022,0000479649,"7,290.00",Revenue,NIXON PUMPS,0
South Ribble Borough Council,http://statistics.data.gov.uk/id/local-authority/30UE,CDIG-Customer and Digital,Network and Security,4247,PSN 344  Lot 1 DNS Services - Call Off Charges Year 1 and Year 2 - Community Charge Call Off Contract Period 1 and Period 2,29/07/2022,0000478450,765.94,Revenue,NOMINET UK,0
South Ribble Borough Council,http://statistics.data.gov.uk/id/local-authority/30UE,CDIG-Customer and Digital,Operational Equip & Tools,4010,Compact Applicator,15/07/2022,0000479854,115.00,Revenue,NOMIX ENVIRO LTD,0
South Ribble Borough Council,http://statistics.data.gov.uk/id/local-authority/30UE,CDIG-Customer and Digital,Operational Equip & Tools,4010,Classic Applicator,15/07/2022,0000479854,160.00,Revenue,NOMIX ENVIRO LTD,0
South Ribble Borough Council,http://statistics.data.gov.uk/id/local-authority/30UE,CDIG-Customer and Digital,Operational Equip & Tools,4010,2 X Genesis spraying units @ 1995 per unit,22/07/2022,0000480125,"1,995.00",Revenue,NOMIX ENVIRO LTD,0
South Ribble Borough Council,http://statistics.data.gov.uk/id/local-authority/30UE,COMP-Commercial and Property,Cap Contract Payment,C230,Printing presentation boards (10) for Consultation Event - Jubilee Gardens Extra Care,29/07/2022,0000480425,343.20,Revenue,NORR Consultants Limited,0
South Ribble Borough Council,http://statistics.data.gov.uk/id/local-authority/30UE,COMP-Commercial and Property,Cap Contract Payment,C230,"West Paddock, Leyland - OS base mapping",29/07/2022,0000480425,148.39,Revenue,NORR Consultants Limited,0
South Ribble Borough Council,http://statistics.data.gov.uk/id/local-authority/30UE,COMP-Commercial and Property,Cap Contract Payment,C230,Air Quality Assessment,29/07/2022,0000480426,"1,350.00",Revenue,NORR Consultants Limited,0
South Ribble Borough Council,http://statistics.data.gov.uk/id/local-authority/30UE,GOVE-Governance,Members Training,1406,EFFECTIVE SCRUTINY COMMITTEE TRAINING ON 14 JUNE 2022 AT SOUTH RIBBLE BOROUGH COUNCIL,29/07/2022,0000480469,650.00,Revenue,NORTH WEST EMPLOYERS,0
South Ribble Borough Council,http://statistics.data.gov.uk/id/local-authority/30UE,CDIG-Customer and Digital,Materials General,4040,78399/2 700/1000mm 2.8mm Poly & 3.3mm Wire 5 Row - ProBrush� Di,08/07/2022,0000479541,769.15,Revenue,NORTHERN MUNICIPAL SPARES LTD,0
South Ribble Borough Council,http://statistics.data.gov.uk/id/local-authority/30UE,CDIG-Customer and Digital,Materials General,4040,MATHIEU-0120089 550/900mm 2.4mm PW 6 M8x50 @ 295mm PCD (Cap Nut) - Azura,08/07/2022,0000479541,"1,072.18",Revenue,NORTHERN MUNICIPAL SPARES LTD,0
South Ribble Borough Council,http://statistics.data.gov.uk/id/local-authority/30UE,COMP-Commercial and Property,Reactive Repair & Maintenance,2020,Product/Service Description Additional parts & Labour as per inv 000335 as per NAME REDACTED,08/07/2022,0000479970,"1,627.00",Revenue,Northern Storage & Interiors Ltd,0
South Ribble Borough Council,http://statistics.data.gov.uk/id/local-authority/30UE,COMU-Communities,Materials General,4040,"To Supply Washing Machine, Cooker and Fridge Freezer for 82 Goldcrest Avenue",29/07/2022,0000480557,840.00,Revenue,NORTHWEST DOMESTIC SERVICES,0
South Ribble Borough Council,http://statistics.data.gov.uk/id/local-authority/30UE,CDIG-Customer and Digital,Parking Attendants,4514,Variable Fee Car Park Enforcement May 2022- Variable Recharge Items,01/07/2022,0000479574,"1,689.24",Revenue,NSL LTD,0
South Ribble Borough Council,http://statistics.data.gov.uk/id/local-authority/30UE,CDIG-Customer and Digital,Cash Collection Charges Car Parks,4855,Variable Fee Car Park Enforcement May 2022- Fixed Recharge Items,01/07/2022,0000479574,745.52,Revenue,NSL LTD,0
South Ribble Borough Council,http://statistics.data.gov.uk/id/local-authority/30UE,CDIG-Customer and Digital,Parking Attendants,4514,Variable Fee Car Park Enforcement June 2022 - Variable Recharge Items,22/07/2022,0000480339,"1,248.08",Revenue,NSL LTD,0
South Ribble Borough Council,http://statistics.data.gov.uk/id/local-authority/30UE,CDIG-Customer and Digital,Cash Collection Charges Car Parks,4855,Variable Fee Car Park Enforcement June 2022 - Fixed Recharge Items,22/07/2022,0000480339,749.57,Revenue,NSL LTD,0
South Ribble Borough Council,http://statistics.data.gov.uk/id/local-authority/30UE,POLY-Policy,Professional Fees,4510,South Ribble Residents� Postal Survey,15/07/2022,0000480044,"1,050.00",Revenue,NWA Social and Market Research Ltd,0
South Ribble Borough Council,http://statistics.data.gov.uk/id/local-authority/30UE,COMP-Commercial and Property,Reactive Repair & Maintenance,2020,360 excavator to scrap away any old earth/grass growth. ,15/07/2022,0000479796,"1,550.00",Revenue,Oakley Landscaping Ltd,0
South Ribble Borough Council,http://statistics.data.gov.uk/id/local-authority/30UE,COMU-Communities,Miscellaneous Expenses,4851,Supply Cream twisted paper handle Carrier Bags,29/07/2022,0000480468,353.80,Revenue,PAC HS LTD,0
South Ribble Borough Council,http://statistics.data.gov.uk/id/local-authority/30UE,CDIG-Customer and Digital,Materials General,4040,"60,000 Labels South Ribble Steilo Paper",22/07/2022,0000480341,354.00,Revenue,PAPERWORK UK LTD,0
South Ribble Borough Council,http://statistics.data.gov.uk/id/local-authority/30UE,CDIG-Customer and Digital,Cash Collection Charges Car Parks,4855,RingGo Fee Transactions May 2022,08/07/2022,0000479759,89.60,Revenue,Park Now Limited,0
South Ribble Borough Council,http://statistics.data.gov.uk/id/local-authority/30UE,CDIG-Customer and Digital,Cash Collection Charges Car Parks,4855,"RingGo Text Summary, Reminder & Processing Fees - May 2022",08/07/2022,0000479759,174.14,Revenue,Park Now Limited,0
South Ribble Borough Council,http://statistics.data.gov.uk/id/local-authority/30UE,CDIG-Customer and Digital,Cash Collection Charges Car Parks,4855,RingGo Fee Transactions - June 2022,29/07/2022,0000480427,85.40,Revenue,Park Now Limited,0
South Ribble Borough Council,http://statistics.data.gov.uk/id/local-authority/30UE,CDIG-Customer and Digital,Cash Collection Charges Car Parks,4855,"RingGo Text Summary, Reminder & Processing Fees - June 2022",29/07/2022,0000480427,170.34,Revenue,Park Now Limited,0
South Ribble Borough Council,http://statistics.data.gov.uk/id/local-authority/30UE,CDIG-Customer and Digital,Materials General,4040,AIR FRESHENER - FRESH LINEN 400ml (BOX of 12) - BG0405 -FL,01/07/2022,0000479374,10.44,Revenue,Pattersons (Bristol) Ltd,0
South Ribble Borough Council,http://statistics.data.gov.uk/id/local-authority/30UE,CDIG-Customer and Digital,Clothing and Uniforms,4410,DISPOSABLE GLOVES NITRILE (BOX- 100) MEDIUM - DG150M,01/07/2022,0000479374,166.50,Revenue,Pattersons (Bristol) Ltd,0
South Ribble Borough Council,http://statistics.data.gov.uk/id/local-authority/30UE,CDIG-Customer and Digital,Clothing and Uniforms,4410,DISPOSABLE GLOVES NITRILE (BOX- 100) - LARGE - DG150L,01/07/2022,0000479374,166.50,Revenue,Pattersons (Bristol) Ltd,0
South Ribble Borough Council,http://statistics.data.gov.uk/id/local-authority/30UE,CDIG-Customer and Digital,Materials General,4040,"JANGRO PERFUMED, TOILET CLEANER - BG040-1",01/07/2022,0000479374,21.60,Revenue,Pattersons (Bristol) Ltd,0
South Ribble Borough Council,http://statistics.data.gov.uk/id/local-authority/30UE,CDIG-Customer and Digital,Materials General,4040,TOILET TISSUE JANGRO - AB101,01/07/2022,0000479374,178.50,Revenue,Pattersons (Bristol) Ltd,0
South Ribble Borough Council,http://statistics.data.gov.uk/id/local-authority/30UE,CDIG-Customer and Digital,Materials General,4040,LEMON GEL-  BD041-5,01/07/2022,0000479374,26.40,Revenue,Pattersons (Bristol) Ltd,0
South Ribble Borough Council,http://statistics.data.gov.uk/id/local-authority/30UE,COMP-Commercial and Property,Operational Equip & Tools,4010,1 FE226 Numatic TTB 1840 NX36V graphite tank V17 Scrubber dryer comes with 1 x battery,08/07/2022,0000479795,"1,900.08",Revenue,Pattersons (Bristol) Ltd,0
South Ribble Borough Council,http://statistics.data.gov.uk/id/local-authority/30UE,CDIG-Customer and Digital,Materials General,4040, LEMON FLOOR GEL 5LTR BD041 -5,29/07/2022,0000479980,52.80,Revenue,Pattersons (Bristol) Ltd,0
South Ribble Borough Council,http://statistics.data.gov.uk/id/local-authority/30UE,CDIG-Customer and Digital,Materials General,4040,GENERAL PURPOSE DISINFECTANT  5 LTR BC017 - 5,29/07/2022,0000479980,25.08,Revenue,Pattersons (Bristol) Ltd,0
South Ribble Borough Council,http://statistics.data.gov.uk/id/local-authority/30UE,CDIG-Customer and Digital,Clothing and Uniforms,4410, DISPOSABLE GLOVES NITRILE (BOX- 100) MEDIUM DG150-M,29/07/2022,0000479980,222.00,Revenue,Pattersons (Bristol) Ltd,0
South Ribble Borough Council,http://statistics.data.gov.uk/id/local-authority/30UE,CDIG-Customer and Digital,Materials General,4040, MICRO MINI TOILET ROLLS - 2ply  120M X 90MM AA201,29/07/2022,0000479980,92.64,Revenue,Pattersons (Bristol) Ltd,0
South Ribble Borough Council,http://statistics.data.gov.uk/id/local-authority/30UE,CDIG-Customer and Digital,Clothing and Uniforms,4410, DISPOSABLE GLOVES NITRILE (BOX- 100) LARGE DG150-L,29/07/2022,0000479980,222.00,Revenue,Pattersons (Bristol) Ltd,0
South Ribble Borough Council,http://statistics.data.gov.uk/id/local-authority/30UE,COMP-Commercial and Property,Reactive Repair & Maintenance,2020,This is for all the internal works required following a burst water main. All the walls had to be stripped back to bare brickwork,01/07/2022,0000479616,"3,200.00",Revenue,PDP PROPERTY SERVICES LTD,0
South Ribble Borough Council,http://statistics.data.gov.uk/id/local-authority/30UE,COMP-Commercial and Property,Cap Contract Payment,C230,Please supply fire extinguisher equipment and signage and fixings delivery and commissioning as per quote For Worden Hall  ,01/07/2022,0000479545,471.60,Revenue,PENNINE FIRE & SAFETY LIMITED,0
South Ribble Borough Council,http://statistics.data.gov.uk/id/local-authority/30UE,COMP-Commercial and Property,Room Hire,2402,Venue Hire for Xmas HAF Camps.,08/07/2022,0000476282,280.00,Revenue,PENWORTHAM PRIORY ACADEMY,0
South Ribble Borough Council,http://statistics.data.gov.uk/id/local-authority/30UE,GOVE-Governance,Occupational Health,1408,"PROVISION OF WELLBEING, TELEPHONE CONSULTATIONS AND COUNSELLING FROM APRIL 2022",15/07/2022,0000479761,"1,081.00",Revenue,People Asset Management,0
South Ribble Borough Council,http://statistics.data.gov.uk/id/local-authority/30UE,POLY-Policy,Occupational Health,1408,"PROVISION OF WELLBEING, TELEPHONE CONSULTATIONS AND COUNSELLING FROM MAY JUNE 2022",15/07/2022,0000479763,348.00,Revenue,People Asset Management,0
South Ribble Borough Council,http://statistics.data.gov.uk/id/local-authority/30UE,POLY-Policy,Occupational Health,1408,,15/07/2022,0000479763,189.00,Revenue,People Asset Management,0
South Ribble Borough Council,http://statistics.data.gov.uk/id/local-authority/30UE,CDIG-Customer and Digital,Contract Printing,4127,Provision & Posting of Garden Waste Permits June - Dec 2022,22/07/2022,0000480285,878.90,Revenue,Permiserv Ltd,0
South Ribble Borough Council,http://statistics.data.gov.uk/id/local-authority/30UE,CDIG-Customer and Digital,Contract Printing,4127,Provision and posting of Garden Waste permits 2022 and hosting of permit management website.,29/07/2022,0000480452,"2,439.30",Revenue,Permiserv Ltd,0
South Ribble Borough Council,http://statistics.data.gov.uk/id/local-authority/30UE,PDEV-Planning and Development,Disclosure Barring,4522,,08/07/2022,0000479484,266.00,Revenue,Personnel Checks,0
South Ribble Borough Council,http://statistics.data.gov.uk/id/local-authority/30UE,PDEV-Planning and Development,Disclosure Barring,4522,,08/07/2022,0000479484,93.31,Revenue,Personnel Checks,0
South Ribble Borough Council,http://statistics.data.gov.uk/id/local-authority/30UE,POLY-Policy,Short Course,1402,NAME REDACTED TO ATTEND CIR - BUSINESS CONTINUITY IN THE AGE OF DISRUPTION COURSE ON 25 MAY 2022,29/07/2022,0000480430,495.00,Revenue,Perspective Publishing Limited,0
South Ribble Borough Council,http://statistics.data.gov.uk/id/local-authority/30UE,POLY-Policy,Group life Insurance,1819,GROUP LIFE ASSURANCE (DEPOSIT) SCHEME RENEWAL NUMBER 8519 - APRIL 2022 - MARCH 2023,08/07/2022,0000478395,"5,000.00",Revenue,PHOENIX LIFE LTD,0
South Ribble Borough Council,http://statistics.data.gov.uk/id/local-authority/30UE,CDIG-Customer and Digital,Materials General,4040,3 x Hydraulic Hoses BIN G037,08/07/2022,0000479883,299.58,Revenue,Pirtek,0
South Ribble Borough Council,http://statistics.data.gov.uk/id/local-authority/30UE,CDIG-Customer and Digital,External Contractors Charges,4570,"Spec Repair, PF18 JOV, JFC18480",08/07/2022,0000479893,266.16,Revenue,Pirtek,0
South Ribble Borough Council,http://statistics.data.gov.uk/id/local-authority/30UE,PDEV-Planning and Development,Agency Staff,1121,Planning Enforcement consultancy services,08/07/2022,0000479412,"1,406.00",Revenue,Planning Control & PACE Solutions,0
South Ribble Borough Council,http://statistics.data.gov.uk/id/local-authority/30UE,PDEV-Planning and Development,Agency Staff,1121,,08/07/2022,0000479412,30.60,Revenue,Planning Control & PACE Solutions,0
South Ribble Borough Council,http://statistics.data.gov.uk/id/local-authority/30UE,PDEV-Planning and Development,Agency Staff,1121,Planning enforcement consultancy,01/07/2022,0000479577,"1,083.00",Revenue,Planning Control & PACE Solutions,0
South Ribble Borough Council,http://statistics.data.gov.uk/id/local-authority/30UE,PDEV-Planning and Development,Agency Staff,1121,,01/07/2022,0000479577,53.55,Revenue,Planning Control & PACE Solutions,0
South Ribble Borough Council,http://statistics.data.gov.uk/id/local-authority/30UE,PDEV-Planning and Development,Agency Staff,1121,Planning enforcement consultancy,15/07/2022,0000480038,"1,221.30",Revenue,Planning Control & PACE Solutions,0
South Ribble Borough Council,http://statistics.data.gov.uk/id/local-authority/30UE,CDIG-Customer and Digital,GM Refurbishment,4657,x1 Twin Rider Seesaw body with fixings,29/07/2022,0000480371,"1,612.81",Revenue,PLAYDALE PLAYGROUNDS LTD,0
South Ribble Borough Council,http://statistics.data.gov.uk/id/local-authority/30UE,COMU-Communities,IDVA Payments,4273,South Ribble`s contribution towards the domestic abuse element of the Lancashire Victim Services contract for 2022/2023.,08/07/2022,0000479548,"9,082.00",Revenue,POLICE & CRIME COMMISSIONER LANCS POLICE,0
South Ribble Borough Council,http://statistics.data.gov.uk/id/local-authority/30UE,COMU-Communities,IDVA Payments,4273,Domestic Abuse Services Contribution for Lancashire Victim Services Year 5 of 5,08/07/2022,0000479549,"8,000.00",Revenue,POLICE & CRIME COMMISSIONER LANCS POLICE,0
South Ribble Borough Council,http://statistics.data.gov.uk/id/local-authority/30UE,GOVE-Governance,Contributions to Other Bodies,4730,2022-2023 Yearly Funding for Radio Network,08/07/2022,0000479793,250.00,Revenue,POLICE & CRIME COMMISSIONER LANCS POLICE,0
South Ribble Borough Council,http://statistics.data.gov.uk/id/local-authority/30UE,POLY-Policy,Publicity & Promotion,4842,EXTERNAL SIGNAGE FOR LEYLAND LEISURE CENTRE,08/07/2022,0000479550,"7,891.55",Revenue,Poppy Signs Ltd,0
South Ribble Borough Council,http://statistics.data.gov.uk/id/local-authority/30UE,CDIG-Customer and Digital,External Contractors Charges,4570,Stripping old and applying new livery to refuse vehicles (work yet to be completed),22/07/2022,0000479982,350.00,Revenue,Poppy Signs Ltd,0
South Ribble Borough Council,http://statistics.data.gov.uk/id/local-authority/30UE,CDIG-Customer and Digital,External Contractors Charges,4570,Stripping old and applying new livery on  Refuse Vehicles as per your quotation 17092,22/07/2022,0000479983,"1,670.00",Revenue,Poppy Signs Ltd,0
South Ribble Borough Council,http://statistics.data.gov.uk/id/local-authority/30UE,CDIG-Customer and Digital,External Contractors Charges,4570,Stripping old and applying new livery on Refuse Vehicles as per your quotation 17179,22/07/2022,0000479984,"1,285.00",Revenue,Poppy Signs Ltd,0
South Ribble Borough Council,http://statistics.data.gov.uk/id/local-authority/30UE,CDIG-Customer and Digital,Paper Bulk,4133,62500 sheets EVOLUTION EVERYDAY A4 80GSM,22/07/2022,0000480305,548.13,Revenue,PREMIER PAPER GROUP LTD,0
South Ribble Borough Council,http://statistics.data.gov.uk/id/local-authority/30UE,COMP-Commercial and Property,Reactive Repair & Maintenance,2020,Replacement of locks at ADDRESS REDACTED,15/07/2022,0000480133,252.50,Revenue,PRESTON LOCKS LTD,0
South Ribble Borough Council,http://statistics.data.gov.uk/id/local-authority/30UE,CDIG-Customer and Digital,Materials General,4040,2 X Tyres 265/7 R 19.5,22/07/2022,0000479552,256.00,Revenue,PRESTON TYRE SPECIALISTS,0
South Ribble Borough Council,http://statistics.data.gov.uk/id/local-authority/30UE,CDIG-Customer and Digital,Materials General,4040,1x Tyre 285/70 R 19.5,08/07/2022,0000479618,491.54,Revenue,PRESTON TYRE SPECIALISTS,0
South Ribble Borough Council,http://statistics.data.gov.uk/id/local-authority/30UE,GOVE-Governance,Software Licensing,4243,Annual subscription renewal for the Chest e-procurement portal on behalf of Chorley Council and SRBC. ,15/07/2022,0000479792,"4,400.00",Revenue,Proactis Ltd,0
South Ribble Borough Council,http://statistics.data.gov.uk/id/local-authority/30UE,COMU-Communities,Void Loss,5313,Interim void rent loss Q3  21/22.,15/07/2022,0000480127,809.72,Revenue,PROGRESS HOUSING GRP ref:DNSOU001,0
South Ribble Borough Council,http://statistics.data.gov.uk/id/local-authority/30UE,COMU-Communities,Contributions to Other Bodies,4730,NAME & ADDRESS REDACTED static rent arrears rent account ,29/07/2022,0000480509,908.19,Revenue,PROGRESS HOUSING GRP ref:DNSOU001,0
South Ribble Borough Council,http://statistics.data.gov.uk/id/local-authority/30UE,PDEV-Planning and Development,Investment & Improvement,485K,Web & email hosting for the current year (starting on 1st April 2022) SSL certificate renewal ,15/07/2022,0000479707,659.99,Revenue,PROTEAN SYSTEMS LIMITED,0
South Ribble Borough Council,http://statistics.data.gov.uk/id/local-authority/30UE,COMP-Commercial and Property,Reactive Repair & Maintenance,2020,match off against credit,01/07/2022,0000479343,"8,625.75",Revenue,PSR & Sons Joiners & Building Contractors,0
South Ribble Borough Council,http://statistics.data.gov.uk/id/local-authority/30UE,COMP-Commercial and Property,Reactive Repair & Maintenance,2020,Damp proof works at 18 Hawksbury Drive.,15/07/2022,0000479440,"2,450.00",Revenue,PSR & Sons Joiners & Building Contractors,0
South Ribble Borough Council,http://statistics.data.gov.uk/id/local-authority/30UE,COMP-Commercial and Property,Reactive Repair & Maintenance,2020,LABOUR,15/07/2022,0000479440,200.00,Revenue,PSR & Sons Joiners & Building Contractors,0
South Ribble Borough Council,http://statistics.data.gov.uk/id/local-authority/30UE,COMP-Commercial and Property,Reactive Repair & Maintenance,2020,For the roof area at the Civic Centre REF: REMMODELLING WORKS TO CIVIC CENTRE ,08/07/2022,0000479850,600.00,Revenue,PSR & Sons Joiners & Building Contractors,0
South Ribble Borough Council,http://statistics.data.gov.uk/id/local-authority/30UE,COMP-Commercial and Property,Reactive Repair & Maintenance,2020,LABOUR,08/07/2022,0000479850,30.00,Revenue,PSR & Sons Joiners & Building Contractors,0
South Ribble Borough Council,http://statistics.data.gov.uk/id/local-authority/30UE,COMP-Commercial and Property,Reactive Repair & Maintenance,2020,To attend moss side depot and repair as required. Faulty dropping widow. As reported to NAME REDACTED,29/07/2022,0000480511,250.00,Revenue,PSR & Sons Joiners & Building Contractors,0
South Ribble Borough Council,http://statistics.data.gov.uk/id/local-authority/30UE,COMP-Commercial and Property,Reactive Repair & Maintenance,2020,LABOUR,29/07/2022,0000480511,10.00,Revenue,PSR & Sons Joiners & Building Contractors,0
South Ribble Borough Council,http://statistics.data.gov.uk/id/local-authority/30UE,COMP-Commercial and Property,Reactive Repair & Maintenance,2020,REF: REMEDIAL WORKS TO PENWORTHAM HOLME as per NAME REDACTED,29/07/2022,0000480513,250.00,Revenue,PSR & Sons Joiners & Building Contractors,0
South Ribble Borough Council,http://statistics.data.gov.uk/id/local-authority/30UE,COMP-Commercial and Property,Reactive Repair & Maintenance,2020,LABOUR,29/07/2022,0000480513,20.00,Revenue,PSR & Sons Joiners & Building Contractors,0
South Ribble Borough Council,http://statistics.data.gov.uk/id/local-authority/30UE,COMP-Commercial and Property,Reactive Repair & Maintenance,2020,REF: REMEDIAL WORKS MOSS LANE DEPO OUR REF LRS Q 6138 21 st JULY 2022,29/07/2022,0000480572,320.00,Revenue,PSR & Sons Joiners & Building Contractors,0
South Ribble Borough Council,http://statistics.data.gov.uk/id/local-authority/30UE,COMP-Commercial and Property,Reactive Repair & Maintenance,2020,labour,29/07/2022,0000480572,40.00,Revenue,PSR & Sons Joiners & Building Contractors,0
South Ribble Borough Council,http://statistics.data.gov.uk/id/local-authority/30UE,COMU-Communities,Temporary Accommodation,5311,NAMES REDACTED family room 13/06  04/07/2022 ,15/07/2022,0000480099,"2,579.00",Revenue,Purpleroomz,0
South Ribble Borough Council,http://statistics.data.gov.uk/id/local-authority/30UE,CDIG-Customer and Digital,Computer Maintenance,4211,System rental and Communications Charge - 60 vehicles for 3 months 1.7.22 - 30.9.22,22/07/2022,0000480129,"2,070.00",Revenue,Quartix,0
South Ribble Borough Council,http://statistics.data.gov.uk/id/local-authority/30UE,CDIG-Customer and Digital,Hiring Expenses,3212,Hire of a 3T excavator delivered to Worden Park 19/05/2022-27/05/2022,08/07/2022,0000479556,555.40,Revenue,Readyplant Limited,0
South Ribble Borough Council,http://statistics.data.gov.uk/id/local-authority/30UE,CDIG-Customer and Digital,Cap Contract Payment,C230,Print and frame 7 photographs - Hurst Grange Coach House,08/07/2022,0000479166,"1,435.00",Revenue,Red Frog Photography (Karen Riches),0
South Ribble Borough Council,http://statistics.data.gov.uk/id/local-authority/30UE,CDIG-Customer and Digital,External Contractors Charges,4570,"Drainage Investigations at St Pauls Park, Farington",08/07/2022,0000479432,300.00,Revenue,RED ROSE BUILDING MAINTENANCE,0
South Ribble Borough Council,http://statistics.data.gov.uk/id/local-authority/30UE,CDIG-Customer and Digital,External Contractors Charges,4570,MATERIALS,08/07/2022,0000479432,100.00,Revenue,RED ROSE BUILDING MAINTENANCE,0
South Ribble Borough Council,http://statistics.data.gov.uk/id/local-authority/30UE,COMP-Commercial and Property,Reactive Repair & Maintenance,2020,To fit bollards outside Moss side village hall.,01/07/2022,0000479435,500.00,Revenue,RED ROSE BUILDING MAINTENANCE,0
South Ribble Borough Council,http://statistics.data.gov.uk/id/local-authority/30UE,COMP-Commercial and Property,Reactive Repair & Maintenance,2020,LABOUR,01/07/2022,0000479435,450.00,Revenue,RED ROSE BUILDING MAINTENANCE,0
South Ribble Borough Council,http://statistics.data.gov.uk/id/local-authority/30UE,CDIG-Customer and Digital,GM Refurbishment,4657,Root cutting at St Pauls Park Farington,15/07/2022,0000479790,400.00,Revenue,RED ROSE BUILDING MAINTENANCE,0
South Ribble Borough Council,http://statistics.data.gov.uk/id/local-authority/30UE,CDIG-Customer and Digital,GM Refurbishment,4657,MATERIALS,15/07/2022,0000479790,200.00,Revenue,RED ROSE BUILDING MAINTENANCE,0
South Ribble Borough Council,http://statistics.data.gov.uk/id/local-authority/30UE,COMP-Commercial and Property,Reactive Repair & Maintenance,2020,Removal of the football pavilion Bamber bridge for us to strip out all the services. ,29/07/2022,0000480520,900.00,Revenue,RED ROSE BUILDING MAINTENANCE,0
South Ribble Borough Council,http://statistics.data.gov.uk/id/local-authority/30UE,COMP-Commercial and Property,Reactive Repair & Maintenance,2020,MATERIALS,29/07/2022,0000480520,600.00,Revenue,RED ROSE BUILDING MAINTENANCE,0
South Ribble Borough Council,http://statistics.data.gov.uk/id/local-authority/30UE,COMP-Commercial and Property,Reactive Repair & Maintenance,2020,To repair the damaged fence at Leyland leisure centre. New fixings and supports required. As per NAME REDACTED,29/07/2022,0000480521,220.00,Revenue,RED ROSE BUILDING MAINTENANCE,0
South Ribble Borough Council,http://statistics.data.gov.uk/id/local-authority/30UE,COMP-Commercial and Property,Reactive Repair & Maintenance,2020,MATERIALS,29/07/2022,0000480521,80.00,Revenue,RED ROSE BUILDING MAINTENANCE,0
South Ribble Borough Council,http://statistics.data.gov.uk/id/local-authority/30UE,COMU-Communities,Miscellaneous Expenses,4851,Storage for Holiday Hunger Food,15/07/2022,0000479762,280.00,Revenue,Red Rose Self Storage Limited,0
South Ribble Borough Council,http://statistics.data.gov.uk/id/local-authority/30UE,COMU-Communities,Contributions to Other Bodies,4730,Replacement of furniture and equipment at the OSM,01/07/2022,0000479650,"1,037.38",Revenue,REDDY & CO,0
South Ribble Borough Council,http://statistics.data.gov.uk/id/local-authority/30UE,COMU-Communities,Temporary Accommodation,5311,OSM July-September 2022,01/07/2022,0000479651,"5,624.90",Revenue,REDDY & CO,0
South Ribble Borough Council,http://statistics.data.gov.uk/id/local-authority/30UE,CDIG-Customer and Digital,Materials General,4040,Parts supplied to overhaul back end YA19NKD JFC18506,15/07/2022,0000479598,"3,557.22",Revenue,Refuse Vehicle Parts,0
South Ribble Borough Council,http://statistics.data.gov.uk/id/local-authority/30UE,CDIG-Customer and Digital,Materials General,4040,Parts supplied to overhaul back end of YA19 NKC JFC18542,08/07/2022,0000479599,"4,119.75",Revenue,Refuse Vehicle Parts,0
South Ribble Borough Council,http://statistics.data.gov.uk/id/local-authority/30UE,CDIG-Customer and Digital,External Contractors Charges,4570,Consultancy support for insourcing waste collection services,08/07/2022,0000479900,"4,180.00",Revenue,RICARDO-AEA LIMITED,0
South Ribble Borough Council,http://statistics.data.gov.uk/id/local-authority/30UE,COMP-Commercial and Property,Cap Contract Payment,C230,Project Management Consultancy Support - Leyland Town Deal,22/07/2022,0000479992,"1,950.00",Revenue,RigDou Ltd,0
South Ribble Borough Council,http://statistics.data.gov.uk/id/local-authority/30UE,COMP-Commercial and Property,Cap Contract Payment,C230,Project Management Consultancy Support - Leyland Town Deal,22/07/2022,0000480007,"1,950.00",Revenue,RigDou Ltd,0
South Ribble Borough Council,http://statistics.data.gov.uk/id/local-authority/30UE,GOVE-Governance,Postal Voting Costs,4422,EARNSHAW BRIDGE BY-DELECTION POSTAL VOTES,01/07/2022,0000479604,438.49,Revenue,ROYAL MAIL GROUP PLC,0
South Ribble Borough Council,http://statistics.data.gov.uk/id/local-authority/30UE,CDIG-Customer and Digital,Postage General,4291,MAIL DIVERSION,01/07/2022,0000479624,"3,050.00",Revenue,ROYAL MAIL GROUP PLC,0
South Ribble Borough Council,http://statistics.data.gov.uk/id/local-authority/30UE,COMP-Commercial and Property,Cap Contract Payment,C230,"McKenzie Arms, Bamber Bridge (Housing Development)",15/07/2022,0000480130,"149,960.26",Revenue,RP Tyson Construction Ltd,0
South Ribble Borough Council,http://statistics.data.gov.uk/id/local-authority/30UE,PDEV-Planning and Development,Consultancy Fees,4541,Consultancy advice on planning applicatons for 22/2023,08/07/2022,0000479899,250.00,Revenue,RSK ADAS Ltd,0
South Ribble Borough Council,http://statistics.data.gov.uk/id/local-authority/30UE,PDEV-Planning and Development,Consultancy Fees,4541,Consultancy advice on planning applicatons for 22/2023,08/07/2022,0000479937,250.00,Revenue,RSK ADAS Ltd,0
South Ribble Borough Council,http://statistics.data.gov.uk/id/local-authority/30UE,PDEV-Planning and Development,Consultancy Fees,4541,Consultancy advice on planning applicatons for 22/2023,08/07/2022,0000479938,250.00,Revenue,RSK ADAS Ltd,0
South Ribble Borough Council,http://statistics.data.gov.uk/id/local-authority/30UE,PDEV-Planning and Development,Consultancy Fees,4541,Consultancy advice on planning applicatons for 22/2023,08/07/2022,0000479939,250.00,Revenue,RSK ADAS Ltd,0
South Ribble Borough Council,http://statistics.data.gov.uk/id/local-authority/30UE,PDEV-Planning and Development,Consultancy Fees,4541,Consultancy advice on planning applicatons for 22/2023,08/07/2022,0000479940,495.00,Revenue,RSK ADAS Ltd,0
South Ribble Borough Council,http://statistics.data.gov.uk/id/local-authority/30UE,PDEV-Planning and Development,Consultancy Fees,4541,Consultancy advice on planning applicatons for 22/2023,08/07/2022,0000479941,450.00,Revenue,RSK ADAS Ltd,0
South Ribble Borough Council,http://statistics.data.gov.uk/id/local-authority/30UE,PDEV-Planning and Development,Consultancy Fees,4541,Consultancy advice on planning applicatons for 22/2023,08/07/2022,0000479942,450.00,Revenue,RSK ADAS Ltd,0
South Ribble Borough Council,http://statistics.data.gov.uk/id/local-authority/30UE,COMP-Commercial and Property,Cap Contract Payment,C230,RIBA Stage 3 - Extra Care Project (West Paddock),01/07/2022,0000478593,"3,707.00",Revenue,SDA Consulting LLP,0
South Ribble Borough Council,http://statistics.data.gov.uk/id/local-authority/30UE,POLY-Policy,External Contractors Charges,4570,Assets relating to the Instalment Sale Agreenment between South Ribble Council and Serco Paisa Ltd,01/07/2022,0000479573,"176,622.00",Revenue,SERCO LEISURE (OP) LTD,0
South Ribble Borough Council,http://statistics.data.gov.uk/id/local-authority/30UE,CDIG-Customer and Digital,Miscellaneous Expenses,4851,9504907322,15/07/2022,0000480049,492.83,Revenue,SHRED-IT LTD,0
South Ribble Borough Council,http://statistics.data.gov.uk/id/local-authority/30UE,CDIG-Customer and Digital,Miscellaneous Expenses,4851,9504988526,15/07/2022,0000480050,629.44,Revenue,SHRED-IT LTD,0
South Ribble Borough Council,http://statistics.data.gov.uk/id/local-authority/30UE,CDIG-Customer and Digital,Miscellaneous Expenses,4851,9505024467,15/07/2022,0000480051,495.04,Revenue,SHRED-IT LTD,0
South Ribble Borough Council,http://statistics.data.gov.uk/id/local-authority/30UE,CDIG-Customer and Digital,Miscellaneous Expenses,4851,9505035756,15/07/2022,0000480052,461.61,Revenue,SHRED-IT LTD,0
South Ribble Borough Council,http://statistics.data.gov.uk/id/local-authority/30UE,CDIG-Customer and Digital,Miscellaneous Expenses,4851,9505065178,15/07/2022,0000480053,497.25,Revenue,SHRED-IT LTD,0
South Ribble Borough Council,http://statistics.data.gov.uk/id/local-authority/30UE,CDIG-Customer and Digital,Miscellaneous Expenses,4851,9505107568,15/07/2022,0000480054,503.88,Revenue,SHRED-IT LTD,0
South Ribble Borough Council,http://statistics.data.gov.uk/id/local-authority/30UE,CDIG-Customer and Digital,Miscellaneous Expenses,4851,9509156591,15/07/2022,0000480055,506.09,Revenue,SHRED-IT LTD,0
South Ribble Borough Council,http://statistics.data.gov.uk/id/local-authority/30UE,CDIG-Customer and Digital,Miscellaneous Expenses,4851,9505187939,15/07/2022,0000480056,517.14,Revenue,SHRED-IT LTD,0
South Ribble Borough Council,http://statistics.data.gov.uk/id/local-authority/30UE,CDIG-Customer and Digital,Miscellaneous Expenses,4851,9505231112,15/07/2022,0000480057,519.35,Revenue,SHRED-IT LTD,0
South Ribble Borough Council,http://statistics.data.gov.uk/id/local-authority/30UE,CDIG-Customer and Digital,Miscellaneous Expenses,4851,9505271637,15/07/2022,0000480058,528.19,Revenue,SHRED-IT LTD,0
South Ribble Borough Council,http://statistics.data.gov.uk/id/local-authority/30UE,CDIG-Customer and Digital,Miscellaneous Expenses,4851,9505311699,15/07/2022,0000480059,614.79,Revenue,SHRED-IT LTD,0
South Ribble Borough Council,http://statistics.data.gov.uk/id/local-authority/30UE,CDIG-Customer and Digital,Miscellaneous Expenses,4851,9505399850,15/07/2022,0000480060,539.24,Revenue,SHRED-IT LTD,0
South Ribble Borough Council,http://statistics.data.gov.uk/id/local-authority/30UE,CDIG-Customer and Digital,Miscellaneous Expenses,4851,9505360747,15/07/2022,0000480061,539.24,Revenue,SHRED-IT LTD,0
South Ribble Borough Council,http://statistics.data.gov.uk/id/local-authority/30UE,COMP-Commercial and Property,Cap Contract Payment,C230,Worden Hall - Temporary Signage (Internal and External),08/07/2022,0000479751,469.00,Revenue,SIGNS PRESTON LTD T/A SIGNS EXPRESS CENTRAL LANCS,0
South Ribble Borough Council,http://statistics.data.gov.uk/id/local-authority/30UE,COMP-Commercial and Property,Cap Contract Payment,C230,"Leyland Town Deal - Chapel Brow, Leyland Stage 1 Road Safety Audit (RSA)",08/07/2022,0000479485,750.00,Revenue,Six Ten Highways & Traffic Ltd,0
South Ribble Borough Council,http://statistics.data.gov.uk/id/local-authority/30UE,COMP-Commercial and Property,South Ribble Leisure Ltd Costs,5600,qtr2,08/07/2022,0000479674,"145,807.00",Revenue,South Ribble Leisure Ltd,0
South Ribble Borough Council,http://statistics.data.gov.uk/id/local-authority/30UE,COMP-Commercial and Property,Professional Fees,4510,Active Health Tennis Festival,15/07/2022,0000480145,278.25,Revenue,South Ribble Leisure Ltd,0
South Ribble Borough Council,http://statistics.data.gov.uk/id/local-authority/30UE,COMP-Commercial and Property,Leisure - Sundry Debtors,0023,SRLL INCOME 222/23,29/07/2022,0000480424,"19,664.20",Revenue,South Ribble Leisure Ltd,0
South Ribble Borough Council,http://statistics.data.gov.uk/id/local-authority/30UE,CDIG-Customer and Digital,Materials General,4040,18x Skids Bin 1075,22/07/2022,0000480104,288.00,Revenue,SPALDINGS,0
South Ribble Borough Council,http://statistics.data.gov.uk/id/local-authority/30UE,COMP-Commercial and Property,Gas,2304,,08/07/2022,0000479743,"1,446.65",Revenue,SSE 271850110 Moss Side CC Dunkirk Hall,0
South Ribble Borough Council,http://statistics.data.gov.uk/id/local-authority/30UE,COMP-Commercial and Property,Gas,2304,5/3 to 31/5/22,22/07/2022,0000480261,"1,225.46",Revenue,SSE 271850110 Moss Side CC Dunkirk Hall,0
South Ribble Borough Council,http://statistics.data.gov.uk/id/local-authority/30UE,CDIG-Customer and Digital,Gas Oil,3134,"2,500 litres gas oil ",08/07/2022,0000479425,"2,824.19",Revenue,Standard Fuel Oils LtdMain,0
South Ribble Borough Council,http://statistics.data.gov.uk/id/local-authority/30UE,CDIG-Customer and Digital,Diesel Fuel,3132,"20,000 litres Diesel ",08/07/2022,0000479426,"30,202.42",Revenue,Standard Fuel Oils LtdMain,0
South Ribble Borough Council,http://statistics.data.gov.uk/id/local-authority/30UE,CDIG-Customer and Digital,Diesel Fuel,3132,"16,000 litres Diesel ",08/07/2022,0000479559,"30,839.54",Revenue,Standard Fuel Oils LtdMain,0
South Ribble Borough Council,http://statistics.data.gov.uk/id/local-authority/30UE,CDIG-Customer and Digital,Diesel Fuel,3132,"16,000 Litres disel ",22/07/2022,0000479929,"25,896.85",Revenue,Standard Fuel Oils LtdMain,0
South Ribble Borough Council,http://statistics.data.gov.uk/id/local-authority/30UE,CDIG-Customer and Digital,Diesel Fuel,3132,"2,500 Litres of Gas Oil ",22/07/2022,0000479930,"2,962.95",Revenue,Standard Fuel Oils LtdMain,0
South Ribble Borough Council,http://statistics.data.gov.uk/id/local-authority/30UE,CDIG-Customer and Digital,Diesel Fuel,3132,"16,000 Litres disel ",22/07/2022,0000480207,"24,870.84",Revenue,Standard Fuel Oils LtdMain,0
South Ribble Borough Council,http://statistics.data.gov.uk/id/local-authority/30UE,CDIG-Customer and Digital,Diesel Fuel,3132,"2,000 Litres of Gas Oil ",22/07/2022,0000480208,"2,141.24",Revenue,Standard Fuel Oils LtdMain,0
South Ribble Borough Council,http://statistics.data.gov.uk/id/local-authority/30UE,COMU-Communities,Capital Grant,C570,Additional costs for plinth work at ADDRESS REDACTED,08/07/2022,0000478878,"1,162.50",Revenue,Stannah Lift Services Ltd,0
South Ribble Borough Council,http://statistics.data.gov.uk/id/local-authority/30UE,COMU-Communities,Capital Grant,C570,DFG WORK TO SUPPLY AND INSTALL A STAIRLIFT  AT ADDRESS REDACTED  AS PER QUOTE SUPPLIED ,08/07/2022,0000479608,282.00,Revenue,Stannah Lift Services Ltd,0
South Ribble Borough Council,http://statistics.data.gov.uk/id/local-authority/30UE,COMU-Communities,Capital Grant,C570,DFG WORK TO SUPPLY AND INSTALL A STAIRLIFT  AT ADDRESS REDACTED  AS PER QUOTE SUPPLIED ,01/07/2022,0000479710,"2,609.00",Revenue,Stannah Lift Services Ltd,0
South Ribble Borough Council,http://statistics.data.gov.uk/id/local-authority/30UE,COMU-Communities,Capital Grant,C570,DFG WORK TO SUPPLY AND INSTALL A STAIRLIFT  AT ADDRESS REDACTED  AS PER QUOTE SUPPLIED ,01/07/2022,0000479711,"2,868.00",Revenue,Stannah Lift Services Ltd,0
South Ribble Borough Council,http://statistics.data.gov.uk/id/local-authority/30UE,COMU-Communities,Capital Grant,C570,DFG WORK TO SUPPLY AND INSTALL A STAIRLIFT  AT ADDRESS REDACTED  AS PER QUOTE SUPPLIED ,08/07/2022,0000479928,"14,234.00",Revenue,Stannah Lift Services Ltd,0
South Ribble Borough Council,http://statistics.data.gov.uk/id/local-authority/30UE,COMU-Communities,Capital Grant,C570,DFG WORK TO SUPPLY AND INSTALL A STAIRLIFT  AT ADDRESS REDACTED  AS PER QUOTE SUPPLIED ,15/07/2022,0000480023,"3,004.00",Revenue,Stannah Lift Services Ltd,0
South Ribble Borough Council,http://statistics.data.gov.uk/id/local-authority/30UE,CDIG-Customer and Digital,Mobile Devices Hardware,4244, 20x OtterBox Car Charger 30W - USB-  LOCKNCHARGE JOEY 40 GREY MULTIMEDIA ,01/07/2022,0000479486,"1,328.00",Revenue,Starcom Technologies,0
South Ribble Borough Council,http://statistics.data.gov.uk/id/local-authority/30UE,COMP-Commercial and Property,Cap Contract Payment,C230,Costs for Stage 2 of the Business Case Development scheme for Leyland Town Deal,08/07/2022,0000479758,"25,058.34",Revenue,Steer Davies & Gleave Ltd,0
South Ribble Borough Council,http://statistics.data.gov.uk/id/local-authority/30UE,COMP-Commercial and Property,Cap Contract Payment,C230,"Provision of Mechanical, Electrical and Plumbing Services to RIBA Stage 3 for the Leyland Town Deal Development",22/07/2022,0000479323,"4,337.50",Revenue,STEVEN A HUNT & ASSOCIATES LTD,0
South Ribble Borough Council,http://statistics.data.gov.uk/id/local-authority/30UE,COMP-Commercial and Property,Cap Contract Payment,C230,"Provision of Mechanical, Electrical and Plumbing Services to RIBA Stage 3 for the Leyland Town Deal Development",22/07/2022,0000479879,"2,168.75",Revenue,STEVEN A HUNT & ASSOCIATES LTD,0
South Ribble Borough Council,http://statistics.data.gov.uk/id/local-authority/30UE,PDEV-Planning and Development,Economic Regeneration,485A,3 A4 4 page flyers printed in full colour two sided A4 folder full colour one sided with gloss lam Artwork changes ,15/07/2022,0000479324,609.00,Revenue,STONE CREATE LTD,0
South Ribble Borough Council,http://statistics.data.gov.uk/id/local-authority/30UE,CDIG-Customer and Digital,External Contractors Charges,4570,"Empty & Return of general waste yard skip (20 yard) from Unit 81 Bison Place, Moss Side Industrial Estate, Leyland, PR26 7QR.",08/07/2022,0000479882,131.64,Revenue,SUEZ  RECYCLING AND REC UK LTD 80005291,0
South Ribble Borough Council,http://statistics.data.gov.uk/id/local-authority/30UE,CDIG-Customer and Digital,External Contractors Charges,4570,Charge for skip to be moved within the yard 27/04/2022,08/07/2022,0000479882,131.64,Revenue,SUEZ  RECYCLING AND REC UK LTD 80005291,0
South Ribble Borough Council,http://statistics.data.gov.uk/id/local-authority/30UE,GOVE-Governance,Corp Subs to Professional Bodies,4720,MEMBERSHIP SUBSCRIPTION RENEWAL 2022/2023,15/07/2022,0000480063,"2,320.00",Revenue,TAMESIDE METROPOLITAN BOROUGH COUNCIL,0
South Ribble Borough Council,http://statistics.data.gov.uk/id/local-authority/30UE,COMU-Communities,Core Fund,4861,To supply 1x Headstone for RC,22/07/2022,0000480378,600.00,Revenue,Taylor Memorials,0
South Ribble Borough Council,http://statistics.data.gov.uk/id/local-authority/30UE,CDIG-Customer and Digital,External Contractors Charges,4570,Wireless Ethernet Radio * 2. Plant * 1,29/07/2022,0000477926,799.70,Revenue,Technology Solutions,0
South Ribble Borough Council,http://statistics.data.gov.uk/id/local-authority/30UE,CDIG-Customer and Digital,Miscellaneous Expenses,4851,Public Administration Licence Professional Employees,15/07/2022,0000479876,529.98,Revenue,The Copyright Licensing Agency Ltd,0
South Ribble Borough Council,http://statistics.data.gov.uk/id/local-authority/30UE,COMU-Communities,Miscellaneous Expenses,4851,PA Systems for Penwortham Live,15/07/2022,0000479927,"2,550.00",Revenue,The Creative Network,0
South Ribble Borough Council,http://statistics.data.gov.uk/id/local-authority/30UE,COMP-Commercial and Property,Cap Contract Payment,C230,"Provision of landscape architect consultancy services - Extra Care Development, West Paddock RIBA Stage 3",08/07/2022,0000479892,"8,070.00",Revenue,The Environment Partnership (TEP) Limited,0
South Ribble Borough Council,http://statistics.data.gov.uk/id/local-authority/30UE,COMP-Commercial and Property,Cap Contract Payment,C230,"Additional works - drawing updates - Jubilee Gardens, West Paddock",15/07/2022,0000480161,"1,180.00",Revenue,The Environment Partnership (TEP) Limited,0
South Ribble Borough Council,http://statistics.data.gov.uk/id/local-authority/30UE,CDIG-Customer and Digital,Technical Support,4246,AV Equipment Re-location PS Day Block,22/07/2022,0000479153,650.00,Revenue,The Networking People (TNP) Ltd,0
South Ribble Borough Council,http://statistics.data.gov.uk/id/local-authority/30UE,CDIG-Customer and Digital,Consultancy Fees,4541,Total of 76.5 PS days required to support the below scope of works: Professional services Scope of works,29/07/2022,0000479356,"8,450.00",Revenue,The Networking People (TNP) Ltd,0
South Ribble Borough Council,http://statistics.data.gov.uk/id/local-authority/30UE,CDIG-Customer and Digital,Software Licensing,4243,Renewal of Cloud Connect (1000 concurrent users) 31/07/2022 - 31/07/2023,08/07/2022,0000479760,"2,950.00",Revenue,The Networking People (TNP) Ltd,0
South Ribble Borough Council,http://statistics.data.gov.uk/id/local-authority/30UE,COMP-Commercial and Property,Electricity,2303,1/6 to 1/7/22,15/07/2022,0000480238,492.00,Revenue,The renewable energy company Ltd (Ecotircity),0
South Ribble Borough Council,http://statistics.data.gov.uk/id/local-authority/30UE,POLY-Policy,Occupational Health,1408,6 SESSIONS OF THERAPY FOR NAME REDACTED AS AGREED,01/07/2022,0000479418,490.00,Revenue,THE THERAPY COMPANY,0
South Ribble Borough Council,http://statistics.data.gov.uk/id/local-authority/30UE,POLY-Policy,Occupational Health,1408,6 SESSIONS OF THERAPY FOR NAME REDACTED AS AGREED,01/07/2022,0000479421,350.00,Revenue,THE THERAPY COMPANY,0
South Ribble Borough Council,http://statistics.data.gov.uk/id/local-authority/30UE,POLY-Policy,Occupational Health,1408,6 SESSIONS OF THERAPY FOR NAME REDACTED AS AGREED,01/07/2022,0000479422,350.00,Revenue,THE THERAPY COMPANY,0
South Ribble Borough Council,http://statistics.data.gov.uk/id/local-authority/30UE,POLY-Policy,Occupational Health,1408,6 SESSIONS OF THERAPY FOR NAME REDACTED AS AGREED,08/07/2022,0000479652,420.00,Revenue,THE THERAPY COMPANY,0
South Ribble Borough Council,http://statistics.data.gov.uk/id/local-authority/30UE,POLY-Policy,Occupational Health,1408,6 SESSIONS OF THERAPY FOR NAME REDACTED AS AGREED,08/07/2022,0000479924,350.00,Revenue,THE THERAPY COMPANY,0
South Ribble Borough Council,http://statistics.data.gov.uk/id/local-authority/30UE,POLY-Policy,Occupational Health,1408,6 further sessions of therapy for PO`H as discussed,15/07/2022,0000479926,420.00,Revenue,THE THERAPY COMPANY,0
South Ribble Borough Council,http://statistics.data.gov.uk/id/local-authority/30UE,CDIG-Customer and Digital,GM Refurbishment,4657,2000no. 65mm Old clamp blend bricks,22/07/2022,0000480045,"2,100.00",Revenue,The York Handmade Brick Company Limited,0
South Ribble Borough Council,http://statistics.data.gov.uk/id/local-authority/30UE,CDIG-Customer and Digital,GM Refurbishment,4657, Delivery to PR25 1DJ,22/07/2022,0000480045,350.00,Revenue,The York Handmade Brick Company Limited,0
South Ribble Borough Council,http://statistics.data.gov.uk/id/local-authority/30UE,COMP-Commercial and Property,Electricity,2303,1/6 to 30/6/22,15/07/2022,0000480022,"2,770.97",Revenue,Total Gas & power Ltd,0
South Ribble Borough Council,http://statistics.data.gov.uk/id/local-authority/30UE,COMP-Commercial and Property,Gas,2304,31/5/22 to 30/6/22,15/07/2022,0000480177,657.86,Revenue,Total Gas & power Ltd,0
South Ribble Borough Council,http://statistics.data.gov.uk/id/local-authority/30UE,COMP-Commercial and Property,Electricity,2303,1/6 to 30/6/22,15/07/2022,0000480181,464.65,Revenue,Total Gas & power Ltd,0
South Ribble Borough Council,http://statistics.data.gov.uk/id/local-authority/30UE,COMP-Commercial and Property,Electricity,2303,1-30 jun22,22/07/2022,0000480257,"2,084.11",Revenue,Total Gas & power Ltd,0
South Ribble Borough Council,http://statistics.data.gov.uk/id/local-authority/30UE,COMP-Commercial and Property,Electricity,2303,1 - 30 jun 22,22/07/2022,0000480259,"2,105.21",Revenue,Total Gas & power Ltd,0
South Ribble Borough Council,http://statistics.data.gov.uk/id/local-authority/30UE,CDIG-Customer and Digital,External Contractors Charges,4570,Truck Tyre Maintenance - June 2022,22/07/2022,0000480142,"1,434.47",Revenue,Tructyre Fleet Management Ltd,0
South Ribble Borough Council,http://statistics.data.gov.uk/id/local-authority/30UE,CDIG-Customer and Digital,External Contractors Charges,4570,Truck Tyre Maintenance - June 2022,29/07/2022,0000480538,578.90,Revenue,Tructyre Fleet Management Ltd,0
South Ribble Borough Council,http://statistics.data.gov.uk/id/local-authority/30UE,COMU-Communities,Investment & Improvement,485K,"Investment Roller Banners � copywriting, design and print",15/07/2022,0000479600,861.00,Revenue,TWA Marketing and Communications Ltd,0
South Ribble Borough Council,http://statistics.data.gov.uk/id/local-authority/30UE,POLY-Policy,UK Healthcare,1710,01 june 2022,01/07/2022,0000479358,"1,490.40",Revenue,UK healthcare (BDHSC),0
South Ribble Borough Council,http://statistics.data.gov.uk/id/local-authority/30UE,POLY-Policy,UK Healthcare,1710,01 may 2022,08/07/2022,0000479720,"1,518.00",Revenue,UK healthcare (BDHSC),0
South Ribble Borough Council,http://statistics.data.gov.uk/id/local-authority/30UE,POLY-Policy,Professional Fees,4510,Music in the Park event security,08/07/2022,0000479602,"10,328.00",Revenue,UK Media & Events Security Limited,0
South Ribble Borough Council,http://statistics.data.gov.uk/id/local-authority/30UE,COMP-Commercial and Property,Cap Contract Payment,C230,Security for worden hall 23/5 to 2/6 as per quote QU0298 as per NAME REDACTED request ,22/07/2022,0000480151,"1,792.00",Revenue,UK Media & Events Security Limited,0
South Ribble Borough Council,http://statistics.data.gov.uk/id/local-authority/30UE,POLY-Policy,Miscellaneous Expenses,4851,Music in the Park/Leyland Festival Staging Infrastructure Power Provision Sound Lighting Video Plant Services,01/07/2022,0000479350,"26,807.50",Revenue,UK Media Events Ltd,0
South Ribble Borough Council,http://statistics.data.gov.uk/id/local-authority/30UE,POLY-Policy,Operational Equip & Tools,4010,Extra PA (6 L`acoustics LineArray) + Specific sound desks as requested by Artist`s Sound Engineers ,15/07/2022,0000480066,"4,500.00",Revenue,UK Media Events Ltd,0
South Ribble Borough Council,http://statistics.data.gov.uk/id/local-authority/30UE,COMP-Commercial and Property,Materials General,4040,Supply of 6 x School Table Tennis Packages for Ping in the Community Project ,29/07/2022,0000480540,"3,450.00",Revenue,UK Table Tennis,0
South Ribble Borough Council,http://statistics.data.gov.uk/id/local-authority/30UE,COMP-Commercial and Property,Cost of Drinks,4311,stock for coffee machine june 22,01/07/2022,0000479597,640.00,Revenue,VENDING ENTERPRISES,0
South Ribble Borough Council,http://statistics.data.gov.uk/id/local-authority/30UE,COMP-Commercial and Property,Reactive Repair & Maintenance,2020,"2022 / 2023 annual contract for quarterly servicing of 1No water cooler located at Moss Side Depot, Bison Place, Leyland",15/07/2022,0000480150,900.00,Revenue,VENDING ENTERPRISES,0
South Ribble Borough Council,http://statistics.data.gov.uk/id/local-authority/30UE,GOVE-Governance,Agency Staff,1121,COST OF ENGAGING LOCUM SOLICITOR NAME REDACTED - CONTRACT BEGINS 6 MAY 2022,15/07/2022,0000479325,"1,945.65",Revenue,VENN GROUP LTD,0
South Ribble Borough Council,http://statistics.data.gov.uk/id/local-authority/30UE,GOVE-Governance,Agency Staff,1121,COST OF ENGAGING LOCUM SOLICITOR NAME REDACTED - CONTRACT BEGINS 6 MAY 2022,01/07/2022,0000479361,"1,889.48",Revenue,VENN GROUP LTD,0
South Ribble Borough Council,http://statistics.data.gov.uk/id/local-authority/30UE,GOVE-Governance,Agency Staff,1121,COST OF ENGAGING LOCUM SOLICITOR NAME REDACTED - CONTRACT BEGINS 6 MAY 2022,01/07/2022,0000479571,"1,615.43",Revenue,VENN GROUP LTD,0
South Ribble Borough Council,http://statistics.data.gov.uk/id/local-authority/30UE,GOVE-Governance,Agency Staff,1121,COST OF ENGAGING LOCUM SOLICITOR NAME REDACTED - CONTRACT BEGINS 6 MAY 2022,15/07/2022,0000479838,"1,932.00",Revenue,VENN GROUP LTD,0
South Ribble Borough Council,http://statistics.data.gov.uk/id/local-authority/30UE,GOVE-Governance,Agency Staff,1121,COST OF ENGAGING LOCUM SOLICITOR NAME REDACTED - CONTRACT BEGINS 6 MAY 2022,29/07/2022,0000480000,"1,873.73",Revenue,VENN GROUP LTD,0
South Ribble Borough Council,http://statistics.data.gov.uk/id/local-authority/30UE,GOVE-Governance,Agency Staff,1121,NAME REDACTED reversed grn duplicate? COST OF ENGAGING LOCUM SOLICITOR NAME REDACTED  - CONTRACT BEGINS 6 MAY 2022,22/07/2022,0000480348,"1,982.93",Revenue,VENN GROUP LTD,0
South Ribble Borough Council,http://statistics.data.gov.uk/id/local-authority/30UE,GOVE-Governance,Agency Staff,1121,COST OF ENGAGING LOCUM SOLICITOR LYNNE JACKSON - CONTRACT BEGINS 6 MAY 2022,29/07/2022,0000480567,"1,887.38",Revenue,VENN GROUP LTD,0
South Ribble Borough Council,http://statistics.data.gov.uk/id/local-authority/30UE,GOVE-Governance,Electoral Administration Act,4970,70 X GENTO1608 BLG3 480X350 mm RED BLG3_RDS VERSAPACK XL CLEAR FLAT WALLET AS PER QUOTATION SQ105349,15/07/2022,0000480064,668.89,Revenue,Versapak International Ltd,0
South Ribble Borough Council,http://statistics.data.gov.uk/id/local-authority/30UE,COMU-Communities,Corp Subs to Professional Bodies,4720,Windrush event,15/07/2022,0000480071,"1,500.00",Revenue,Visual Production Group,0
South Ribble Borough Council,http://statistics.data.gov.uk/id/local-authority/30UE,PDEV-Planning and Development,Agency Staff,1121,Consultant Planning Officer NAME REDACTED - 6 month contract to provide additional support to Development Management.,08/07/2022,0000479564,"1,365.00",Revenue,Vivid Resourcing,0
South Ribble Borough Council,http://statistics.data.gov.uk/id/local-authority/30UE,PDEV-Planning and Development,Agency Staff,1121,Consultant Planning Officer NAME REDACTED - 6 month contract to provide additional support to Development Management.,08/07/2022,0000479565,"1,999.20",Revenue,Vivid Resourcing,0
South Ribble Borough Council,http://statistics.data.gov.uk/id/local-authority/30UE,PDEV-Planning and Development,Agency Staff,1121,Consultant Planning Officer NAME REDACTED - 6 month contract to provide additional support to Development Management.,08/07/2022,0000479566,"1,995.00",Revenue,Vivid Resourcing,0
South Ribble Borough Council,http://statistics.data.gov.uk/id/local-authority/30UE,PDEV-Planning and Development,Agency Staff,1121,Consultant Planning Officer NAME REDACTED - 6 month contract to provide additional support to Development Management.,08/07/2022,0000479567,"1,417.50",Revenue,Vivid Resourcing,0
South Ribble Borough Council,http://statistics.data.gov.uk/id/local-authority/30UE,PDEV-Planning and Development,Agency Staff,1121,Consultant Planning Officer NAME REDACTED - 6 month contract to provide additional support to Development Management.,08/07/2022,0000479568,"1,680.00",Revenue,Vivid Resourcing,0
South Ribble Borough Council,http://statistics.data.gov.uk/id/local-authority/30UE,PDEV-Planning and Development,Agency Staff,1121,Consultant Planning Officer NAME REDACTED - 6 month contract to provide additional support to Development Management.,08/07/2022,0000479569,"2,992.50",Revenue,Vivid Resourcing,0
South Ribble Borough Council,http://statistics.data.gov.uk/id/local-authority/30UE,PDEV-Planning and Development,Agency Staff,1121,Consultant Planning Officer NAME REDACTED - 6 month contract to provide additional support to Development Management.,08/07/2022,0000479596,"1,995.00",Revenue,Vivid Resourcing,0
South Ribble Borough Council,http://statistics.data.gov.uk/id/local-authority/30UE,COMP-Commercial and Property,Agency Staff,1121,To offer an Interim Estates Surveyor position  to NAME REDACTED to provide professions surveying services ,08/07/2022,0000479688,"2,586.00",Revenue,Vivid Resourcing,0
South Ribble Borough Council,http://statistics.data.gov.uk/id/local-authority/30UE,PDEV-Planning and Development,Agency Staff,1121,Consultant Planning Officer NAME REDACTED - 6 month contract to provide additional support to Development Management.,08/07/2022,0000479713,"1,995.00",Revenue,Vivid Resourcing,0
South Ribble Borough Council,http://statistics.data.gov.uk/id/local-authority/30UE,PDEV-Planning and Development,Agency Staff,1121,Consultant Planning Officer NAME REDACTED - 6 month contract to provide additional support to Development Management.,22/07/2022,0000479934,"1,995.00",Revenue,Vivid Resourcing,0
South Ribble Borough Council,http://statistics.data.gov.uk/id/local-authority/30UE,COMP-Commercial and Property,Agency Staff,1121,To offer an Interim Estates Surveyor position  to NAME REDACTED to provide professions surveying services ,15/07/2022,0000480068,"1,675.00",Revenue,Vivid Resourcing,0
South Ribble Borough Council,http://statistics.data.gov.uk/id/local-authority/30UE,PDEV-Planning and Development,Agency Staff,1121,Consultant Planning Officer NAME REDACTED - 6 month contract to provide additional support to Development Management.,22/07/2022,0000480149,"1,995.00",Revenue,Vivid Resourcing,0
South Ribble Borough Council,http://statistics.data.gov.uk/id/local-authority/30UE,COMP-Commercial and Property,Agency Staff,1121,To offer an Interim Estates Surveyor position  to NAME REDACTED to provide professions surveying services ,29/07/2022,0000480286,900.00,Revenue,Vivid Resourcing,0
South Ribble Borough Council,http://statistics.data.gov.uk/id/local-authority/30UE,PDEV-Planning and Development,Agency Staff,1121,Consultant Planning Officer NAME REDACTED - 6 month contract to provide additional support to Development Management.,22/07/2022,0000480301,"1,942.50",Revenue,Vivid Resourcing,0
South Ribble Borough Council,http://statistics.data.gov.uk/id/local-authority/30UE,CDIG-Customer and Digital,Network and Security,4247,01 july 2022,22/07/2022,0000480240,"2,404.20",Revenue,VODAFONE RE:CABLE & WIRELESS UK,0
South Ribble Borough Council,http://statistics.data.gov.uk/id/local-authority/30UE,CDIG-Customer and Digital,Network and Security,4247,01 Jan 2022,29/07/2022,0000480544,"1,076.43",Revenue,VODAFONE RE:CABLE & WIRELESS UK,0
South Ribble Borough Council,http://statistics.data.gov.uk/id/local-authority/30UE,CDIG-Customer and Digital,Materials General,4040,1 x Extension Plate 1 x Support Plate 1 x Carriage PO70 YOG JFC18504,22/07/2022,0000479805,297.87,Revenue,WasteParts UK Ltd,0
South Ribble Borough Council,http://statistics.data.gov.uk/id/local-authority/30UE,COMP-Commercial and Property,Water Charges(Metered),2511,27/3 to 7/7/22,22/07/2022,0000480270,"1,110.04",Revenue,WATER PLUS,0
South Ribble Borough Council,http://statistics.data.gov.uk/id/local-authority/30UE,COMP-Commercial and Property,Water Charges(Metered),2511,9/2 to 28/5/22,29/07/2022,0000480514,88.15,Revenue,WATER PLUS,0
South Ribble Borough Council,http://statistics.data.gov.uk/id/local-authority/30UE,COMP-Commercial and Property,Water Charges(Metered),2511,9/2 to 28/5/22,29/07/2022,0000480514,270.09,Revenue,WATER PLUS,0
South Ribble Borough Council,http://statistics.data.gov.uk/id/local-authority/30UE,COMP-Commercial and Property,Water Charges(Metered),2511,19/11 to 8/2/22,29/07/2022,0000480515,177.04,Revenue,WATER PLUS,0
South Ribble Borough Council,http://statistics.data.gov.uk/id/local-authority/30UE,COMP-Commercial and Property,Water Charges(Metered),2511,19/11 to 8/2/22,29/07/2022,0000480515,120.06,Revenue,WATER PLUS,0
South Ribble Borough Council,http://statistics.data.gov.uk/id/local-authority/30UE,COMP-Commercial and Property,Planned Annual Repair & Maintenance,2021,Continuation of hire of unit at Penwortham Holme as per NAME REDACTED,08/07/2022,0000479999,420.00,Revenue,Wernick Hire Ltd,0
South Ribble Borough Council,http://statistics.data.gov.uk/id/local-authority/30UE,CDIG-Customer and Digital,External Contractors Charges,4570,Works on Willow tree to rear of ADDRESS REDACTED on opposite river bank,08/07/2022,0000479653,425.00,Revenue,WESTFIELD TREE SERVICES LTD,0
South Ribble Borough Council,http://statistics.data.gov.uk/id/local-authority/30UE,CDIG-Customer and Digital,Franked Post,4292,SRBC - Daily mail collections for all outgoing mail 3pm onwards,01/07/2022,0000479547,395.56,Revenue,WHISTL  UK LTD,0
South Ribble Borough Council,http://statistics.data.gov.uk/id/local-authority/30UE,CDIG-Customer and Digital,Franked Post,4292,SRBC - Daily mail collections for all outgoing mail 3pm onwards,01/07/2022,0000479654,661.16,Revenue,WHISTL  UK LTD,0
South Ribble Borough Council,http://statistics.data.gov.uk/id/local-authority/30UE,CDIG-Customer and Digital,Franked Post,4292,SRBC - Daily mail collections for all outgoing mail 3pm onwards,15/07/2022,0000479919,486.88,Revenue,WHISTL  UK LTD,0
South Ribble Borough Council,http://statistics.data.gov.uk/id/local-authority/30UE,CDIG-Customer and Digital,Franked Post,4292,SRBC - Daily mail collections for all outgoing mail 3pm onwards,15/07/2022,0000480183,285.02,Revenue,WHISTL  UK LTD,0
South Ribble Borough Council,http://statistics.data.gov.uk/id/local-authority/30UE,CDIG-Customer and Digital,Franked Post,4292,SRBC - Daily mail collections for all outgoing mail 3pm onwards,15/07/2022,0000480184,955.99,Revenue,WHISTL  UK LTD,0
South Ribble Borough Council,http://statistics.data.gov.uk/id/local-authority/30UE,CDIG-Customer and Digital,Franked Post,4292,SRBC - Daily mail collections for all outgoing mail 3pm onwards,22/07/2022,0000480383,386.66,Revenue,WHISTL  UK LTD,0
South Ribble Borough Council,http://statistics.data.gov.uk/id/local-authority/30UE,CDIG-Customer and Digital,Franked Post,4292,SRBC - Daily mail collections for all outgoing mail 3pm onwards,22/07/2022,0000480384,396.28,Revenue,WHISTL  UK LTD,0
South Ribble Borough Council,http://statistics.data.gov.uk/id/local-authority/30UE,CDIG-Customer and Digital,Franked Post,4292,SRBC - Daily mail collections for all outgoing mail 3pm onwards,22/07/2022,0000480395,955.99,Revenue,WHISTL  UK LTD,0
South Ribble Borough Council,http://statistics.data.gov.uk/id/local-authority/30UE,CDIG-Customer and Digital,Franked Post,4292,SRBC - Daily mail collections for all outgoing mail 3pm onwards,22/07/2022,0000480396,398.44,Revenue,WHISTL  UK LTD,0
South Ribble Borough Council,http://statistics.data.gov.uk/id/local-authority/30UE,CDIG-Customer and Digital,Franked Post,4292,SRBC - Daily mail collections for all outgoing mail 3pm onwards,22/07/2022,0000480398,276.14,Revenue,WHISTL  UK LTD,0
South Ribble Borough Council,http://statistics.data.gov.uk/id/local-authority/30UE,COMP-Commercial and Property,Professional Fees,4510,For the provision of works for  a Stock condition surveys to all SRBC commercial and investment stock,01/07/2022,0000479360,"4,950.00",Revenue,WhiteleyEaves Limited,0
South Ribble Borough Council,http://statistics.data.gov.uk/id/local-authority/30UE,CDIG-Customer and Digital,Operational Equip & Tools,4010,Eclipse lazy Tong Riveter XGJ00001665,15/07/2022,0000479933,133.63,Revenue,WILLIAM MOORE & SON (PRESTON) LTD,0
South Ribble Borough Council,http://statistics.data.gov.uk/id/local-authority/30UE,CDIG-Customer and Digital,Operational Equip & Tools,4010,Torque Wrench 3/4 DR XGJ00001666,15/07/2022,0000479933,649.95,Revenue,WILLIAM MOORE & SON (PRESTON) LTD,0
South Ribble Borough Council,http://statistics.data.gov.uk/id/local-authority/30UE,CDIG-Customer and Digital,Operational Equip & Tools,4010,6IN Bench Vice (Heavy Duty) - JEFBV6,15/07/2022,0000479933,120.83,Revenue,WILLIAM MOORE & SON (PRESTON) LTD,0
South Ribble Borough Council,http://statistics.data.gov.uk/id/local-authority/30UE,COMP-Commercial and Property,Cap Contract Payment,C230, For � WASH / The artistry house Interior Design work� ,08/07/2022,0000479753,"2,500.00",Revenue,Wilson Mason LLP,0
South Ribble Borough Council,http://statistics.data.gov.uk/id/local-authority/30UE,CDIG-Customer and Digital,Commemorative Features,4019,9 X Standard Rectangular Plaques ,08/07/2022,0000479417,225.00,Revenue,WOODSTOCK SIGNS,0
South Ribble Borough Council,http://statistics.data.gov.uk/id/local-authority/30UE,CDIG-Customer and Digital,Commemorative Features,4019,1 x Oval Plaque,08/07/2022,0000479417,70.00,Revenue,WOODSTOCK SIGNS,0
